Workbook

Sheet Al_2009_10
C2: ALBURY CUP RESULTS 2009/10 | M2: As at: | N2: =TEXT(NOW(),"d mmmm yyy") -> 13 November 2018
B4: Albury Cup | C4: Event > | D4: Albury Points Best 4 from 5 | E4: Gazette Cup 4 miles | G4: Alec Potton 7 miles | I4: Christmas Cup 5 km | K4: SWC Open 10 km | M4: SWC Track 3 km | O4: Total Points | R4: =+C2 -> ALBURY CUP RESULTS 2009/10 | T4: =+E28 -> 0 | U4: =+G28 -> 0 | V4: =+I28 -> 0 | W4: =+K28 -> 0 | X4: =+M28 -> 0
B5: Rank | C5: Name - date> | D5: after 3 | E5: 8/10/09 | G5: 13/11/09 | I5: 17/12/09 | K5: None | M5: 1/7/10 | O5: 2009/10 | R5: est acc name | S5: Year Rank | T5: Pos 1 | U5: Pos 2 | V5: Pos 3 | W5: Pos 4 | X5: Pos 5 | Y5: Pos 6 | Z5: Pos 7
B6: 1 | C6: Ian Statter | D6: =+O6-MIN(F6,H6,J6,L6,N6) -> 68 | E6: 2 | F6: =IF(ISBLANK(E6),0,F$23+1-E6) -> 24 | G6: 4 | H6: =IF(ISBLANK(G6),0,H$23+1-G6) -> 22 | I6: 4 | J6: =IF(ISBLANK(I6),0,J$23+1-I6) -> 22 | L6: =IF(ISBLANK(K6),0,L$23+1-K6) -> 0 | N6: =IF(ISBLANK(M6),0,N$23+1-M6) -> 0 | O6: =+F6+H6+J6+L6+N6 -> 68 | R6: =RIGHT(C6,LEN(C6)-FIND(" ",C6)) & "_" & LEFT(C6,FIND(" ",C6)-1) -> Statter_Ian | S6: =+B6 -> 1 | T6: =+E6 -> 2 | U6: =+G6 -> 4 | V6: =+I6 -> 4 | W6: =+K6 -> 0 | X6: =+M6 -> 0
B7: =+B6+1 -> 2 | C7: Dave Delaney | D7: 65 | E7: 9 | F7: 17 | G7: 3 | H7: 23 | I7: 1 | J7: 25 | L7: 0 | N7: 0 | O7: 65 | R7: =RIGHT(C7,LEN(C7)-FIND(" ",C7)) & "_" & LEFT(C7,FIND(" ",C7)-1) -> Delaney_Dave | S7: =+B7 -> 2 | T7: =+E7 -> 9 | U7: =+G7 -> 3 | V7: =+I7 -> 1 | W7: =+K7 -> 0 | X7: =+M7 -> 0
B8: 3 | C8: Peter Hannell | D8: 64 | E8: 5 | F8: 21 | G8: 7 | H8: 19 | I8: 2 | J8: 24 | L8: 0 | N8: 0 | O8: 64 | R8: Hannell_Peter | S8: 3 | T8: 5 | U8: 7 | V8: 2 | W8: 0 | X8: 0
B9: 4 | C9: David Hoben | D9: 61 | E9: 1 | F9: 25 | G9: 9 | H9: 17 | I9: 7 | J9: 19 | L9: 0 | N9: 0 | O9: 61 | R9: Hoben_David | S9: 4 | T9: 1 | U9: 9 | V9: 7 | W9: 0 | X9: 0
B10: 5 | C10: Peter Crane | D10: 59 | E10: 6 | F10: 20 | G10: 6 | H10: 20 | I10: 7 | J10: 19 | L10: 0 | N10: 0 | O10: 59 | R10: Crane_Peter | S10: 5 | T10: 6 | U10: 6 | V10: 7 | W10: 0 | X10: 0
B11: 6 | C11: Nolan Simmons | D11: 50 | E11: 10 | F11: 16 | G11: 11 | H11: 15 | I11: 7 | J11: 19 | L11: 0 | N11: 0 | O11: 50 | R11: Simmons_Nolan | S11: 6 | T11: 10 | U11: 11 | V11: 7 | W11: 0 | X11: 0
B12: 7 | C12: Mark Easton | D12: 47 | E12: 3 | F12: 23 | G12: 2 | H12: 24 | J12: 0 | L12: 0 | N12: 0 | O12: 47 | R12: Easton_Mark | S12: 7 | T12: 3 | U12: 2 | V12: 0 | W12: 0 | X12: 0
B13: 8 | C13: Chris Flint | D13: 43 | E13: 8 | F13: 18 | G13: 1 | H13: 25 | J13: 0 | L13: 0 | N13: 0 | O13: 43 | R13: Flint_Chris | S13: 8 | T13: 8 | U13: 1 | V13: 0 | W13: 0 | X13: 0
B14: 9 | C14: Bernard Imber | D14: 35 | E14: 12 | F14: 14 | G14: 5 | H14: 21 | J14: 0 | L14: 0 | N14: 0 | O14: 35 | R14: Imber_Bernard | S14: 9 | T14: 12 | U14: 5 | V14: 0 | W14: 0 | X14: 0
B15: 10 | C15: Stephen Crane | D15: 29 | E15: 11 | F15: 15 | G15: 12 | H15: 14 | J15: 0 | L15: 0 | N15: 0 | O15: 29 | R15: Crane_Stephen | S15: 10 | T15: 11 | U15: 12 | V15: 0 | W15: 0 | X15: 0
B16: 11 | C16: Gary MacDonald | D16: 23 | F16: 0 | H16: 0 | I16: 3 | J16: 23 | L16: 0 | N16: 0 | O16: 23 | R16: MacDonald_Gary | S16: 11 | T16: 0 | U16: 0 | V16: 3 | W16: 0 | X16: 0
B17: 12 | C17: Trevor Sliwerski | D17: 22 | E17: 4 | F17: 22 | H17: 0 | J17: 0 | L17: 0 | N17: 0 | O17: 22 | R17: Sliwerski_Trevor | S17: 12 | T17: 4 | U17: 0 | V17: 0 | W17: 0 | X17: 0
B18: 13 | C18: Andrew Statter | D18: 19 | E18: 7 | F18: 19 | H18: 0 | J18: 0 | L18: 0 | N18: 0 | O18: 19 | R18: Statter_Andrew | S18: 13 | T18: 7 | U18: 0 | V18: 0 | W18: 0 | X18: 0
B19: 14 | C19: Pam Ficken | D19: 19 | F19: 0 | H19: 0 | I19: 7 | J19: 19 | L19: 0 | N19: 0 | O19: 19 | R19: Ficken_Pam | S19: 14 | T19: 0 | U19: 0 | V19: 7 | W19: 0 | X19: 0
B20: 15 | C20: Mick Harran | D20: 18 | F20: 0 | G20: 8 | H20: 18 | J20: 0 | L20: 0 | N20: 0 | O20: 18 | R20: Harran_Mick | S20: 15 | T20: 0 | U20: 8 | V20: 0 | W20: 0 | X20: 0
B21: 16 | C21: Paul King | D21: 16 | F21: 0 | G21: 10 | H21: 16 | J21: 0 | L21: 0 | N21: 0 | O21: 16 | R21: King_Paul | S21: 16 | T21: 0 | U21: 10 | V21: 0 | W21: 0 | X21: 0
C23: SWC Number Out | E23: =+COUNT(E6:E21) -> 12 | F23: 25 | G23: =+COUNT(G6:G21) -> 12 | H23: 25 | I23: =+COUNT(I6:I21) -> 8 | J23: 25 | K23: =+COUNT(K6:K21) -> 0 | L23: 25 | M23: =+COUNT(M6:M21) -> 0 | N23: 25
C26: Check total positions = | E26: =TEXT(SUM(E6:E21),"0") -> 78 | G26: =TEXT(SUM(G6:G21),"0") -> 78 | I26: =TEXT(SUM(I6:I21),"0") -> 38 | K26: =TEXT(SUM(K6:K21),"0") -> 0 | M26: =TEXT(SUM(M6:M21),"0") -> 0
C27: If t = walkers then t*( t+1)/2 = | E27: =+E23*(E23+1)/2 -> 78 | G27: =+G23*(G23+1)/2 -> 78 | I27: =+I23*(I23+1)/2 -> 36 | K27: =+K23*(K23+1)/2 -> 0 | M27: =+M23*(M23+1)/2 -> 0
C28: Acc Event Number

Sheet Al_2010_11
C2: ALBURY CUP RESULTS 2010/11 | G2: NOT 10/11 results!! | M2: As at: | N2: =TEXT(NOW(),"d mmmm yyy") -> 13 November 2018
B4: Albury Cup | C4: Event > | D4: Albury Points Best 4 from 5 | E4: Gazette Cup 4 miles | G4: Alec Potton 7 miles | I4: Christmas Cup 5 km | K4: SWC Open 10 km | M4: SWC Track 3 km | O4: Total Points | R4: =+C2 -> ALBURY CUP RESULTS 2010/11 | T4: =+E28 -> 0 | U4: =+G28 -> 0 | V4: =+I28 -> 0 | W4: =+K28 -> 0 | X4: =+M28 -> 0
B5: Rank | C5: Name - date> | D5: after 3 | E5: 06/10/13 | G5: 06/10/13 | I5: 06/10/13 | K5: March 14 | M5: 25/6/14 | O5: 2013/14 | R5: est acc name | S5: Year Rank | T5: Pos 1 | U5: Pos 2 | V5: Pos 3 | W5: Pos 4 | X5: Pos 5 | Y5: Pos 6 | Z5: Pos 7
B6: 1 | C6: Dave Delaney | D6: =+O6-MIN(F6,H6,J6,L6,N6) -> 0 | F6: =IF(ISBLANK(E6),0,F$24+1-E6) -> 0 | H6: =IF(ISBLANK(G6),0,H$24+1-G6) -> 0 | J6: =IF(ISBLANK(I6),0,J$24+1-I6) -> 0 | L6: =IF(ISBLANK(K6),0,L$24+1-K6) -> 0 | N6: =IF(ISBLANK(M6),0,N$24+1-M6) -> 0 | O6: =+F6+H6+J6+L6+N6 -> 0 | R6: =RIGHT(C6,LEN(C6)-FIND(" ",C6)) & "_" & LEFT(C6,FIND(" ",C6)-1) -> Delaney_Dave | S6: =+B6 -> 1 | T6: =+E6 -> 0 | U6: =+G6 -> 0 | V6: =+I6 -> 0 | W6: =+K6 -> 0 | X6: =+M6 -> 0
B7: =+B6+1 -> 2 | C7: David Hoben | D7: 0 | F7: 0 | H7: 0 | J7: 0 | L7: 0 | N7: 0 | O7: 0 | R7: =RIGHT(C7,LEN(C7)-FIND(" ",C7)) & "_" & LEFT(C7,FIND(" ",C7)-1) -> Hoben_David | S7: =+B7 -> 2 | T7: =+E7 -> 0 | U7: =+G7 -> 0 | V7: =+I7 -> 0 | W7: =+K7 -> 0 | X7: =+M7 -> 0
B8: =+B7+1 -> 3 | C8: Trevor Sliwerski | D8: 0 | F8: 0 | H8: 0 | J8: 0 | L8: 0 | N8: 0 | O8: 0 | R8: Sliwerski_Trevor | S8: 3 | T8: 0 | U8: 0 | V8: 0 | W8: 0 | X8: 0
B9: 4 | C9: Peter Hannell | D9: 0 | F9: 0 | H9: 0 | J9: 0 | L9: 0 | N9: 0 | O9: 0 | R9: Hannell_Peter | S9: 4 | T9: 0 | U9: 0 | V9: 0 | W9: 0 | X9: 0
B10: 5 | C10: Bernard Imber | D10: 0 | F10: 0 | H10: 0 | J10: 0 | L10: 0 | N10: 0 | O10: 0 | R10: Imber_Bernard | S10: 5 | T10: 0 | U10: 0 | V10: 0 | W10: 0 | X10: 0
B11: 6 | C11: Andrew Statter | D11: 0 | F11: 0 | H11: 0 | J11: 0 | L11: 0 | N11: 0 | O11: 0 | R11: Statter_Andrew | S11: 6 | T11: 0 | U11: 0 | V11: 0 | W11: 0 | X11: 0
B12: 7 | C12: Stephen Crane | D12: 0 | F12: 0 | H12: 0 | J12: 0 | L12: 0 | N12: 0 | O12: 0 | R12: Crane_Stephen | S12: 7 | T12: 0 | U12: 0 | V12: 0 | W12: 0 | X12: 0
B13: 8 | C13: Gary MacDonald | D13: 0 | F13: 0 | H13: 0 | J13: 0 | L13: 0 | N13: 0 | O13: 0 | R13: MacDonald_Gary | S13: 8 | T13: 0 | U13: 0 | V13: 0 | W13: 0 | X13: 0
B14: 9 | C14: Chris Flint | D14: 0 | F14: 0 | H14: 0 | J14: 0 | L14: 0 | N14: 0 | O14: 0 | R14: Flint_Chris | S14: 9 | T14: 0 | U14: 0 | V14: 0 | W14: 0 | X14: 0
B15: 10 | C15: Pam Ficken | D15: =+O15-MIN(F15,H15,J15,L15,N15) -> 0 | F15: 0 | H15: 0 | J15: 0 | L15: 0 | N15: 0 | O15: =+F15+H15+J15+L15+N15 -> 0 | R15: Ficken_Pam | S15: 10 | T15: 0 | U15: 0 | V15: 0 | W15: 0 | X15: 0
B16: 11 | C16: Mark Easton | D16: 0 | F16: =IF(ISBLANK(E16),0,F$24+1-E16) -> 0 | H16: =IF(ISBLANK(G16),0,H$24+1-G16) -> 0 | J16: =IF(ISBLANK(I16),0,J$24+1-I16) -> 0 | L16: =IF(ISBLANK(K16),0,L$24+1-K16) -> 0 | N16: =IF(ISBLANK(M16),0,N$24+1-M16) -> 0 | O16: 0 | R16: Easton_Mark | S16: 11 | T16: 0 | U16: 0 | V16: 0 | W16: 0 | X16: 0
B17: 12 | C17: Mick Harran | D17: 0 | F17: =IF(ISBLANK(E17),0,F$24+1-E17) -> 0 | H17: =IF(ISBLANK(G17),0,H$24+1-G17) -> 0 | J17: =IF(ISBLANK(I17),0,J$24+1-I17) -> 0 | L17: =IF(ISBLANK(K17),0,L$24+1-K17) -> 0 | N17: =IF(ISBLANK(M17),0,N$24+1-M17) -> 0 | O17: 0 | R17: Harran_Mick | S17: 12 | T17: 0 | U17: 0 | V17: 0 | W17: 0 | X17: 0
B18: 13 | C18: Ian Statter | D18: 0 | F18: 0 | H18: 0 | J18: 0 | L18: 0 | N18: 0 | O18: 0 | R18: Statter_Ian | S18: 13 | T18: 0 | U18: 0 | V18: 0 | W18: 0 | X18: 0
B19: 14 | C19: Peter Crane | D19: 0 | F19: 0 | H19: 0 | J19: 0 | L19: 0 | N19: 0 | O19: 0 | R19: Crane_Peter | S19: 14 | T19: 0 | U19: 0 | V19: 0 | W19: 0 | X19: 0
B20: 15 | C20: Paul King | D20: 0 | F20: 0 | H20: 0 | J20: 0 | L20: 0 | N20: 0 | O20: 0 | R20: King_Paul | S20: 15 | T20: 0 | U20: 0 | V20: 0 | W20: 0 | X20: 0
B21: 16 | C21: Kevin Burnett | D21: 0 | F21: 0 | H21: 0 | J21: 0 | L21: 0 | N21: 0 | O21: 0 | R21: Burnett_Kevin | S21: 16 | T21: 0 | U21: 0 | V21: 0 | W21: 0 | X21: 0
B22: 17 | C22: Nolan Simmons | D22: 0 | F22: 0 | H22: 0 | J22: 0 | L22: 0 | N22: 0 | O22: 0 | R22: =RIGHT(C22,LEN(C22)-FIND(" ",C22)) & "_" & LEFT(C22,FIND(" ",C22)-1) -> Simmons_Nolan | S22: =+B22 -> 17 | T22: =+E22 -> 0 | U22: =+G22 -> 0 | V22: =+I22 -> 0 | W22: =+K22 -> 0 | X22: =+M22 -> 0
C24: SWC Number Out | E24: =+MAX(E6:E22) -> 0 | F24: 25 | G24: =+MAX(G6:G22) -> 0 | H24: 25 | I24: 0 | J24: 25 | K24: 0 | L24: 25 | M24: 0 | N24: 25
C27: Check total positions = | E27: =TEXT(SUM(E7:E22),"0") -> 0 | G27: =TEXT(SUM(G7:G22),"0") -> 0 | I27: =TEXT(SUM(I7:I22),"0") -> 0 | K27: =TEXT(SUM(K7:K22),"0") -> 0 | M27: =TEXT(SUM(M7:M22),"0") -> 0
C28: If t = walkers then t*( t+1)/2 = | E28: =+E24*(E24+1)/2 -> 0 | G28: =+G24*(G24+1)/2 -> 0 | I28: =+I24*(I24+1)/2 -> 0 | K28: =+K24*(K24+1)/2 -> 0 | M28: =+M24*(M24+1)/2 -> 0
C29: Acc Event Number | E29: 26 | G29: 29 | I29: 31 | K29: 32 | M29: 78

Sheet Al_2011_12
C2: ALBURY CUP RESULTS 2011/12 | M2: As at: | N2: =TEXT(NOW(),"d mmmm yyy") -> 13 November 2018
B4: Albury Cup | C4: Event > | D4: Albury Points Best 4 from 5 | E4: Gazette Cup 4 miles | G4: Alec Potton 7 miles | I4: Christmas Cup 5 km | K4: SWC Open 10 km | M4: SWC Track 3 km | O4: Total Points | R4: =+C2 -> ALBURY CUP RESULTS 2011/12 | T4: =+E30 -> 101 | U4: =+G30 -> 105 | V4: =+I30 -> 108 | W4: =+K30 -> 112 | X4: =+M30 -> 141
B5: Rank | C5: Name - date> | D5: after 4 | E5: 15/10/11 | G5: 06/11/11 | I5: 10/12/11 | K5: No Hcp | M5: 06/06/12 | O5: 2011/12 | R5: est acc name | S5: Year Rank | T5: =+E5 -> 15/10/11 | U5: =+G5 -> 06/11/11 | V5: =+I5 -> 10/12/11 | W5: =+K5 -> No Hcp | X5: =+M5 -> 06/06/12
B6: 1 | C6: Dave Delaney | D6: =+O6-MIN(F6,H6,J6,L6,N6) -> 84 | E6: 1 | F6: =IF(ISBLANK(E6),0,F$25+1-E6) -> 25 | G6: 2 | H6: =IF(ISBLANK(G6),0,H$25+1-G6) -> 24 | I6: 11 | J6: =IF(ISBLANK(I6),0,J$25+1-I6) -> 15 | L6: =IF(ISBLANK(K6),0,L$25+1-K6) -> 0 | M6: 6 | N6: =IF(ISBLANK(M6),0,N$25+1-M6) -> 20 | O6: =+F6+H6+J6+L6+N6 -> 84 | R6: =RIGHT(C6,LEN(C6)-FIND(" ",C6)) & "_" & LEFT(C6,FIND(" ",C6)-1) -> Delaney_Dave | S6: =+B6 -> 1 | T6: =+E6 -> 1 | U6: =+G6 -> 2 | V6: =+I6 -> 11 | W6: =+K6 -> 0 | X6: =+M6 -> 6
B7: =+B6+1 -> 2 | C7: Shaun Lightman | D7: 82 | E7: 11 | F7: 15 | G7: 4 | H7: 22 | I7: 4 | J7: 22 | L7: 0 | M7: 3 | N7: 23 | O7: 82 | R7: =RIGHT(C7,LEN(C7)-FIND(" ",C7)) & "_" & LEFT(C7,FIND(" ",C7)-1) -> Lightman_Shaun | S7: =+B7 -> 2 | T7: =+E7 -> 11 | U7: =+G7 -> 4 | V7: =+I7 -> 4 | W7: =+K7 -> 0 | X7: =+M7 -> 3
B8: =+B7+1 -> 3 | C8: Mark Easton | D8: 65 | E8: 4 | F8: 22 | G8: 7 | H8: 19 | I8: 2 | J8: 24 | L8: 0 | N8: 0 | O8: 65 | R8: Easton_Mark | S8: 3 | T8: 4 | U8: 7 | V8: 2 | W8: 0 | X8: 0
B9: 4 | C9: Ian Statter | D9: 65 | E9: 3 | F9: 23 | G9: 5 | H9: 21 | I9: 5 | J9: 21 | L9: 0 | N9: 0 | O9: 65 | R9: Statter_Ian | S9: 4 | T9: 3 | U9: 5 | V9: 5 | W9: 0 | X9: 0
B10: 5 | C10: Peter Hannell | D10: 62 | E10: 8 | F10: 18 | G10: 3 | H10: 23 | J10: 0 | L10: 0 | M10: 5 | N10: 21 | O10: 62 | R10: Hannell_Peter | S10: 5 | T10: 8 | U10: 3 | V10: 0 | W10: 0 | X10: 5
B11: 6 | C11: Kathy Crilley | D11: 59 | E11: 9 | F11: 17 | G11: 1 | H11: 25 | I11: 9 | J11: 17 | L11: 0 | N11: 0 | O11: 59 | R11: Crilley_Kathy | S11: 6 | T11: 9 | U11: 1 | V11: 9 | W11: 0 | X11: 0
B12: 7 | C12: David Hoben | D12: 56 | E12: 6 | F12: 20 | H12: 0 | I12: 12 | J12: 14 | L12: 0 | M12: 4 | N12: 22 | O12: 56 | R12: Hoben_David | S12: 7 | T12: 6 | U12: 0 | V12: 12 | W12: 0 | X12: 4
B13: 8 | C13: Peter Crane | D13: 52 | E13: 5 | F13: 21 | G13: 8 | H13: 18 | I13: 13 | J13: 13 | L13: 0 | N13: 0 | O13: 52 | R13: Crane_Peter | S13: 8 | T13: 5 | U13: 8 | V13: 13 | W13: 0 | X13: 0
B14: 9 | C14: Kevin Burnett | D14: 47 | F14: 0 | H14: 0 | I14: 3 | J14: 23 | L14: 0 | M14: 2 | N14: 24 | O14: 47 | R14: Burnett_Kevin | S14: 9 | T14: 0 | U14: 0 | V14: 3 | W14: 0 | X14: 2
B15: 10 | C15: Paul King | D15: 38 | F15: 0 | G15: 6 | H15: 20 | I15: 8 | J15: 18 | L15: 0 | N15: 0 | O15: 38 | R15: King_Paul | S15: 10 | T15: 0 | U15: 6 | V15: 8 | W15: 0 | X15: 0
B16: 11 | C16: David Crane | D16: 37 | F16: 0 | H16: 0 | I16: 14 | J16: 12 | L16: 0 | M16: 1 | N16: 25 | O16: 37 | R16: Crane_David | S16: 11 | T16: 0 | U16: 0 | V16: 14 | W16: 0 | X16: 1
B17: 12 | C17: Mick Harran | D17: 33 | F17: 0 | G17: 9 | H17: 17 | I17: 10 | J17: 16 | L17: 0 | N17: 0 | O17: 33 | R17: Harran_Mick | S17: 12 | T17: 0 | U17: 9 | V17: 10 | W17: 0 | X17: 0
B18: 13 | C18: Chris Flint | D18: 30 | E18: 7 | F18: 19 | H18: 0 | I18: 15 | J18: 11 | L18: 0 | N18: 0 | O18: 30 | R18: Flint_Chris | S18: 13 | T18: 7 | U18: 0 | V18: 15 | W18: 0 | X18: 0
B19: 14 | C19: Lyn Atterbury | D19: 25 | F19: 0 | H19: 0 | I19: 1 | J19: 25 | L19: 0 | N19: 0 | O19: 25 | R19: Atterbury_Lyn | S19: 14 | T19: 0 | U19: 0 | V19: 1 | W19: 0 | X19: 0
B20: 15 | C20: Pam Ficken | D20: 24 | E20: 2 | F20: 24 | H20: 0 | J20: 0 | L20: 0 | N20: 0 | O20: 24 | R20: Ficken_Pam | S20: 15 | T20: 2 | U20: 0 | V20: 0 | W20: 0 | X20: 0
B21: 16 | C21: Andrew Statter | D21: 20 | F21: 0 | H21: 0 | I21: 6 | J21: 20 | L21: 0 | N21: 0 | O21: 20 | R21: Statter_Andrew | S21: 16 | T21: 0 | U21: 0 | V21: 6 | W21: 0 | X21: 0
B22: 17 | C22: Bernard Imber | D22: 19 | F22: 0 | H22: 0 | I22: 7 | J22: 19 | L22: 0 | N22: 0 | O22: 19 | R22: =RIGHT(C22,LEN(C22)-FIND(" ",C22)) & "_" & LEFT(C22,FIND(" ",C22)-1) -> Imber_Bernard | S22: =+B22 -> 17 | T22: =+E22 -> 0 | U22: =+G22 -> 0 | V22: =+I22 -> 7 | W22: =+K22 -> 0 | X22: =+M22 -> 0
B23: 18 | C23: Steve Crane | D23: 16 | E23: 10 | F23: 16 | H23: 0 | J23: 0 | L23: 0 | N23: 0 | O23: 16 | R23: Crane_Steve | S23: 18 | T23: 10 | U23: 0 | V23: 0 | W23: 0 | X23: 0
C25: SWC Number Out | E25: =+COUNT(E6:E23) -> 11 | F25: 25 | G25: =+COUNT(G6:G23) -> 9 | H25: 25 | I25: =+COUNT(I6:I23) -> 15 | J25: 25 | K25: =+COUNT(K6:K23) -> 0 | L25: 25 | M25: =+COUNT(M6:M23) -> 6 | N25: 25
C28: Check total positions = | E28: =TEXT(SUM(E6:E23),"0") -> 66 | G28: =TEXT(SUM(G6:G23),"0") -> 45 | I28: =TEXT(SUM(I6:I23),"0") -> 120 | K28: =TEXT(SUM(K6:K23),"0") -> 0 | M28: =TEXT(SUM(M6:M23),"0") -> 21
C29: If t = walkers then t*( t+1)/2 = | E29: =+E25*(E25+1)/2 -> 66 | G29: =+G25*(G25+1)/2 -> 45 | I29: =+I25*(I25+1)/2 -> 120 | K29: =+K25*(K25+1)/2 -> 0 | M29: =+M25*(M25+1)/2 -> 21
C30: Acc Event Number | E30: 101 | G30: 105 | I30: 108 | K30: 112 | M30: 141

Sheet Al_2012_13
C2: ALBURY CUP RESULTS 2012/13 | M2: As at: | N2: =TEXT(NOW(),"d mmmm yyy") -> 13 November 2018
B4: Albury Cup | C4: Event > | D4: Albury Points Best 4 from 5 | E4: Gazette Cup 4 miles | G4: Alec Potton 7 miles | I4: Christmas Cup 5 km | K4: SWC Open 10 km | M4: SWC Track 3 km | O4: Total Points | R4: =+C2 -> ALBURY CUP RESULTS 2012/13 | T4: =+E24 -> 183 | U4: =+G24 -> 189 | V4: =+I24 -> 195 | W4: =+K24 -> 198 | X4: =+M24 -> 238
B5: Rank | C5: Name - date> | D5: after 5 | E5: 20/10/12 | G5: 03/11/12 | I5: 08/12/12 | K5: 05/01/13 | M5: 12/6/13 | O5: 2012/13 | R5: est acc name | S5: Year Rank | T5: =+E5 -> 20/10/12 | U5: =+G5 -> 03/11/12 | V5: =+I5 -> 08/12/12 | W5: =+K5 -> 05/01/13 | X5: =+M5 -> 12/6/13
B6: 1 | C6: Paul King | D6: =+O6-MIN(F6,H6,J6,L6,N6) -> 91 | E6: 3 | F6: =IF(ISBLANK(E6),0,F$19+1-E6) -> 23 | G6: 2 | H6: =IF(ISBLANK(G6),0,H$19+1-G6) -> 24 | I6: 7 | J6: =IF(ISBLANK(I6),0,J$19+1-I6) -> 19 | K6: 1 | L6: =IF(ISBLANK(K6),0,L$19+1-K6) -> 25 | N6: =IF(ISBLANK(M6),0,N$19+1-M6) -> 0 | O6: =+F6+H6+J6+L6+N6 -> 91 | R6: =RIGHT(C6,LEN(C6)-FIND(" ",C6)) & "_" & LEFT(C6,FIND(" ",C6)-1) -> King_Paul | S6: =+B6 -> 1 | T6: =+E6 -> 3 | U6: =+G6 -> 2 | V6: =+I6 -> 7 | W6: =+K6 -> 1 | X6: =+M6 -> 0
B7: =+B6+1 -> 2 | C7: David Crane | D7: 90 | E7: 10 | F7: 16 | G7: 5 | H7: 21 | I7: 1 | J7: 25 | K7: 6 | L7: 20 | M7: 2 | N7: 24 | O7: 106 | R7: =RIGHT(C7,LEN(C7)-FIND(" ",C7)) & "_" & LEFT(C7,FIND(" ",C7)-1) -> Crane_David | S7: =+B7 -> 2 | T7: =+E7 -> 10 | U7: =+G7 -> 5 | V7: =+I7 -> 1 | W7: =+K7 -> 6 | X7: =+M7 -> 2
B8: =+B7+1 -> 3 | C8: David Hoben | D8: 86 | E8: 8 | F8: 18 | G8: 4 | H8: 22 | I8: 6 | J8: 20 | K8: 5 | L8: 21 | M8: 3 | N8: 23 | O8: 104 | R8: Hoben_David | S8: 3 | T8: 8 | U8: 4 | V8: 6 | W8: 5 | X8: 3
B9: 4 | C9: Chris Flint | D9: 85 | E9: 1 | F9: 25 | G9: 7 | H9: 19 | I9: 9 | J9: 17 | K9: 2 | L9: 24 | N9: 0 | O9: 85 | R9: Flint_Chris | S9: 4 | T9: 1 | U9: 7 | V9: 9 | W9: 2 | X9: 0
B10: 5 | C10: Ian Statter | D10: 84 | E10: 6 | F10: 20 | G10: 9 | H10: 17 | I10: 4 | J10: 22 | L10: 0 | M10: 1 | N10: 25 | O10: 84 | R10: Statter_Ian | S10: 5 | T10: 6 | U10: 9 | V10: 4 | W10: 0 | X10: 1
B11: 6 | C11: Shaun Lightman | D11: 82 | E11: 11 | F11: 15 | G11: 3 | H11: 23 | I11: 3 | J11: 23 | L11: 0 | M11: 5 | N11: 21 | O11: 82 | R11: Lightman_Shaun | S11: 6 | T11: 11 | U11: 3 | V11: 3 | W11: 0 | X11: 5
B12: 7 | C12: Peter Crane | D12: 82 | E12: 9 | F12: 17 | G12: 1 | H12: 25 | I12: 8 | J12: 18 | K12: 7 | L12: 19 | M12: 6 | N12: 20 | O12: 99 | R12: Crane_Peter | S12: 7 | T12: 9 | U12: 1 | V12: 8 | W12: 7 | X12: 6
B13: 8 | C13: Dave Delaney | D13: 73 | E13: 7 | F13: 19 | G13: 11 | H13: 15 | I13: 5 | J13: 21 | K13: 8 | L13: 18 | N13: 0 | O13: 73 | R13: Delaney_Dave | S13: 8 | T13: 7 | U13: 11 | V13: 5 | W13: 8 | X13: 0
B14: 9 | C14: Peter Hannell | D14: 62 | F14: 0 | G14: 10 | H14: 16 | I14: 2 | J14: 24 | L14: 0 | M14: 4 | N14: 22 | O14: 62 | R14: Hannell_Peter | S14: 9 | T14: 0 | U14: 10 | V14: 2 | W14: 0 | X14: 4
B15: 10 | C15: Mick Harran | D15: 62 | E15: 5 | F15: 21 | G15: 8 | H15: 18 | J15: 0 | K15: 3 | L15: 23 | N15: 0 | O15: 62 | R15: Harran_Mick | S15: 10 | T15: 5 | U15: 8 | V15: 0 | W15: 3 | X15: 0
B16: 11 | C16: Kathy Crilley | D16: 58 | E16: 4 | F16: 22 | G16: 12 | H16: 14 | J16: 0 | K16: 4 | L16: 22 | N16: 0 | O16: 58 | R16: Crilley_Kathy | S16: 11 | T16: 4 | U16: 12 | V16: 0 | W16: 4 | X16: 0
B17: 12 | C17: Mark Easton | D17: 44 | E17: 2 | F17: 24 | G17: 6 | H17: 20 | J17: 0 | L17: 0 | N17: 0 | O17: 44 | R17: Easton_Mark | S17: 12 | T17: 2 | U17: 6 | V17: 0 | W17: 0 | X17: 0
C19: SWC Number Out | E19: =+MAX(E6:E17) -> 11 | F19: 25 | G19: =+MAX(G6:G17) -> 12 | H19: 25 | I19: 9 | J19: 25 | K19: 8 | L19: 25 | M19: 6 | N19: 25
C22: Check total positions = | E22: =TEXT(SUM(E5:E17),"0") -> 66 | G22: =TEXT(SUM(G5:G17),"0") -> 78 | I22: =TEXT(SUM(I5:I17),"0") -> 45 | K22: =TEXT(SUM(K5:K17),"0") -> 36 | M22: =TEXT(SUM(M5:M17),"0") -> 21
C23: If t = walkers then t*( t+1)/2 = | E23: =+E19*(E19+1)/2 -> 66 | G23: =+G19*(G19+1)/2 -> 78 | I23: =+I19*(I19+1)/2 -> 45 | K23: =+K19*(K19+1)/2 -> 36 | M23: =+M19*(M19+1)/2 -> 21
C24: Acc Event Number | E24: 183 | G24: 189 | I24: 195 | K24: 198 | M24: 238

Sheet Al_2013_14
C2: ALBURY CUP RESULTS 2013/14 | M2: As at: | N2: =TEXT(NOW(),"d mmmm yyy") -> 13 November 2018
S3: Compressed Copy of Results for transfer to history stage 1 (Table Compressed_13_14) | AC3: Results for transfer to history stage 2. cols AC to last race to be copied(123) to History sheet
B4: Albury Cup | C4: Event > | D4: Albury Points Best 4 from 5 | E4: Gazette Cup 4 miles | G4: Alec Potton 7 miles | I4: Christmas Cup 5 km | K4: SWC Open 10 km | M4: SWC Track 3 km | O4: Total Points | P4: Races Walked | S4: =+C2 -> ALBURY CUP RESULTS 2013/14 | U4: =+E30 -> 283 | V4: =+G30 -> 289 | W4: =+I30 -> 298 | X4: 322 | Y4: =+M30 -> 372
B5: Rank | C5: Name - date> | D5: after 5 | E5: 06/10/13 | G5: 3/11/13 | I5: 21/12/13 | K5: 29/03/14 | M5: 04/06/14 | O5: 2013/14 | P5: =+O5 -> 2013/14 | S5: Athlete Key | T5: Year Rank | U5: =+E5 -> 06/10/13 | V5: =+G5 -> 3/11/13 | W5: =+I5 -> 21/12/13 | X5: =+K5 -> 29/03/14 | Y5: =+M5 -> 04/06/14 | Z5: Pos 6 | AA5: Pos 7 | AC5: Keys from History Table | AD5: =+T5 -> Year Rank | AE5: =+U5 -> 06/10/13 | AF5: 3/11/13 | AG5: 21/12/13 | AH5: 29/03/14 | AI5: 04/06/14
B6: 1 | C6: Malcolm Martin | D6: =+O6-MIN(F6,H6,J6,L6,N6) -> 87 | E6: 4 | F6: =IF(ISBLANK(E6),0,F$27+1-E6) -> 22 | G6: 4 | H6: 22 | I6: 6 | J6: =IF(ISBLANK(I6),0,J$27+1-I6) -> 20 | K6: 6 | L6: =IF(ISBLANK(K6),0,L$27+1-K6) -> 20 | M6: 3 | N6: =IF(ISBLANK(M6),0,N$27+1-M6) -> 23 | O6: =+F6+H6+J6+L6+N6 -> 107 | P6: =+COUNT(E6,G6,I6,K6,M6) -> 5 | S6: =RIGHT(C6,LEN(C6)-FIND(" ",C6)) & "_" & LEFT(C6,FIND(" ",C6)-1) -> Martin_Malcolm | T6: =+B6 -> 1 | U6: =+E6 -> 4 | V6: =+G6 -> 4 | W6: =+I6 -> 6 | X6: =+K6 -> 6 | Y6: =+M6 -> 3 | AC6: =+'Notes_and_History_+_Buttons'!A25 -> Atterbury_Lyn | AD6: =IF(ISERROR(VLOOKUP($AC6,Compressed_13_14,2,FALSE)),0,VLOOKUP($AC6,Compressed_13_14,2,FALSE)) -> 0 | AE6: =IF(ISERROR(VLOOKUP($AC6,Compressed_13_14,3,FALSE)),0,VLOOKUP($AC6,Compressed_13_14,3,FALSE)) -> 0 | AF6: =IF(ISERROR(VLOOKUP($AC6,Compressed_13_14,4,FALSE)),0,VLOOKUP($AC6,Compressed_13_14,4,FALSE)) -> 0 | AG6: =IF(ISERROR(VLOOKUP($AC6,Compressed_13_14,5,FALSE)),0,VLOOKUP($AC6,Compressed_13_14,5,FALSE)) -> 0 | AH6: =IF(ISERROR(VLOOKUP($AC6,Compressed_13_14,6,FALSE)),0,VLOOKUP($AC6,Compressed_13_14,6,FALSE)) -> 0 | AI6: =IF(ISERROR(VLOOKUP($AC6,Compressed_13_14,7,FALSE)),0,VLOOKUP($AC6,Compressed_13_14,7,FALSE)) -> 0
B7: =+B6+1 -> 2 | C7: Angela Martin | D7: 79 | E7: 10 | F7: 16 | G7: 5 | H7: 21 | I7: 7 | J7: =IF(ISBLANK(I7),0,J$27+1-I7) -> 19 | K7: 5 | L7: =IF(ISBLANK(K7),0,L$27+1-K7) -> 21 | M7: 8 | N7: =IF(ISBLANK(M7),0,N$27+1-M7) -> 18 | O7: 95 | P7: =+COUNT(E7,G7,I7,K7,M7) -> 5 | S7: =RIGHT(C7,LEN(C7)-FIND(" ",C7)) & "_" & LEFT(C7,FIND(" ",C7)-1) -> Martin_Angela | T7: =+B7 -> 2 | U7: =+E7 -> 10 | V7: =+G7 -> 5 | W7: =+I7 -> 7 | X7: =+K7 -> 5 | Y7: =+M7 -> 8 | AC7: =+'Notes_and_History_+_Buttons'!A26 -> Brown_Sandra | AD7: 12 | AE7: 0 | AF7: 0 | AG7: 0 | AH7: 4 | AI7: 5
B8: =+B7+1 -> 3 | C8: Dave Delaney | D8: 70 | E8: 1 | F8: 25 | G8: 6 | H8: 20 | I8: 1 | J8: =IF(ISBLANK(I8),0,J$27+1-I8) -> 25 | L8: =IF(ISBLANK(K8),0,L$27+1-K8) -> 0 | N8: =IF(ISBLANK(M8),0,N$27+1-M8) -> 0 | O8: 70 | P8: 3 | S8: Delaney_Dave | T8: 3 | U8: 1 | V8: 6 | W8: 1 | X8: 0 | Y8: 0 | AC8: =+'Notes_and_History_+_Buttons'!A27 -> Burnett_Kevin | AD8: 14 | AE8: 9 | AF8: 0 | AG8: 0 | AH8: 0 | AI8: 6
B9: 4 | C9: David Hoben | D9: 68 | E9: 6 | F9: 20 | G9: 1 | H9: 25 | I9: 3 | J9: =IF(ISBLANK(I9),0,J$27+1-I9) -> 23 | L9: =IF(ISBLANK(K9),0,L$27+1-K9) -> 0 | N9: =IF(ISBLANK(M9),0,N$27+1-M9) -> 0 | O9: 68 | P9: 3 | S9: Hoben_David | T9: 4 | U9: 6 | V9: 1 | W9: 3 | X9: 0 | Y9: 0 | AC9: =+'Notes_and_History_+_Buttons'!A28 -> Campbell_Sandra | AD9: 10 | AE9: 0 | AF9: 0 | AG9: 0 | AH9: 2 | AI9: 4
B10: 5 | C10: Dan Maskell | D10: 66 | E10: 3 | F10: 23 | G10: 2 | H10: 24 | J10: =IF(ISBLANK(I10),0,J$27+1-I10) -> 0 | L10: =IF(ISBLANK(K10),0,L$27+1-K10) -> 0 | M10: 7 | N10: =IF(ISBLANK(M10),0,N$27+1-M10) -> 19 | O10: 66 | P10: 3 | S10: Maskell_Dan | T10: 5 | U10: 3 | V10: 2 | W10: 0 | X10: 0 | Y10: 7 | AC10: =+'Notes_and_History_+_Buttons'!A29 -> Crane_David | AD10: 8 | AE10: 12 | AF10: 12 | AG10: 2 | AH10: 0 | AI10: 0
B11: 6 | C11: Chris Flint | D11: 61 | F11: 0 | G11: 11 | H11: 15 | I11: 5 | J11: =IF(ISBLANK(I11),0,J$27+1-I11) -> 21 | K11: 1 | L11: =IF(ISBLANK(K11),0,L$27+1-K11) -> 25 | N11: =IF(ISBLANK(M11),0,N$27+1-M11) -> 0 | O11: 61 | P11: 3 | S11: Flint_Chris | T11: 6 | U11: 0 | V11: 11 | W11: 5 | X11: 1 | Y11: 0 | AC11: =+'Notes_and_History_+_Buttons'!A30 -> Crane_Peter | AD11: 9 | AE11: 0 | AF11: 0 | AG11: 4 | AH11: 0 | AI11: 1
B12: 7 | C12: Shaun Lightman | D12: 61 | F12: 0 | G12: 7 | H12: 19 | I12: 8 | J12: =IF(ISBLANK(I12),0,J$27+1-I12) -> 18 | L12: =IF(ISBLANK(K12),0,L$27+1-K12) -> 0 | M12: 2 | N12: =IF(ISBLANK(M12),0,N$27+1-M12) -> 24 | O12: 61 | P12: 3 | S12: Lightman_Shaun | T12: 7 | U12: 0 | V12: 7 | W12: 8 | X12: 0 | Y12: 2 | AC12: =+'Notes_and_History_+_Buttons'!A31 -> Crane_Steve | AD12: 0 | AE12: 0 | AF12: 0 | AG12: 0 | AH12: 0 | AI12: 0
B13: 8 | C13: David Crane | D13: 52 | E13: 12 | F13: 14 | G13: 12 | H13: 14 | I13: 2 | J13: =IF(ISBLANK(I13),0,J$27+1-I13) -> 24 | L13: =IF(ISBLANK(K13),0,L$27+1-K13) -> 0 | N13: =IF(ISBLANK(M13),0,N$27+1-M13) -> 0 | O13: 52 | P13: 3 | S13: Crane_David | T13: 8 | U13: 12 | V13: 12 | W13: 2 | X13: 0 | Y13: 0 | AC13: =+'Notes_and_History_+_Buttons'!A32 -> Crilley_Kathy | AD13: 11 | AE13: 5 | AF13: 3 | AG13: 0 | AH13: 0 | AI13: 0
B14: 9 | C14: Peter Crane | D14: 47 | F14: 0 | H14: 0 | I14: 4 | J14: =IF(ISBLANK(I14),0,J$27+1-I14) -> 22 | L14: =IF(ISBLANK(K14),0,L$27+1-K14) -> 0 | M14: 1 | N14: =IF(ISBLANK(M14),0,N$27+1-M14) -> 25 | O14: 47 | P14: 2 | S14: Crane_Peter | T14: 9 | U14: 0 | V14: 0 | W14: 4 | X14: 0 | Y14: 1 | AC14: =+'Notes_and_History_+_Buttons'!A33 -> Delaney_Dave | AD14: 3 | AE14: 1 | AF14: 6 | AG14: 1 | AH14: 0 | AI14: 0
B15: 10 | C15: Sandra Campbell | D15: 46 | F15: 0 | H15: 0 | J15: =IF(ISBLANK(I15),0,J$27+1-I15) -> 0 | K15: 2 | L15: =IF(ISBLANK(K15),0,L$27+1-K15) -> 24 | M15: 4 | N15: =IF(ISBLANK(M15),0,N$27+1-M15) -> 22 | O15: 46 | P15: 2 | S15: Campbell_Sandra | T15: 10 | U15: 0 | V15: 0 | W15: 0 | X15: 2 | Y15: 4 | AC15: =+'Notes_and_History_+_Buttons'!A34 -> Easton_Mark | AD15: 15 | AE15: 8 | AF15: 9 | AG15: 0 | AH15: 0 | AI15: 0
B16: 11 | C16: Kathy Crilley | D16: 44 | E16: 5 | F16: 21 | G16: 3 | H16: 23 | J16: =IF(ISBLANK(I16),0,J$27+1-I16) -> 0 | L16: =IF(ISBLANK(K16),0,L$27+1-K16) -> 0 | N16: =IF(ISBLANK(M16),0,N$27+1-M16) -> 0 | O16: 44 | P16: 2 | S16: Crilley_Kathy | T16: 11 | U16: 5 | V16: 3 | W16: 0 | X16: 0 | Y16: 0 | AC16: =+'Notes_and_History_+_Buttons'!A35 -> Edwards_Chris | AD16: 0 | AE16: 0 | AF16: 0 | AG16: 0 | AH16: 0 | AI16: 0
B17: 12 | C17: Sandra Brown | D17: 43 | F17: 0 | H17: 0 | J17: =IF(ISBLANK(I17),0,J$27+1-I17) -> 0 | K17: 4 | L17: =IF(ISBLANK(K17),0,L$27+1-K17) -> 22 | M17: 5 | N17: =IF(ISBLANK(M17),0,N$27+1-M17) -> 21 | O17: 43 | P17: 2 | S17: Brown_Sandra | T17: 12 | U17: 0 | V17: 0 | W17: 0 | X17: 4 | Y17: 5 | AC17: =+'Notes_and_History_+_Buttons'!A36 -> Ficken_Pam | AD17: 0 | AE17: 0 | AF17: 0 | AG17: 0 | AH17: 0 | AI17: 0
B18: 13 | C18: Paul King | D18: 41 | F18: 0 | G18: 8 | H18: 18 | J18: =IF(ISBLANK(I18),0,J$27+1-I18) -> 0 | K18: 3 | L18: =IF(ISBLANK(K18),0,L$27+1-K18) -> 23 | N18: =IF(ISBLANK(M18),0,N$27+1-M18) -> 0 | O18: 41 | P18: 2 | S18: King_Paul | T18: 13 | U18: 0 | V18: 8 | W18: 0 | X18: 3 | Y18: 0 | AC18: =+'Notes_and_History_+_Buttons'!A38 -> Gaston_Paul | AD18: 0 | AE18: 0 | AF18: 0 | AG18: 0 | AH18: 0 | AI18: 0
B19: 14 | C19: Kevin Burnett | D19: 37 | E19: 9 | F19: 17 | H19: 0 | J19: =IF(ISBLANK(I19),0,J$27+1-I19) -> 0 | L19: =IF(ISBLANK(K19),0,L$27+1-K19) -> 0 | M19: 6 | N19: =IF(ISBLANK(M19),0,N$27+1-M19) -> 20 | O19: 37 | P19: 2 | S19: Burnett_Kevin | T19: 14 | U19: 9 | V19: 0 | W19: 0 | X19: 0 | Y19: 6 | AC19: =+'Notes_and_History_+_Buttons'!A39 -> Hannell_Peter | AD19: 0 | AE19: 0 | AF19: 0 | AG19: 0 | AH19: 0 | AI19: 0
B20: 15 | C20: Mark Easton | D20: 35 | E20: 8 | F20: 18 | G20: 9 | H20: 17 | J20: =IF(ISBLANK(I20),0,J$27+1-I20) -> 0 | L20: =IF(ISBLANK(K20),0,L$27+1-K20) -> 0 | N20: =IF(ISBLANK(M20),0,N$27+1-M20) -> 0 | O20: 35 | P20: 2 | S20: =RIGHT(C20,LEN(C20)-FIND(" ",C20)) & "_" & LEFT(C20,FIND(" ",C20)-1) -> Easton_Mark | T20: =+B20 -> 15 | U20: =+E20 -> 8 | V20: =+G20 -> 9 | W20: =+I20 -> 0 | X20: =+K20 -> 0 | Y20: =+M20 -> 0 | AC20: =+'Notes_and_History_+_Buttons'!A40 -> Harran_Mick | AD20: 16 | AE20: 7 | AF20: 10 | AG20: 0 | AH20: 0 | AI20: 0
B21: 16 | C21: Mick Harran | D21: 35 | E21: 7 | F21: 19 | G21: 10 | H21: 16 | J21: =IF(ISBLANK(I21),0,J$27+1-I21) -> 0 | L21: =IF(ISBLANK(K21),0,L$27+1-K21) -> 0 | N21: =IF(ISBLANK(M21),0,N$27+1-M21) -> 0 | O21: 35 | P21: 2 | S21: Harran_Mick | T21: 16 | U21: 7 | V21: 10 | W21: 0 | X21: 0 | Y21: 0 | AC21: =+'Notes_and_History_+_Buttons'!A41 -> Hoben_David | AD21: 4 | AE21: 6 | AF21: 1 | AG21: 3 | AH21: 0 | AI21: 0
B22: 17 | C22: Ian Statter | D22: 24 | E22: 2 | F22: 24 | H22: 0 | J22: =IF(ISBLANK(I22),0,J$27+1-I22) -> 0 | L22: =IF(ISBLANK(K22),0,L$27+1-K22) -> 0 | N22: =IF(ISBLANK(M22),0,N$27+1-M22) -> 0 | O22: 24 | P22: 1 | S22: Statter_Ian | T22: 17 | U22: 2 | V22: 0 | W22: 0 | X22: 0 | Y22: 0 | AC22: =+'Notes_and_History_+_Buttons'!A42 -> Imber_Bernard | AD22: 0 | AE22: 0 | AF22: 0 | AG22: 0 | AH22: 0 | AI22: 0
B23: =+B22+1 -> 18 | C23: Nolan Simmons | D23: 15 | E23: 11 | F23: =IF(ISBLANK(E23),0,F$27+1-E23) -> 15 | H23: =IF(ISBLANK(G23),0,H$27+1-G23) -> 0 | J23: =IF(ISBLANK(I23),0,J$27+1-I23) -> 0 | L23: =IF(ISBLANK(K23),0,L$27+1-K23) -> 0 | N23: =IF(ISBLANK(M23),0,N$27+1-M23) -> 0 | O23: 15 | P23: 1 | S23: Simmons_Nolan | T23: 18 | U23: 11 | V23: 0 | W23: 0 | X23: 0 | Y23: 0 | AC23: =+'Notes_and_History_+_Buttons'!A43 -> King_Paul | AD23: 13 | AE23: 0 | AF23: 8 | AG23: 0 | AH23: 3 | AI23: 0
AC24: =+'Notes_and_History_+_Buttons'!A44 -> Lightman_Shaun | AD24: 7 | AE24: 0 | AF24: 7 | AG24: 8 | AH24: 0 | AI24: 2
C25: SWC Number Out | E25: =+COUNT(E6:E23) -> 12 | G25: =+COUNT(G6:G23) -> 12 | I25: =+COUNT(I6:I23) -> 8 | K25: =+COUNT(K6:K23) -> 6 | M25: =+COUNT(M6:M23) -> 8 | AC25: =+'Notes_and_History_+_Buttons'!A45 -> Martin_Angela | AD25: 2 | AE25: 10 | AF25: 5 | AG25: 7 | AH25: 5 | AI25: 8
AC26: =+'Notes_and_History_+_Buttons'!A46 -> Martin_Malcolm | AD26: 1 | AE26: 4 | AF26: 4 | AG26: 6 | AH26: 6 | AI26: 3
C27: Winning score | F27: 25 | H27: 25 | J27: 25 | L27: 25 | N27: 25 | AC27: =+'Notes_and_History_+_Buttons'!A48 -> Michell_Roger | AD27: 0 | AE27: 0 | AF27: 0 | AG27: 0 | AH27: 0 | AI27: 0
C28: Check total positions = | E28: =TEXT(SUM(E6:E23),"0") -> 78 | G28: =TEXT(SUM(G6:G23),"0") -> 78 | I28: =TEXT(SUM(I6:I23),"0") -> 36 | K28: =TEXT(SUM(K6:K23),"0") -> 21 | M28: =TEXT(SUM(M6:M23),"0") -> 36 | AC28: =+'Notes_and_History_+_Buttons'!A49 -> Simmons_Nolan | AD28: 18 | AE28: 11 | AF28: 0 | AG28: 0 | AH28: 0 | AI28: 0
C29: If t = walkers then t*( t+1)/2 = | E29: =+E25*(E25+1)/2 -> 78 | G29: =+G25*(G25+1)/2 -> 78 | I29: =+I25*(I25+1)/2 -> 36 | K29: =+K25*(K25+1)/2 -> 21 | M29: =+M25*(M25+1)/2 -> 36 | AC29: =+'Notes_and_History_+_Buttons'!A50 -> Sliwerski_Trevor | AD29: 0 | AE29: 0 | AF29: 0 | AG29: 0 | AH29: 0 | AI29: 0
C30: Acc Event Number | E30: 283 | G30: 289 | I30: 298 | M30: 372 | AC30: =+'Notes_and_History_+_Buttons'!A52 -> Statter_Ian | AD30: 17 | AE30: 2 | AF30: 0 | AG30: 0 | AH30: 0 | AI30: 0

Sheet Al_2014_15
C2: ALBURY CUP RESULTS 2014/15 | I2: FINAL | M2: As at: | N2: 8 August 2015 | R2: NB Change Ranges Each Year: Table_For_History_Unsorted and Table_For_History_Sorted
R3: Copy of table with columns for history in correct order | Z3: Copy of table (123 copy) rows manually sorted into alphabetical order of names for transfer to history sheet
B4: Albury Cup | C4: Event > | D4: Albury Points Best 4 from 5 | E4: Gazette Cup 4 miles | G4: Alec Potton 7 miles | I4: Christmas Cup 5 km | K4: SWC Track 3 km | M4: SWC Open Track 5 km | O4: Total Points | P4: Races Walked | R4: ALBURY CUP 2014/15 UNSORTED by NAME | S4: Event >> | T4: =+E31 -> 420 | U4: =+G31 -> 432 | V4: =+I31 -> 443 | W4: =+K31 -> 509 | X4: =+M31 -> 533 | Z4: ALBURY CUP 2014/15 SORTED for Lookup | AA4: =+S4 -> Event >> | AB4: 420 | AC4: 432 | AD4: 443 | AE4: 509 | AF4: 533
B5: Rank | C5: Name - date> | D5: after 5 | E5: 28/09/14 | G5: 2/11/14 | I5: 20/12/14 | K5: 03/06/15 | M5: 05/08/15 | O5: 2014/15 | P5: =+O5 -> 2014/15 | R5: NAME | S5: Year Rank | T5: Pos 1 | U5: Pos 2 | V5: Pos 3 | W5: Pos 4 | X5: Pos 5 | Z5: NAME | AA5: Year Rank | AB5: Pos 1 | AC5: Pos 2 | AD5: Pos 3 | AE5: Pos 4 | AF5: Pos 5
B6: 1 | C6: David Crane | D6: =+O6-MIN(F6,H6,J6,L6,N6) -> 50 | E6: 3 | F6: =IF(ISBLANK(E6),0,F$28+1-E6) -> 12 | G6: 1 | H6: =IF(ISBLANK(G6),0,H$28+1-G6) -> 13 | I6: 1 | J6: =IF(ISBLANK(I6),0,J$28+1-I6) -> 14 | K6: 2 | L6: 11 | M6: 2 | N6: =IF(ISBLANK(M6),0,N$28+1-M6) -> 8 | O6: =+F6+H6+J6+L6+N6 -> 58 | P6: =+COUNT(E6,G6,I6,K6,M6) -> 5 | R6: =RIGHT(C6,LEN(C6)-FIND(" ",C6)) & "_" & LEFT(C6,FIND(" ",C6)-1) -> Crane_David | S6: =+B6 -> 1 | T6: =+E6 -> 3 | U6: =+G6 -> 1 | V6: =+I6 -> 1 | W6: =+K6 -> 2 | X6: =+M6 -> 2 | Z6: Brown_Sandra | AA6: 19 | AB6: 0 | AC6: 0 | AD6: 0 | AE6: 0 | AF6: 0
B7: =+B6+1 -> 2 | C7: David Hoben | D7: 39 | F7: 0 | G7: 3 | H7: 11 | I7: 3 | J7: 12 | K7: 4 | L7: 9 | M7: 3 | N7: 7 | O7: 39 | P7: 4 | R7: =RIGHT(C7,LEN(C7)-FIND(" ",C7)) & "_" & LEFT(C7,FIND(" ",C7)-1) -> Hoben_David | S7: =+B7 -> 2 | T7: =+E7 -> 0 | U7: =+G7 -> 3 | V7: =+I7 -> 3 | W7: =+K7 -> 4 | X7: =+M7 -> 3 | Z7: Burnett_Kevin | AA7: 17 | AB7: 0 | AC7: 0 | AD7: 0 | AE7: 0 | AF7: 0
B8: 3 | C8: Dan Maskell | D8: 36 | E8: 2 | F8: 13 | G8: 5 | H8: 9 | I8: 8 | J8: 7 | K8: 6 | L8: 7 | M8: 4 | N8: 6 | O8: 42 | P8: 5 | R8: Maskell_Dan | S8: 3 | T8: 2 | U8: 5 | V8: 8 | W8: 6 | X8: 4 | Z8: Campbell_Sandra | AA8: 13 | AB8: 8 | AC8: 0 | AD8: 0 | AE8: 0 | AF8: 0
B9: 4 | C9: Angela Martin | D9: 31 | E9: 5 | F9: 10 | H9: 0 | I9: 6 | J9: 9 | K9: 1 | L9: 12 | N9: 0 | O9: 31 | P9: 3 | R9: Martin_Angela | S9: 4 | T9: 5 | U9: 0 | V9: 6 | W9: 1 | X9: 0 | Z9: Crane_David | AA9: 1 | AB9: 3 | AC9: 1 | AD9: 1 | AE9: 2 | AF9: 2
B10: 5 | C10: Peter Crane | D10: 31 | E10: 4 | F10: 11 | G10: 2 | H10: 12 | I10: 7 | J10: 8 | L10: 0 | N10: 0 | O10: 31 | P10: 3 | R10: Crane_Peter | S10: 5 | T10: 4 | U10: 2 | V10: 7 | W10: 0 | X10: 0 | Z10: Crane_Peter | AA10: 5 | AB10: 4 | AC10: 2 | AD10: 7 | AE10: 0 | AF10: 0
B11: 6 | C11: Malcolm Martin | D11: 28 | E11: 6 | F11: 9 | H11: 0 | I11: 2 | J11: 13 | K11: 7 | L11: 6 | N11: 0 | O11: 28 | P11: 3 | R11: Martin_Malcolm | S11: 6 | T11: 6 | U11: 0 | V11: 2 | W11: 7 | X11: 0 | Z11: Crilley_Kathy | AA11: 16 | AB11: 0 | AC11: 0 | AD11: 0 | AE11: 0 | AF11: 0
B12: 7 | C12: Mick Harran | D12: 27 | F12: 0 | G12: 6 | H12: 8 | I12: 5 | J12: 10 | L12: 0 | M12: 1 | N12: 9 | O12: 27 | P12: 3 | R12: Harran_Mick | S12: 7 | T12: 0 | U12: 6 | V12: 5 | W12: 0 | X12: 1 | Z12: Delaney_Dave | AA12: 11 | AB12: 7 | AC12: 0 | AD12: 0 | AE12: 0 | AF12: 0
B13: 8 | C13: Paul King | D13: 24 | E13: 1 | F13: 14 | G13: 4 | H13: 10 | J13: 0 | L13: 0 | N13: 0 | O13: 24 | P13: 2 | R13: King_Paul | S13: 8 | T13: 1 | U13: 4 | V13: 0 | W13: 0 | X13: 0 | Z13: Easton_Mark | AA13: 14 | AB13: 0 | AC13: 7 | AD13: 0 | AE13: 0 | AF13: 0
B14: 9 | C14: Chris Flint | D14: 22 | F14: 0 | G14: 8 | H14: 6 | I14: 4 | J14: 11 | L14: 0 | M14: 5 | N14: 5 | O14: 22 | P14: 3 | R14: Flint_Chris | S14: 9 | T14: 0 | U14: 8 | V14: 4 | W14: 0 | X14: 5 | Z14: Flint_Chris | AA14: 9 | AB14: 0 | AC14: 8 | AD14: 4 | AE14: 0 | AF14: 5
B15: 10 | C15: Shaun Lightman | D15: 20 | F15: 0 | H15: 0 | I15: 9 | J15: 6 | K15: 3 | L15: 10 | M15: 6 | N15: 4 | O15: 20 | P15: 3 | R15: Lightman_Shaun | S15: 10 | T15: 0 | U15: 0 | V15: 9 | W15: 3 | X15: 6 | Z15: Gaston_Paul | AA15: 18 | AB15: 0 | AC15: 0 | AD15: 0 | AE15: 0 | AF15: 0
B16: 11 | C16: Dave Delaney | D16: 8 | E16: 7 | F16: 8 | H16: 0 | J16: 0 | L16: 0 | N16: 0 | O16: 8 | P16: 1 | R16: Delaney_Dave | S16: 11 | T16: 7 | U16: 0 | V16: 0 | W16: 0 | X16: 0 | Z16: Harran_Mick | AA16: 7 | AB16: 0 | AC16: 6 | AD16: 5 | AE16: 0 | AF16: 1
B17: 12 | C17: Nolan Simmons | D17: 8 | F17: 0 | H17: 0 | J17: 0 | K17: 5 | L17: 8 | N17: 0 | O17: 8 | P17: 1 | R17: Simmons_Nolan | S17: 12 | T17: 0 | U17: 0 | V17: 0 | W17: 5 | X17: 0 | Z17: Hoben_David | AA17: 2 | AB17: 0 | AC17: 3 | AD17: 3 | AE17: 4 | AF17: 3
B18: 13 | C18: Sandra Campbell | D18: 7 | E18: 8 | F18: 7 | H18: 0 | J18: 0 | L18: 0 | N18: 0 | O18: 7 | P18: 1 | R18: Campbell_Sandra | S18: 13 | T18: 8 | U18: 0 | V18: 0 | W18: 0 | X18: 0 | Z18: King_Paul | AA18: 8 | AB18: 1 | AC18: 4 | AD18: 0 | AE18: 0 | AF18: 0
B19: 14 | C19: Mark Easton | D19: 7 | F19: 0 | G19: 7 | H19: 7 | J19: 0 | L19: 0 | N19: 0 | O19: 7 | P19: 1 | R19: Easton_Mark | S19: 14 | T19: 0 | U19: 7 | V19: 0 | W19: 0 | X19: 0 | Z19: Lightman_Shaun | AA19: 10 | AB19: 0 | AC19: 0 | AD19: 9 | AE19: 3 | AF19: 6
B20: 15 | C20: Trevor Sliwerski | D20: 6 | E20: 9 | F20: 6 | H20: 0 | J20: 0 | L20: 0 | N20: 0 | O20: 6 | P20: 1 | R20: Sliwerski_Trevor | S20: 15 | T20: 9 | U20: 0 | V20: 0 | W20: 0 | X20: 0 | Z20: Martin_Angela | AA20: 4 | AB20: 5 | AC20: 0 | AD20: 6 | AE20: 1 | AF20: 0
B21: 16 | C21: Kathy Crilley | D21: 0 | F21: 0 | H21: 0 | J21: 0 | L21: 0 | N21: 0 | O21: 0 | P21: 0 | R21: Crilley_Kathy | S21: =+B21 -> 16 | T21: =+E21 -> 0 | U21: =+G21 -> 0 | V21: =+I21 -> 0 | W21: =+K21 -> 0 | X21: =+M21 -> 0 | Z21: Martin_Malcolm | AA21: 6 | AB21: 6 | AC21: 0 | AD21: 2 | AE21: 7 | AF21: 0
B22: 17 | C22: Kevin Burnett | D22: 0 | F22: 0 | H22: 0 | J22: 0 | L22: 0 | N22: 0 | O22: 0 | P22: 0 | R22: Burnett_Kevin | S22: 17 | T22: 0 | U22: 0 | V22: 0 | W22: 0 | X22: 0 | Z22: Maskell_Dan | AA22: 3 | AB22: 2 | AC22: 5 | AD22: 8 | AE22: 6 | AF22: 4
B23: 18 | C23: Paul Gaston | D23: 0 | F23: 0 | H23: 0 | J23: 0 | L23: 0 | N23: 0 | O23: 0 | P23: 0 | R23: Gaston_Paul | S23: =+B23 -> 18 | T23: =+E23 -> 0 | U23: =+G23 -> 0 | V23: =+I23 -> 0 | W23: =+K23 -> 0 | X23: =+M23 -> 0 | Z23: Simmons_Nolan | AA23: 12 | AB23: 0 | AC23: 0 | AD23: 0 | AE23: 5 | AF23: 0
B24: 19 | C24: Sandra Brown | D24: 0 | F24: 0 | H24: 0 | J24: 0 | L24: 0 | N24: 0 | O24: 0 | P24: 0 | R24: Brown_Sandra | S24: 19 | T24: 0 | U24: 0 | V24: 0 | W24: 0 | X24: 0 | Z24: Sliwerski_Trevor | AA24: 15 | AB24: 9 | AC24: 0 | AD24: 0 | AE24: 0 | AF24: 0
C26: SWC Number Out | E26: =+COUNT(E6:E24) -> 9 | G26: =+COUNT(G6:G24) -> 8 | I26: =+COUNT(I6:I24) -> 9 | K26: =+COUNT(K6:K24) -> 7 | M26: =+COUNT(M6:M24) -> 6
C28: Winning score | F28: =+ROUND(E26*1.5+0.1,0) -> 14 | H28: =+ROUND(G26*1.5+0.1,0)+1 -> 13 | J28: =+ROUND(I26*1.5+0.1,0) -> 14 | L28: =+ROUND(K26*1.5+0.1,0)+1 -> 12 | N28: =+ROUND(M26*1.5+0.1,0) -> 9
C29: Check total positions = | E29: =TEXT(SUM(E6:E24),"0") -> 45 | G29: =TEXT(SUM(G6:G24),"0") -> 36 | I29: =TEXT(SUM(I6:I24),"0") -> 45 | K29: =TEXT(SUM(K6:K24),"0") -> 28 | M29: =TEXT(SUM(M6:M24),"0") -> 21
C30: If t = walkers then t*( t+1)/2 = | E30: =+E26*(E26+1)/2 -> 45 | G30: =+G26*(G26+1)/2 -> 36 | I30: =+I26*(I26+1)/2 -> 45 | K30: =+K26*(K26+1)/2 -> 28 | M30: =+M26*(M26+1)/2 -> 21
C31: Acc Event Number | E31: 420 | G31: 432 | I31: 443 | K31: 509 | M31: 533
C32: Average points (always t + 1) | E32: =INT(SUM(F6:F24)/E26+0.5) -> 10 | G32: =INT(SUM(H6:H24)/G26+0.5) -> 10 | I32: =INT(SUM(J6:J24)/I26+0.5) -> 10 | K32: 9 | M32: 7
B34: Officials | E34: attend | F34: pts | G34: attend | H34: pts | I34: attend | J34: pts | K34: attend | L34: pts | M34: attend | N34: pts
C35: Peter Selby | E35: 1 | F35: =IF(E35>0,E$32,0) -> 10 | G35: 1 | H35: =IF(G35>0,G$32,0) -> 10 | I35: 1 | J35: =IF(I35>0,I$32,0) -> 10 | K35: 1 | L35: =IF(K35>0,K$32,0) -> 9 | M35: 1 | N35: =IF(M35>0,M$32,0) -> 7
C36: Pam Ficken | E36: 1 | F36: =IF(E36>0,E$32,0) -> 10 | G36: 1 | H36: =IF(G36>0,G$32,0) -> 10 | I36: 1 | J36: =IF(I36>0,I$32,0) -> 10 | K36: 1 | L36: =IF(K36>0,K$32,0) -> 9 | N36: =IF(M36>0,M$32,0) -> 0
C37: Mark Easton | E37: 1 | F37: 10 | H37: 0 | I37: 1 | J37: 10 | L37: 0 | N37: 0
C38: Nolan Simmons | E38: 1 | F38: 10 | G38: 1 | H38: 10 | I38: 1 | J38: 10 | L38: 0 | N38: 0
B39: UNSORTED
C40: David Crane | D40: =+O40-MIN(F40,H40,J40,L40,N40) -> 47 | E40: 3 | F40: =IF(ISBLANK(E40),0,F$28+1-E40) -> 12 | G40: 1 | H40: =IF(ISBLANK(G40),0,H$28+1-G40) -> 13 | I40: 1 | J40: =IF(ISBLANK(I40),0,J$28+1-I40) -> 14 | L40: =IF(ISBLANK(K40),0,L$28+1-K40) -> 0 | M40: 2 | N40: =IF(ISBLANK(M40),0,N$28+1-M40) -> 8 | O40: =+F40+H40+J40+L40+N40 -> 47 | P40: =+COUNT(E40,G40,I40,K40,M40) -> 4
C41: Dan Maskell | D41: 39 | E41: 2 | F41: 13 | G41: 5 | H41: 9 | I41: 8 | J41: 7 | K41: 3 | L41: 10 | M41: 6 | N41: 4 | O41: 43 | P41: 5
C42: David Hoben | D42: 29 | F42: 0 | G42: 3 | H42: 11 | I42: 3 | J42: 12 | L42: 0 | M42: 4 | N42: 6 | O42: 29 | P42: 3
C43: Angela Martin | D43: 28 | E43: 5 | F43: 10 | H43: 0 | I43: 6 | J43: 9 | L43: 0 | M43: 1 | N43: 9 | O43: 28 | P43: 3
C44: Peter Crane | D44: 31 | E44: 4 | F44: 11 | G44: 2 | H44: 12 | I44: 7 | J44: 8 | L44: 0 | N44: 0 | O44: 31 | P44: 3
C45: Chris Flint | D45: 28 | F45: 0 | G45: 8 | H45: 6 | I45: 4 | J45: 11 | K45: 2 | L45: 11 | N45: 0 | O45: 28 | P45: 3
C46: Malcolm Martin | D46: 25 | E46: 6 | F46: 9 | H46: 0 | I46: 2 | J46: 13 | L46: 0 | M46: 7 | N46: 3 | O46: 25 | P46: 3
C47: Paul King | D47: 24 | E47: 1 | F47: 14 | G47: 4 | H47: 10 | J47: 0 | L47: 0 | N47: 0 | O47: 24 | P47: 2
C48: Shaun Lightman | D48: 21 | F48: 0 | H48: 0 | I48: 9 | J48: 6 | K48: 5 | L48: 8 | M48: 3 | N48: 7 | O48: 21 | P48: 3
C49: Peter Selby | D49: 39 | E49: =+IF(E35>0,0,"") -> 0 | F49: =+F35 -> 10 | G49: =+IF(G35>0,0,"") -> 0 | H49: =+H35 -> 10 | I49: =+IF(I35>0,0,"") -> 0 | J49: =+J35 -> 10 | K49: =+IF(K35>0,0,"") -> 0 | L49: =+L35 -> 9 | M49: =+IF(M35>0,0,"") -> 0 | N49: =+N35 -> 7 | O49: 46 | P49: 5
C50: Pam Ficken | D50: 39 | E50: =+IF(E36>0,0,"") -> 0 | F50: =+F36 -> 10 | G50: =+IF(G36>0,0,"") -> 0 | H50: =+H36 -> 10 | I50: =+IF(I36>0,0,"") -> 0 | J50: =+J36 -> 10 | K50: =+IF(K36>0,0,"") -> 0 | L50: =+L36 -> 9 | M50: =+IF(M36>0,0,"") ->  | N50: =+N36 -> 0 | O50: 39 | P50: 4
C51: Mick Harran | D51: 18 | F51: =IF(ISBLANK(E51),0,F$28+1-E51) -> 0 | G51: 6 | H51: =IF(ISBLANK(G51),0,H$28+1-G51) -> 8 | I51: 5 | J51: =IF(ISBLANK(I51),0,J$28+1-I51) -> 10 | L51: =IF(ISBLANK(K51),0,L$28+1-K51) -> 0 | N51: =IF(ISBLANK(M51),0,N$28+1-M51) -> 0 | O51: 18 | P51: 2
C52: Paul Gaston | D52: 12 | F52: =IF(ISBLANK(E52),0,F$28+1-E52) -> 0 | H52: =IF(ISBLANK(G52),0,H$28+1-G52) -> 0 | J52: =IF(ISBLANK(I52),0,J$28+1-I52) -> 0 | K52: 1 | L52: =IF(ISBLANK(K52),0,L$28+1-K52) -> 12 | N52: 0 | O52: 12 | P52: 1
C53: Sandra Campbell | D53: 14 | E53: 8 | F53: =IF(ISBLANK(E53),0,F$28+1-E53) -> 7 | H53: =IF(ISBLANK(G53),0,H$28+1-G53) -> 0 | J53: =IF(ISBLANK(I53),0,J$28+1-I53) -> 0 | K53: 6 | L53: =IF(ISBLANK(K53),0,L$28+1-K53) -> 7 | N53: 0 | O53: 14 | P53: 2
C54: Sandra Brown | D54: 9 | F54: =IF(ISBLANK(E54),0,F$28+1-E54) -> 0 | H54: =IF(ISBLANK(G54),0,H$28+1-G54) -> 0 | J54: =IF(ISBLANK(I54),0,J$28+1-I54) -> 0 | K54: 4 | L54: =IF(ISBLANK(K54),0,L$28+1-K54) -> 9 | N54: 0 | O54: 9 | P54: 1
C55: Nolan Simmons | D55: 35 | E55: =+IF(E38>0,0,"") -> 0 | F55: =+F38 -> 10 | G55: =+IF(G38>0,0,"") -> 0 | H55: =+H38 -> 10 | I55: =+IF(I38>0,0,"") -> 0 | J55: =+J38 -> 10 | K55: =+IF(K38>0,0,"") ->  | L55: =+L38 -> 0 | M55: 5 | N55: 5 | O55: 35 | P55: 4
C56: Dave Delaney | D56: 8 | E56: 7 | F56: =IF(ISBLANK(E56),0,F$28+1-E56) -> 8 | H56: =IF(ISBLANK(G56),0,H$28+1-G56) -> 0 | J56: =IF(ISBLANK(I56),0,J$28+1-I56) -> 0 | L56: =IF(ISBLANK(K56),0,L$28+1-K56) -> 0 | N56: 0 | O56: 8 | P56: 1
C57: Mark Easton | D57: 27 | E57: =+IF(E37>0,0,"") -> 0 | F57: =+F37 -> 10 | G57: 7 | H57: =IF(ISBLANK(G57),0,H$28+1-G57) -> 7 | I57: =+IF(I37>0,0,"") -> 0 | J57: =+J37 -> 10 | K57: =+IF(K37>0,0,"") ->  | L57: =+L37 -> 0 | M57: =+IF(M37>0,0,"") ->  | N57: =+N37 -> 0 | O57: 27 | P57: 3
C58: Trevor Sliwerski | D58: 6 | E58: 9 | F58: =IF(ISBLANK(E58),0,F$28+1-E58) -> 6 | H58: =IF(ISBLANK(G58),0,H$28+1-G58) -> 0 | J58: =IF(ISBLANK(I58),0,J$28+1-I58) -> 0 | L58: =IF(ISBLANK(K58),0,L$28+1-K58) -> 0 | N58: =IF(ISBLANK(M58),0,N$28+1-M58) -> 0 | O58: 6 | P58: 1
C59: Kathy Crilley | D59: 0 | F59: =IF(ISBLANK(E59),0,F$28+1-E59) -> 0 | H59: =IF(ISBLANK(G59),0,H$28+1-G59) -> 0 | J59: =IF(ISBLANK(I59),0,J$28+1-I59) -> 0 | L59: =IF(ISBLANK(K59),0,L$28+1-K59) -> 0 | N59: =IF(ISBLANK(M59),0,N$28+1-M59) -> 0 | O59: 0 | P59: 0
C60: Kevin Burnett | D60: 0 | F60: =IF(ISBLANK(E60),0,F$28+1-E60) -> 0 | H60: =IF(ISBLANK(G60),0,H$28+1-G60) -> 0 | J60: =IF(ISBLANK(I60),0,J$28+1-I60) -> 0 | L60: =IF(ISBLANK(K60),0,L$28+1-K60) -> 0 | N60: =IF(ISBLANK(M60),0,N$28+1-M60) -> 0 | O60: 0 | P60: 0
B61: RESORTED VERSION FOR REVIEW PURPOSES ONLY
B62: Albury Cup | C62: Event > | D62: Albury Points Best 4 from 5 | E62: Gazette Cup 4 miles | G62: Alec Potton 7 miles | I62: Christmas Cup 5 km | K62: SWC Open 10 km | M62: SWC Track 3 km | O62: Total Points | P62: Races Walked
B63: Rank | C63: Name - date> | D63: after 4 | E63: 28/09/14 | G63: 2/11/14 | I63: 20/12/14 | K63: 20/01/15 | M63: 03/06/15 | O63: 2014/15 | P63: =+O63 -> 2014/15
C64: David Crane | D64: 48 | E64: 3 | F64: 12 | G64: 1 | H64: 12 | I64: 1 | J64: 14 | L64: 0 | M64: 2 | N64: 10 | O64: 48 | P64: 4
C65: Peter Selby | D65: 40 | E65: 0 | F65: 10 | G65: 0 | H65: 10 | I65: 0 | J65: 10 | K65: 0 | L65: 10 | N65: 0 | O65: 40 | P65: 4
C66: Pam Ficken | D66: 40 | E66: 0 | F66: 10 | G66: 0 | H66: 10 | I66: 0 | J66: 10 | K66: 0 | L66: 10 | N66: 0 | O66: 40 | P66: 4
C67: Nolan Simmons | D67: 37 | E67: 0 | F67: 10 | G67: 0 | H67: 10 | I67: 0 | J67: 10 | L67: 0 | M67: 5 | N67: 7 | O67: 37 | P67: 4
C68: Dan Maskell | D68: 35 | E68: 2 | F68: 13 | G68: 5 | H68: 8 | I68: 8 | J68: 7 | K68: 3 | L68: 7 | M68: 6 | N68: 6 | O68: 41 | P68: 5
C69: David Hoben | D69: 30 | F69: 0 | G69: 3 | H69: 10 | I69: 3 | J69: 12 | L69: 0 | M69: 4 | N69: 8 | O69: 30 | P69: 3
C70: Angela Martin | D70: 30 | E70: 5 | F70: 10 | H70: 0 | I70: 6 | J70: 9 | L70: 0 | M70: 1 | N70: 11 | O70: 30 | P70: 3
C71: Peter Crane | D71: 30 | E71: 4 | F71: 11 | G71: 2 | H71: 11 | I71: 7 | J71: 8 | L71: 0 | N71: 0 | O71: 30 | P71: 3
C72: Malcolm Martin | D72: 27 | E72: 6 | F72: 9 | H72: 0 | I72: 2 | J72: 13 | L72: 0 | M72: 7 | N72: 5 | O72: 27 | P72: 3
C73: Mark Easton | D73: 26 | E73: 0 | F73: 10 | G73: 7 | H73: 6 | I73: 0 | J73: 10 | L73: 0 | N73: 0 | O73: 26 | P73: 3
C74: Chris Flint | D74: 24 | F74: 0 | G74: 8 | H74: 5 | I74: 4 | J74: 11 | K74: 2 | L74: 8 | N74: 0 | O74: 24 | P74: 3
C75: Paul King | D75: 23 | E75: 1 | F75: 14 | G75: 4 | H75: 9 | J75: 0 | L75: 0 | N75: 0 | O75: 23 | P75: 2
C76: Shaun Lightman | D76: 20 | F76: 0 | H76: 0 | I76: 9 | J76: 6 | K76: 5 | L76: 5 | M76: 3 | N76: 9 | O76: 20 | P76: 3
C77: Mick Harran | D77: 17 | F77: 0 | G77: 6 | H77: 7 | I77: 5 | J77: 10 | L77: 0 | N77: 0 | O77: 17 | P77: 2
C78: Sandra Campbell | D78: 11 | E78: 8 | F78: 7 | H78: 0 | J78: 0 | K78: 6 | L78: 4 | N78: 0 | O78: 11 | P78: 2
C79: Paul Gaston | D79: 9 | F79: 0 | H79: 0 | J79: 0 | K79: 1 | L79: 9 | N79: 0 | O79: 9 | P79: 1
C80: Dave Delaney | D80: 8 | E80: 7 | F80: 8 | H80: 0 | J80: 0 | L80: 0 | N80: 0 | O80: 8 | P80: 1
C81: Sandra Brown | D81: 6 | F81: 0 | H81: 0 | J81: 0 | K81: 4 | L81: 6 | N81: 0 | O81: 6 | P81: 1
C82: Trevor Sliwerski | D82: 6 | E82: 9 | F82: 6 | H82: 0 | J82: 0 | L82: 0 | N82: 0 | O82: 6 | P82: 1
C83: Kathy Crilley | D83: 0 | F83: 0 | H83: 0 | J83: 0 | L83: 0 | N83: 0 | O83: 0 | P83: 0
C84: Kevin Burnett | D84: 0 | F84: 0 | H84: 0 | J84: 0 | L84: 0 | N84: 0 | O84: 0 | P84: 0

Sheet AL_2015_16
C2: ALBURY CUP RESULTS 2015/16 | M2: As at: | N2: 1st June 2016 | R2: NB Change Ranges Each Year: Table_For_History_Unsorted and Table_For_History_Sorted
R3: Copy of table with columns for history in correct order >>>>>>> | Z3: Copy of table (123 copy) rows manually sorted into alphabetical order of names for transfer to history sheet
B4: Albury Cup | C4: Event > | D4: Albury Points Best 4 from 5 | E4: Gazette Cup 4 miles | G4: Alec Potton 7 miles | I4: Christmas Cup 5 km | K4: SWC Track 3 km | M4: SWC Open Track 5 km | O4: Total Points | P4: Races Walked | R4: ALBURY CUP 2015/16 UNSORTED by NAME | S4: Event >> | T4: =+E31 -> 772 | U4: =+G31 -> 878 | V4: =+I31 -> 917 | W4: =+K31 -> 1109 | X4: 806 | Z4: ALBURY CUP 2014/15 SORTED for Lookup | AA4: =+S4 -> Event >> | AB4: =+T4 -> 772 | AC4: =+U4 -> 878 | AD4: 917 | AE4: 1109 | AF4: 806
B5: Rank | C5: Name - date> | D5: after 4 | E5: 27/09/15 | G5: 2015-11-01 | I5: 5/12/15 | K5: 01/06/16 | M5: 27/7/16 | O5: 2015/16 | P5: =+O5 -> 2015/16 | T5: =+E5 -> 27/09/15 | U5: =+G5 -> 2015-11-01 | V5: =+I5 -> 5/12/15 | W5: =+K5 -> 01/06/16 | X5: 2016-07-27
B6: 1 | C6: David Crane | D6: =O6-MIN(F6,H6,J6,L6,N6) -> 40 | E6: 3 | F6: =IF(ISBLANK(E6),0,F$28+1-E6) -> 5 | G6: 1 | H6: =IF(ISBLANK(G6),0,H$28+1-G6) -> 12 | I6: 1 | J6: =IF(ISBLANK(I6),0,J$28+1-I6) -> 12 | L6: =IF(ISBLANK(K6),0,L$28+1-K6) -> 0 | M6: 2 | N6: =IF(ISBLANK(M6),0,N$28+1-M6) -> 11 | O6: =+F6+H6+J6+L6+N6 -> 40 | P6: =+COUNT(E6,G6,I6,K6,M6) -> 4 | R6: NAME | S6: Year Rank | T6: Pos 1 | U6: Pos 2 | V6: Pos 3 | W6: Pos 4 | X6: Pos 5 | Z6: NAME | AA6: Year Rank | AB6: Pos 1 | AC6: Pos 2 | AD6: Pos 3 | AE6: Pos 4 | AF6: Pos 5
B7: =+IF(O7>0,B6+1,"-") -> 2 | C7: Dan Maskell | D7: 32 | E7: 1 | F7: 7 | G7: 5 | H7: 8 | J7: 0 | K7: 3 | L7: 7 | M7: 3 | N7: 10 | O7: 32 | P7: 4 | R7: =RIGHT(C6,LEN(C6)-FIND(" ",C6)) & "_" & LEFT(C6,FIND(" ",C6)-1) -> Crane_David | S7: =+B6 -> 1 | T7: =+E6 -> 3 | U7: =+G6 -> 1 | V7: =+I6 -> 1 | W7: =+K6 -> 0 | X7: =+M6 -> 2 | Z7: Burnett_Kevin | AA7: - | AB7: 0 | AC7: 0 | AD7: 0 | AE7: 0 | AF7: 0
B8: =+IF(O8>0,B7+1,"-") -> 3 | C8: David Hoben | D8: 31 | F8: 0 | G8: 4 | H8: 9 | I8: 5 | J8: 8 | K8: 2 | L8: 8 | M8: 7 | N8: 6 | O8: 31 | P8: 4 | R8: Maskell_Dan | S8: 2 | T8: 1 | U8: 5 | V8: 0 | W8: 3 | X8: 3 | Z8: Campbell_Sandra | AA8: - | AB8: 0 | AC8: 0 | AD8: 0 | AE8: 0 | AF8: 0
B9: 4 | C9: Shaun Lightman | D9: 24 | F9: 0 | G9: 6 | H9: 7 | J9: 0 | K9: 1 | L9: 9 | M9: 5 | N9: 8 | O9: 24 | P9: 3 | R9: Hoben_David | S9: 3 | T9: 0 | U9: 4 | V9: 5 | W9: 2 | X9: 7 | Z9: Crane_David | AA9: 1 | AB9: 3 | AC9: 1 | AD9: 1 | AE9: 0 | AF9: 2
B10: 5 | C10: Malcolm Martin | D10: 19 | F10: 0 | H10: 0 | I10: 3 | J10: 10 | L10: 0 | M10: 4 | N10: 9 | O10: 19 | P10: 2 | R10: Lightman_Shaun | S10: 4 | T10: 0 | U10: 6 | V10: 0 | W10: 1 | X10: 5 | Z10: Crane_Peter | AA10: - | AB10: 0 | AC10: 0 | AD10: 0 | AE10: 0 | AF10: 0
B11: 6 | C11: Dave Delaney | D11: 17 | F11: 0 | G11: 3 | H11: 10 | I11: 6 | J11: 7 | L11: 0 | N11: 0 | O11: 17 | P11: 2 | R11: Martin_Malcolm | S11: 5 | T11: 0 | U11: 0 | V11: 3 | W11: 0 | X11: 4 | Z11: Crane_Steve | AA11: 10 | AB11: 0 | AC11: 0 | AD11: 0 | AE11: 0 | AF11: 1
B12: 7 | C12: Mick Harran | D12: 16 | E12: 4 | F12: 4 | H12: 0 | I12: 7 | J12: 6 | K12: 4 | L12: 6 | N12: 0 | O12: 16 | P12: 3 | R12: Delaney_Dave | S12: 6 | T12: 0 | U12: 3 | V12: 6 | W12: 0 | X12: 0 | Z12: Crilley_Kathy | AA12: - | AB12: 0 | AC12: 0 | AD12: 0 | AE12: 0 | AF12: 0
B13: 8 | C13: Mark Easton | D13: 12 | E13: 2 | F13: 6 | G13: 7 | H13: 6 | J13: 0 | L13: 0 | N13: 0 | O13: 12 | P13: 2 | R13: Harran_Mick | S13: 7 | T13: 4 | U13: 0 | V13: 7 | W13: 4 | X13: 0 | Z13: Delaney_Dave | AA13: 6 | AB13: 0 | AC13: 3 | AD13: 6 | AE13: 0 | AF13: 0
B14: 9 | C14: Chris Flint | D14: 12 | F14: 0 | H14: 0 | J14: 0 | K14: 5 | L14: 5 | M14: 6 | N14: 7 | O14: 12 | P14: 2 | R14: Easton_Mark | S14: 8 | T14: 2 | U14: 7 | V14: 0 | W14: 0 | X14: 0 | Z14: Easton_Mark | AA14: 8 | AB14: 2 | AC14: 7 | AD14: 0 | AE14: 0 | AF14: 0
B15: 10 | C15: Steve Crane | D15: 12 | F15: 0 | H15: 0 | J15: 0 | L15: 0 | M15: 1 | N15: 12 | O15: 12 | P15: 1 | R15: Flint_Chris | S15: 9 | T15: 0 | U15: 0 | V15: 0 | W15: 5 | X15: 6 | Z15: Flint_Chris | AA15: 9 | AB15: 0 | AC15: 0 | AD15: 0 | AE15: 5 | AF15: 6
B16: 11 | C16: Paul King | D16: 11 | F16: 0 | G16: 2 | H16: 11 | J16: 0 | L16: 0 | N16: 0 | O16: 11 | P16: 1 | R16: Crane_Steve | S16: 10 | T16: 0 | U16: 0 | V16: 0 | W16: 0 | X16: 1 | Z16: Gaston_Paul | AA16: 13 | AB16: 0 | AC16: 0 | AD16: 4 | AE16: 0 | AF16: 0
B17: 12 | C17: Angela Martin | D17: =O17-MIN(F17,H17,J17,L17,N17) -> 11 | F17: 0 | H17: 0 | I17: 2 | J17: 11 | L17: 0 | N17: 0 | O17: 11 | P17: 1 | R17: King_Paul | S17: 11 | T17: 0 | U17: 2 | V17: 0 | W17: 0 | X17: 0 | Z17: Harran_Mick | AA17: 7 | AB17: 4 | AC17: 0 | AD17: 7 | AE17: 4 | AF17: 0
B18: 13 | C18: Paul Gaston | D18: =O18-MIN(F18,H18,J18,L18,N18) -> 9 | F18: 0 | H18: 0 | I18: 4 | J18: 9 | L18: 0 | N18: 0 | O18: 9 | P18: 1 | R18: Martin_Angela | S18: 12 | T18: 0 | U18: 0 | V18: 2 | W18: 0 | X18: 0 | Z18: Hoben_David | AA18: 3 | AB18: 0 | AC18: 4 | AD18: 5 | AE18: 2 | AF18: 7
B19: - | C19: Nolan Simmons | D19: 0 | F19: 0 | H19: 0 | J19: 0 | L19: 0 | N19: 0 | O19: 0 | P19: 0 | R19: Gaston_Paul | S19: 13 | T19: 0 | U19: 0 | V19: 4 | W19: 0 | X19: 0 | Z19: King_Paul | AA19: 11 | AB19: 0 | AC19: 2 | AD19: 0 | AE19: 0 | AF19: 0
B20: - | C20: Peter Crane | D20: 0 | F20: 0 | H20: 0 | J20: 0 | L20: 0 | N20: 0 | O20: 0 | P20: 0 | R20: Simmons_Nolan | S20: - | T20: 0 | U20: 0 | V20: 0 | W20: 0 | X20: 0 | Z20: Lightman_Shaun | AA20: 4 | AB20: 0 | AC20: 6 | AD20: 0 | AE20: 1 | AF20: 5
B21: - | C21: Sandra Campbell | D21: 0 | F21: 0 | H21: 0 | J21: 0 | L21: 0 | N21: 0 | O21: 0 | P21: 0 | R21: Crane_Peter | S21: - | T21: 0 | U21: 0 | V21: 0 | W21: 0 | X21: 0 | Z21: Martin_Angela | AA21: 12 | AB21: 0 | AC21: 0 | AD21: 2 | AE21: 0 | AF21: 0
B22: - | C22: Trevor Sliwerski | D22: 0 | F22: 0 | H22: 0 | J22: 0 | L22: 0 | N22: 0 | O22: 0 | P22: 0 | R22: Campbell_Sandra | S22: - | T22: 0 | U22: 0 | V22: 0 | W22: 0 | X22: 0 | Z22: Martin_Malcolm | AA22: 5 | AB22: 0 | AC22: 0 | AD22: 3 | AE22: 0 | AF22: 4
B23: - | C23: Kathy Crilley | D23: 0 | F23: 0 | H23: 0 | J23: 0 | L23: 0 | N23: 0 | O23: 0 | P23: 0 | R23: Sliwerski_Trevor | S23: - | T23: 0 | U23: 0 | V23: 0 | W23: 0 | X23: 0 | Z23: Maskell_Dan | AA23: 2 | AB23: 1 | AC23: 5 | AD23: 0 | AE23: 3 | AF23: 3
B24: - | C24: Kevin Burnett | D24: 0 | F24: 0 | H24: 0 | J24: 0 | L24: 0 | N24: 0 | O24: 0 | P24: 0 | R24: Crilley_Kathy | S24: - | T24: 0 | U24: 0 | V24: 0 | W24: 0 | X24: 0 | Z24: Simmons_Nolan | AA24: - | AB24: 0 | AC24: 0 | AD24: 0 | AE24: 0 | AF24: 0
R25: Burnett_Kevin | S25: - | T25: 0 | U25: 0 | V25: 0 | W25: 0 | X25: 0 | Z25: Sliwerski_Trevor | AA25: - | AB25: 0 | AC25: 0 | AD25: 0 | AE25: 0 | AF25: 0
C26: SWC Number Out | E26: =+COUNT(E6:E24) -> 4 | G26: =+COUNT(G6:G24) -> 7 | I26: =+COUNT(I6:I24) -> 7 | K26: =+COUNT(K6:K24) -> 5 | M26: =+COUNT(M6:M24) -> 7
C28: Winning score | F28: =+ROUND(E26*1.5+1.1,0) -> 7 | H28: =+ROUND(G26*1.5+1.1,0) -> 12 | J28: =+ROUND(I26*1.5+1.1,0) -> 12 | L28: =+ROUND(K26*1.5+1.1,0) -> 9 | N28: =+ROUND(M26*1.5+1.1,0) -> 12
C29: Check total positions = | E29: =TEXT(SUM(E6:E24),"0") -> 10 | G29: =TEXT(SUM(G6:G24),"0") -> 28 | I29: =TEXT(SUM(I6:I24),"0") -> 28 | K29: =TEXT(SUM(K6:K24),"0") -> 15 | M29: =TEXT(SUM(M6:M24),"0") -> 28
C30: If t = walkers then t*( t+1)/2 = | E30: =+E26*(E26+1)/2 -> 10 | G30: =+G26*(G26+1)/2 -> 28 | I30: =+I26*(I26+1)/2 -> 28 | K30: =+K26*(K26+1)/2 -> 15 | M30: =+M26*(M26+1)/2 -> 28
C31: Acc Event Number | E31: 772 | G31: 878 | I31: 917 | K31: 1109
C32: Average points (always t + 2) | E32: =INT(SUM(F6:F24)/E26+0.5) -> 6 | G32: =INT(SUM(H6:H24)/G26+0.5) -> 9 | I32: =INT(SUM(J6:J24)/I26+0.5) -> 9 | K32: 7 | M32: 9
B34: Officials | E34: attend | F34: pts | G34: attend | H34: pts | I34: attend | J34: pts | K34: attend | L34: pts | M34: attend | N34: pts
C35: Peter Selby | F35: =IF(E35>0,E$32,0) -> 0 | G35: 1 | H35: =IF(G35>0,G$32,0) -> 9 | I35: 1 | J35: =IF(I35>0,I$32,0) -> 9 | K35: 1 | L35: =IF(K35>0,K$32,0) -> 7 | M35: 1 | N35: =IF(M35>0,M$32,0) -> 9
C36: Pam Ficken | E36: 1 | F36: =IF(E36>0,E$32,0) -> 6 | G36: 1 | H36: =IF(G36>0,G$32,0) -> 9 | I36: 1 | J36: =IF(I36>0,I$32,0) -> 9 | K36: 1 | L36: =IF(K36>0,K$32,0) -> 7 | N36: =IF(M36>0,M$32,0) -> 0
C37: Mark Easton | E37: 1 | F37: 6 | H37: 0 | I37: 1 | J37: 9 | L37: 0 | N37: 0
C38: Nolan Simmons | E38: 1 | F38: 6 | G38: 1 | H38: 9 | I38: 1 | J38: 9 | L38: 0 | N38: 0
B39: UNSORTED
C40: David Crane | D40: =+O40-MIN(F40,H40,J40,L40,N40) -> 40 | E40: 3 | F40: =IF(ISBLANK(E40),0,F$28+1-E40) -> 5 | G40: 1 | H40: =IF(ISBLANK(G40),0,H$28+1-G40) -> 12 | I40: 1 | J40: =IF(ISBLANK(I40),0,J$28+1-I40) -> 12 | L40: =IF(ISBLANK(K40),0,L$28+1-K40) -> 0 | M40: 2 | N40: =IF(ISBLANK(M40),0,N$28+1-M40) -> 11 | O40: =+F40+H40+J40+L40+N40 -> 40 | P40: =+COUNT(E40,G40,I40,K40,M40) -> 4
C41: Dan Maskell | D41: 28 | E41: 2 | F41: 6 | G41: 5 | H41: 8 | I41: 8 | J41: 5 | K41: 3 | L41: 7 | M41: 6 | N41: 7 | O41: 33 | P41: 5
C42: David Hoben | D42: 29 | F42: 0 | G42: 3 | H42: 10 | I42: 3 | J42: 10 | L42: 0 | M42: 4 | N42: 9 | O42: 29 | P42: 3
C43: Angela Martin | D43: 22 | E43: 5 | F43: 3 | H43: 0 | I43: 6 | J43: 7 | L43: 0 | M43: 1 | N43: 12 | O43: 22 | P43: 3
C44: Peter Crane | D44: 21 | E44: 4 | F44: 4 | G44: 2 | H44: 11 | I44: 7 | J44: 6 | L44: 0 | N44: 0 | O44: 21 | P44: 3
C45: Chris Flint | D45: 22 | F45: 0 | G45: 8 | H45: 5 | I45: 4 | J45: 9 | K45: 2 | L45: 8 | N45: 0 | O45: 22 | P45: 3
C46: Malcolm Martin | D46: 19 | E46: 6 | F46: 2 | H46: 0 | I46: 2 | J46: 11 | L46: 0 | M46: 7 | N46: 6 | O46: 19 | P46: 3
C47: Paul King | D47: 16 | E47: 1 | F47: 7 | G47: 4 | H47: 9 | J47: 0 | L47: 0 | N47: 0 | O47: 16 | P47: 2
C48: Shaun Lightman | D48: 19 | F48: 0 | H48: 0 | I48: 9 | J48: 4 | K48: 5 | L48: 5 | M48: 3 | N48: 10 | O48: 19 | P48: 3
C49: Peter Selby | D49: 34 | E49: =+IF(E35>0,0,"") ->  | F49: =+F35 -> 0 | G49: =+IF(G35>0,0,"") -> 0 | H49: =+H35 -> 9 | I49: =+IF(I35>0,0,"") -> 0 | J49: =+J35 -> 9 | K49: =+IF(K35>0,0,"") -> 0 | L49: =+L35 -> 7 | M49: =+IF(M35>0,0,"") -> 0 | N49: =+N35 -> 9 | O49: 34 | P49: 4
C50: Pam Ficken | D50: 31 | E50: =+IF(E36>0,0,"") -> 0 | F50: =+F36 -> 6 | G50: =+IF(G36>0,0,"") -> 0 | H50: =+H36 -> 9 | I50: =+IF(I36>0,0,"") -> 0 | J50: =+J36 -> 9 | K50: =+IF(K36>0,0,"") -> 0 | L50: =+L36 -> 7 | M50: =+IF(M36>0,0,"") ->  | N50: =+N36 -> 0 | O50: 31 | P50: 4
C51: Mick Harran | D51: 15 | F51: =IF(ISBLANK(E51),0,F$28+1-E51) -> 0 | G51: 6 | H51: =IF(ISBLANK(G51),0,H$28+1-G51) -> 7 | I51: 5 | J51: =IF(ISBLANK(I51),0,J$28+1-I51) -> 8 | L51: =IF(ISBLANK(K51),0,L$28+1-K51) -> 0 | N51: =IF(ISBLANK(M51),0,N$28+1-M51) -> 0 | O51: 15 | P51: 2
C52: Paul Gaston | D52: 9 | F52: =IF(ISBLANK(E52),0,F$28+1-E52) -> 0 | H52: =IF(ISBLANK(G52),0,H$28+1-G52) -> 0 | J52: =IF(ISBLANK(I52),0,J$28+1-I52) -> 0 | K52: 1 | L52: =IF(ISBLANK(K52),0,L$28+1-K52) -> 9 | N52: 0 | O52: 9 | P52: 1
C53: Sandra Campbell | D53: 4 | E53: 8 | F53: =IF(ISBLANK(E53),0,F$28+1-E53) -> 0 | H53: =IF(ISBLANK(G53),0,H$28+1-G53) -> 0 | J53: =IF(ISBLANK(I53),0,J$28+1-I53) -> 0 | K53: 6 | L53: =IF(ISBLANK(K53),0,L$28+1-K53) -> 4 | N53: 0 | O53: 4 | P53: 2
C54: Sandra Brown | D54: 6 | F54: =IF(ISBLANK(E54),0,F$28+1-E54) -> 0 | H54: =IF(ISBLANK(G54),0,H$28+1-G54) -> 0 | J54: =IF(ISBLANK(I54),0,J$28+1-I54) -> 0 | K54: 4 | L54: =IF(ISBLANK(K54),0,L$28+1-K54) -> 6 | N54: 0 | O54: 6 | P54: 1
C55: Nolan Simmons | D55: 32 | E55: =+IF(E38>0,0,"") -> 0 | F55: =+F38 -> 6 | G55: =+IF(G38>0,0,"") -> 0 | H55: =+H38 -> 9 | I55: =+IF(I38>0,0,"") -> 0 | J55: =+J38 -> 9 | K55: =+IF(K38>0,0,"") ->  | L55: =+L38 -> 0 | M55: 5 | N55: 8 | O55: 32 | P55: 4
C56: Dave Delaney | D56: 1 | E56: 7 | F56: =IF(ISBLANK(E56),0,F$28+1-E56) -> 1 | H56: =IF(ISBLANK(G56),0,H$28+1-G56) -> 0 | J56: =IF(ISBLANK(I56),0,J$28+1-I56) -> 0 | L56: =IF(ISBLANK(K56),0,L$28+1-K56) -> 0 | N56: 0 | O56: 1 | P56: 1
C57: Mark Easton | D57: 21 | E57: =+IF(E37>0,0,"") -> 0 | F57: =+F37 -> 6 | G57: 7 | H57: =IF(ISBLANK(G57),0,H$28+1-G57) -> 6 | I57: =+IF(I37>0,0,"") -> 0 | J57: =+J37 -> 9 | K57: =+IF(K37>0,0,"") ->  | L57: =+L37 -> 0 | M57: =+IF(M37>0,0,"") ->  | N57: =+N37 -> 0 | O57: 21 | P57: 3
C58: Trevor Sliwerski | D58: 0 | E58: 9 | F58: =IF(ISBLANK(E58),0,F$28+1-E58) -> -1 | H58: =IF(ISBLANK(G58),0,H$28+1-G58) -> 0 | J58: =IF(ISBLANK(I58),0,J$28+1-I58) -> 0 | L58: =IF(ISBLANK(K58),0,L$28+1-K58) -> 0 | N58: =IF(ISBLANK(M58),0,N$28+1-M58) -> 0 | O58: -1 | P58: 1
C59: Kathy Crilley | D59: 0 | F59: =IF(ISBLANK(E59),0,F$28+1-E59) -> 0 | H59: =IF(ISBLANK(G59),0,H$28+1-G59) -> 0 | J59: =IF(ISBLANK(I59),0,J$28+1-I59) -> 0 | L59: =IF(ISBLANK(K59),0,L$28+1-K59) -> 0 | N59: =IF(ISBLANK(M59),0,N$28+1-M59) -> 0 | O59: 0 | P59: 0
C60: Kevin Burnett | D60: 0 | F60: =IF(ISBLANK(E60),0,F$28+1-E60) -> 0 | H60: =IF(ISBLANK(G60),0,H$28+1-G60) -> 0 | J60: =IF(ISBLANK(I60),0,J$28+1-I60) -> 0 | L60: =IF(ISBLANK(K60),0,L$28+1-K60) -> 0 | N60: =IF(ISBLANK(M60),0,N$28+1-M60) -> 0 | O60: 0 | P60: 0
B61: RESORTED VERSION FOR REVIEW PURPOSES ONLY
B62: Albury Cup | C62: Event > | D62: Albury Points Best 4 from 5 | E62: Gazette Cup 4 miles | G62: Alec Potton 7 miles | I62: Christmas Cup 5 km | K62: SWC Open 10 km | M62: SWC Track 3 km | O62: Total Points | P62: Races Walked
B63: Rank | C63: Name - date> | D63: after 4 | E63: 28/09/14 | G63: 2/11/14 | I63: 20/12/14 | K63: 20/01/15 | M63: 03/06/15 | O63: 2014/15 | P63: =+O63 -> 2014/15
C64: David Crane | D64: 48 | E64: 3 | F64: 12 | G64: 1 | H64: 12 | I64: 1 | J64: 14 | L64: 0 | M64: 2 | N64: 10 | O64: 48 | P64: 4
C65: Peter Selby | D65: 40 | E65: 0 | F65: 10 | G65: 0 | H65: 10 | I65: 0 | J65: 10 | K65: 0 | L65: 10 | N65: 0 | O65: 40 | P65: 4
C66: Pam Ficken | D66: 40 | E66: 0 | F66: 10 | G66: 0 | H66: 10 | I66: 0 | J66: 10 | K66: 0 | L66: 10 | N66: 0 | O66: 40 | P66: 4
C67: Nolan Simmons | D67: 37 | E67: 0 | F67: 10 | G67: 0 | H67: 10 | I67: 0 | J67: 10 | L67: 0 | M67: 5 | N67: 7 | O67: 37 | P67: 4
C68: Dan Maskell | D68: 35 | E68: 2 | F68: 13 | G68: 5 | H68: 8 | I68: 8 | J68: 7 | K68: 3 | L68: 7 | M68: 6 | N68: 6 | O68: 41 | P68: 5
C69: David Hoben | D69: 30 | F69: 0 | G69: 3 | H69: 10 | I69: 3 | J69: 12 | L69: 0 | M69: 4 | N69: 8 | O69: 30 | P69: 3
C70: Angela Martin | D70: 30 | E70: 5 | F70: 10 | H70: 0 | I70: 6 | J70: 9 | L70: 0 | M70: 1 | N70: 11 | O70: 30 | P70: 3
C71: Peter Crane | D71: 30 | E71: 4 | F71: 11 | G71: 2 | H71: 11 | I71: 7 | J71: 8 | L71: 0 | N71: 0 | O71: 30 | P71: 3
C72: Malcolm Martin | D72: 27 | E72: 6 | F72: 9 | H72: 0 | I72: 2 | J72: 13 | L72: 0 | M72: 7 | N72: 5 | O72: 27 | P72: 3
C73: Mark Easton | D73: 26 | E73: 0 | F73: 10 | G73: 7 | H73: 6 | I73: 0 | J73: 10 | L73: 0 | N73: 0 | O73: 26 | P73: 3
C74: Chris Flint | D74: 24 | F74: 0 | G74: 8 | H74: 5 | I74: 4 | J74: 11 | K74: 2 | L74: 8 | N74: 0 | O74: 24 | P74: 3
C75: Paul King | D75: 23 | E75: 1 | F75: 14 | G75: 4 | H75: 9 | J75: 0 | L75: 0 | N75: 0 | O75: 23 | P75: 2
C76: Shaun Lightman | D76: 20 | F76: 0 | H76: 0 | I76: 9 | J76: 6 | K76: 5 | L76: 5 | M76: 3 | N76: 9 | O76: 20 | P76: 3
C77: Mick Harran | D77: 17 | F77: 0 | G77: 6 | H77: 7 | I77: 5 | J77: 10 | L77: 0 | N77: 0 | O77: 17 | P77: 2
C78: Sandra Campbell | D78: 11 | E78: 8 | F78: 7 | H78: 0 | J78: 0 | K78: 6 | L78: 4 | N78: 0 | O78: 11 | P78: 2
C79: Paul Gaston | D79: 9 | F79: 0 | H79: 0 | J79: 0 | K79: 1 | L79: 9 | N79: 0 | O79: 9 | P79: 1
C80: Dave Delaney | D80: 8 | E80: 7 | F80: 8 | H80: 0 | J80: 0 | L80: 0 | N80: 0 | O80: 8 | P80: 1
C81: Sandra Brown | D81: 6 | F81: 0 | H81: 0 | J81: 0 | K81: 4 | L81: 6 | N81: 0 | O81: 6 | P81: 1
C82: Trevor Sliwerski | D82: 6 | E82: 9 | F82: 6 | H82: 0 | J82: 0 | L82: 0 | N82: 0 | O82: 6 | P82: 1
C83: Kathy Crilley | D83: 0 | F83: 0 | H83: 0 | J83: 0 | L83: 0 | N83: 0 | O83: 0 | P83: 0
C84: Kevin Burnett | D84: 0 | F84: 0 | H84: 0 | J84: 0 | L84: 0 | N84: 0 | O84: 0 | P84: 0

Sheet AL_2016_17
C2: ALBURY CUP RESULTS 2016/17 | G2: FINAL VERSION | M2: As at: | N2: 19th July 2017 | R2: NB Change Ranges Each Year: Table_For_History_Unsorted and Table_For_History_Sorted
F3: Race handicap position and Albury Cup points | R3: LINKED Copy of table with columns for history in correct order >>>>>>> | Z3: MANUAL Copy of table (123 copy) rows sorted into alphabetical order of names for transfer to history sheet
B4: Albury Cup | C4: Event > | D4: Albury Points Best 4 from 5 | E4: Alec Potton 7 miles | G4: Christmas Cup 5 km | I4: SWC Track 3km | K4: Gazette Cup 4 miles | M4: SWC Open 5km | O4: Total Points | P4: Races Walked | R4: ALBURY CUP 2016/17 UNSORTED by NAME | S4: Event >> | T4: =+E32 -> 878 | U4: =+G32 -> 917 | V4: =+I32 -> 1109 | W4: 1123 | X4: 1144 | Z4: ALBURY CUP 2016/17 SORTED by NAME | AA4: Event >> | AB4: 878 | AC4: 917 | AD4: 1109 | AE4: 1123 | AF4: 1144
B5: Rank | C5: Name - date> | D5: after 5 | E5: 2016-11-06 | G5: 2016-12-03 | I5: 2017-05-31 | K5: 2017-06-28 | M5: 2017-07-19 | O5: 2016/17 | P5: =+O5 -> 2016/17 | T5: =+E5 -> 2016-11-06 | U5: =+G5 -> 2016-12-03 | V5: =+I5 -> 2017-05-31 | W5: =+K5 -> 2017-06-28 | X5: =+M5 -> 2017-07-19 | AB5: 2016-11-06 | AC5: 2016-12-03 | AD5: 2017-05-31 | AE5: 2017-06-28 | AF5: 2017-07-19
B6: 1 | C6: David Hoben | D6: =O6-MIN(F6,H6,J6,L6,N6) -> 27 | E6: 1 | F6: =IF(ISBLANK(E6),0,F$29+1-E6) -> 13 | G6: 6 | H6: =IF(ISBLANK(G6),0,H$29+1-G6) -> 5 | I6: 2 | J6: =IF(ISBLANK(I6),0,J$29+1-I6) -> 5 | K6: 3 | L6: =IF(ISBLANK(K6),0,L$29+1-K6) -> 4 | N6: =IF(ISBLANK(M6),0,N$29+1-M6) -> 0 | O6: =+F6+H6+J6+L6+N6 -> 27 | P6: =+COUNT(E6,G6,I6,K6,M6) -> 4 | R6: NAME | S6: Year Rank | T6: Pos 1 | U6: Pos 2 | V6: Pos 3 | W6: Pos 4 | X6: Pos 5 | Z6: NAME | AA6: Year Rank | AB6: Pos 1 | AC6: Pos 2 | AD6: Pos 3 | AE6: Pos 4 | AF6: Pos 5
B7: 2 | C7: Dave Delaney | D7: 25 | E7: 3 | F7: 11 | G7: 3 | H7: 8 | J7: 0 | K7: 1 | L7: 6 | N7: 0 | O7: 25 | P7: 3 | R7: =RIGHT(C6,LEN(C6)-FIND(" ",C6)) & "_" & LEFT(C6,FIND(" ",C6)-1) -> Hoben_David | S7: =IF(D6>0,+B6,0) -> 1 | T7: =+E6 -> 1 | U7: =+G6 -> 6 | V7: =+I6 -> 2 | W7: =+K6 -> 3 | X7: =+M6 -> 0 | Z7: Burnett_Kevin | AA7: 11 | AB7: 0 | AC7: 0 | AD7: 3 | AE7: 0 | AF7: 0
B8: =3 | C8: Angela Martin | D8: 24 | E8: 2 | F8: 12 | G8: 5 | H8: 6 | J8: 0 | L8: 0 | M8: 1 | N8: 6 | O8: 24 | P8: 3 | R8: Delaney_Dave | S8: =IF(D7>0,+B7,0) -> 2 | T8: 3 | U8: 3 | V8: 0 | W8: 1 | X8: 0 | Z8: Campbell_Sandra | AA8: 0 | AB8: 0 | AC8: 0 | AD8: 0 | AE8: 0 | AF8: 0
B9: =3 | C9: David Crane | D9: 24 | E9: 5 | F9: 9 | G9: 1 | H9: 10 | J9: 0 | L9: 0 | M9: 2 | N9: 5 | O9: 24 | P9: 3 | R9: Martin_Angela | S9: =3 | T9: 2 | U9: 5 | V9: 0 | W9: 0 | X9: 1 | Z9: Crane_David | AA9: 4 | AB9: 5 | AC9: 1 | AD9: 0 | AE9: 0 | AF9: 2
B10: 5 | C10: Malcolm Martin | D10: 19 | E10: 8 | F10: 6 | G10: 2 | H10: 9 | J10: 0 | L10: 0 | M10: 3 | N10: 4 | O10: 19 | P10: 3 | R10: Crane_David | S10: =3 | T10: 5 | U10: 1 | V10: 0 | W10: 0 | X10: 2 | Z10: Crane_Peter | AA10: 0 | AB10: 0 | AC10: 0 | AD10: 0 | AE10: 0 | AF10: 0
B11: 6 | C11: Chris Flint | D11: 13 | F11: 0 | G11: 4 | H11: 7 | I11: 1 | J11: 6 | L11: 0 | N11: 0 | O11: 13 | P11: 2 | R11: Martin_Malcolm | S11: 5 | T11: 8 | U11: 2 | V11: 0 | W11: 0 | X11: 3 | Z11: Crane_Steve | AA11: 0 | AB11: 0 | AC11: 0 | AD11: 0 | AE11: 0 | AF11: 0
B12: 7 | C12: Mick Harran | D12: 10 | E12: 4 | F12: 10 | H12: 0 | J12: 0 | L12: 0 | N12: 0 | O12: 10 | P12: 1 | R12: Flint_Chris | S12: 6 | T12: 0 | U12: 4 | V12: 1 | W12: 0 | X12: 0 | Z12: Crilley_Kathy | AA12: 0 | AB12: 0 | AC12: 0 | AD12: 0 | AE12: 0 | AF12: 0
B13: 8 | C13: Paul King | D13: 8 | E13: 6 | F13: 8 | H13: 0 | J13: 0 | L13: 0 | N13: 0 | O13: 8 | P13: 1 | R13: Harran_Mick | S13: 7 | T13: 4 | U13: 0 | V13: 0 | W13: 0 | X13: 0 | Z13: Delaney_Dave | AA13: 2 | AB13: 3 | AC13: 3 | AD13: 0 | AE13: 1 | AF13: 0
B14: 9 | C14: Dan Maskell | D14: 7 | E14: 7 | F14: 7 | H14: 0 | J14: 0 | L14: 0 | N14: 0 | O14: 7 | P14: 1 | R14: King_Paul | S14: 8 | T14: 6 | U14: 0 | V14: 0 | W14: 0 | X14: 0 | Z14: Easton_Mark | AA14: 0 | AB14: 0 | AC14: 0 | AD14: 0 | AE14: 0 | AF14: 0
B15: 10 | C15: Roger Michell | D15: 5 | F15: 0 | H15: 0 | J15: 0 | K15: 2 | L15: 5 | N15: 0 | O15: 5 | P15: 1 | R15: Maskell_Dan | S15: 9 | T15: 7 | U15: 0 | V15: 0 | W15: 0 | X15: 0 | Z15: Flint_Chris | AA15: 6 | AB15: 0 | AC15: 4 | AD15: 1 | AE15: 0 | AF15: 0
B16: 11 | C16: Kevin Burnett | D16: 4 | F16: 0 | H16: 0 | I16: 3 | J16: 4 | L16: 0 | N16: 0 | O16: 4 | P16: 1 | R16: Michell_Roger | S16: 10 | T16: 0 | U16: 0 | V16: 0 | W16: 2 | X16: 0 | Z16: Gaston_Paul | AA16: 0 | AB16: 0 | AC16: 0 | AD16: 0 | AE16: 0 | AF16: 0
B17: 12 | C17: Kathy Crilley | D17: 0 | F17: 0 | H17: 0 | J17: 0 | L17: 0 | N17: 0 | O17: 0 | P17: 0 | R17: Burnett_Kevin | S17: 11 | T17: 0 | U17: 0 | V17: 3 | W17: 0 | X17: 0 | Z17: Harran_Mick | AA17: 7 | AB17: 4 | AC17: 0 | AD17: 0 | AE17: 0 | AF17: 0
B18: 13 | C18: Mark Easton | D18: 0 | F18: 0 | H18: 0 | J18: 0 | L18: 0 | N18: 0 | O18: 0 | P18: 0 | R18: Crilley_Kathy | S18: 0 | T18: 0 | U18: 0 | V18: 0 | W18: 0 | X18: 0 | Z18: Hoben_David | AA18: 1 | AB18: 1 | AC18: 6 | AD18: 2 | AE18: 3 | AF18: 0
B19: 14 | C19: Nolan Simmons | D19: 0 | F19: 0 | H19: 0 | J19: 0 | L19: 0 | N19: 0 | O19: 0 | P19: 0 | R19: =RIGHT(C18,LEN(C18)-FIND(" ",C18)) & "_" & LEFT(C18,FIND(" ",C18)-1) -> Easton_Mark | S19: 0 | T19: =+E18 -> 0 | U19: =+G18 -> 0 | V19: =+I18 -> 0 | W19: =+K18 -> 0 | X19: =+M18 -> 0 | Z19: King_Paul | AA19: 8 | AB19: 6 | AC19: 0 | AD19: 0 | AE19: 0 | AF19: 0
B20: 15 | C20: Paul Gaston | D20: 0 | F20: 0 | H20: 0 | J20: 0 | L20: 0 | N20: 0 | O20: 0 | P20: 0 | R20: Simmons_Nolan | S20: 0 | T20: 0 | U20: 0 | V20: 0 | W20: 0 | X20: 0 | Z20: Lightman_Shaun | AA20: 0 | AB20: 0 | AC20: 0 | AD20: 0 | AE20: 0 | AF20: 0
B21: 16 | C21: Peter Crane | D21: 0 | F21: 0 | H21: 0 | J21: 0 | L21: 0 | N21: 0 | O21: 0 | P21: 0 | R21: Gaston_Paul | S21: 0 | T21: 0 | U21: 0 | V21: 0 | W21: 0 | X21: 0 | Z21: Martin_Angela | AA21: 3 | AB21: 2 | AC21: 5 | AD21: 0 | AE21: 0 | AF21: 1
B22: 17 | C22: Sandra Campbell | D22: 0 | F22: 0 | H22: 0 | J22: 0 | L22: 0 | N22: 0 | O22: 0 | P22: 0 | R22: Crane_Peter | S22: 0 | T22: 0 | U22: 0 | V22: 0 | W22: 0 | X22: 0 | Z22: Martin_Malcolm | AA22: 5 | AB22: 8 | AC22: 2 | AD22: 0 | AE22: 0 | AF22: 3
B23: 18 | C23: Shaun Lightman | D23: 0 | F23: 0 | H23: 0 | J23: 0 | L23: 0 | N23: 0 | O23: 0 | P23: 0 | R23: Campbell_Sandra | S23: 0 | T23: 0 | U23: 0 | V23: 0 | W23: 0 | X23: 0 | Z23: Maskell_Dan | AA23: 9 | AB23: 7 | AC23: 0 | AD23: 0 | AE23: 0 | AF23: 0
B24: 19 | C24: Steve Crane | D24: 0 | F24: 0 | H24: 0 | J24: 0 | L24: 0 | N24: 0 | O24: 0 | P24: 0 | R24: Lightman_Shaun | S24: 0 | T24: 0 | U24: 0 | V24: 0 | W24: 0 | X24: 0 | Z24: Michell_Roger | AA24: 10 | AB24: 0 | AC24: 0 | AD24: 0 | AE24: 2 | AF24: 0
B25: 20 | C25: Trevor Sliwerski | D25: 0 | F25: 0 | H25: 0 | J25: 0 | L25: 0 | N25: 0 | O25: 0 | P25: 0 | R25: Crane_Steve | S25: 0 | T25: 0 | U25: 0 | V25: 0 | W25: 0 | X25: 0 | Z25: Simmons_Nolan | AA25: 0 | AB25: 0 | AC25: 0 | AD25: 0 | AE25: 0 | AF25: 0
P26: At least 1 | R26: Sliwerski_Trevor | S26: 0 | T26: 0 | U26: 0 | V26: 0 | W26: 0 | X26: 0 | Z26: Sliwerski_Trevor | AA26: 0 | AB26: 0 | AC26: 0 | AD26: 0 | AE26: 0 | AF26: 0
C27: SWC Number Out | E27: =+COUNT(E6:E25) -> 8 | G27: =+COUNT(G6:G25) -> 6 | I27: =+COUNT(I6:I25) -> 3 | K27: =+COUNT(K6:K25) -> 3 | M27: =+COUNT(M6:M25) -> 3 | P27: 11
C29: Winning score | F29: =+ROUND(E27*1.5+1.1,0) -> 13 | H29: =+ROUND(G27*1.5+1.1,0) -> 10 | J29: =+ROUND(I27*1.5+1.1,0) -> 6 | L29: =+ROUND(K27*1.5+1.1,0) -> 6 | N29: =+ROUND(M27*1.5+1.1,0) -> 6
C30: Check total positions = | E30: =TEXT(SUM(E6:E25),"0") -> 36 | G30: =TEXT(SUM(G6:G25),"0") -> 21 | I30: =TEXT(SUM(I6:I25),"0") -> 6 | K30: =TEXT(SUM(K6:K25),"0") -> 6 | M30: =TEXT(SUM(M6:M25),"0") -> 6
C31: If t = walkers then t*( t+1)/2 = | E31: =+E27*(E27+1)/2 -> 36 | G31: =+G27*(G27+1)/2 -> 21 | I31: =+I27*(I27+1)/2 -> 6 | K31: =+K27*(K27+1)/2 -> 6 | M31: =+M27*(M27+1)/2 -> 6
C32: Actual Event Number | E32: 878 | G32: 917 | I32: 1109
C33: Average points (always t + 2) | E33: =INT(SUM(F6:F25)/E27+0.5) -> 10 | G33: =INT(SUM(H6:H25)/G27+0.5) -> 8 | I33: =INT(SUM(J6:J25)/I27+0.5) -> 5 | K33: 5 | M33: 5
B35: Officials | E35: attend | F35: pts | G35: attend | H35: pts | I35: attend | J35: pts | K35: attend | L35: pts | M35: attend | N35: pts
C36: Peter Selby | E36: 1 | F36: =IF(E36>0,E$33,0) -> 10 | G36: 1 | H36: =IF(G36>0,G$33,0) -> 8 | I36: 1 | J36: =IF(I36>0,I$33,0) -> 5 | K36: 1 | L36: =IF(K36>0,K$33,0) -> 5 | M36: 1 | N36: =IF(M36>0,M$33,0) -> 5
C37: Pam Ficken | E37: 1 | F37: =IF(E37>0,E$33,0) -> 10 | G37: 1 | H37: =IF(G37>0,G$33,0) -> 8 | I37: 1 | J37: =IF(I37>0,I$33,0) -> 5 | K37: 1 | L37: =IF(K37>0,K$33,0) -> 5 | N37: =IF(M37>0,M$33,0) -> 0
C38: Mark Easton | E38: 0 | F38: 0 | H38: 0 | I38: 1 | J38: 5 | L38: 0 | N38: 0
C39: Nolan Simmons | E39: 1 | F39: 10 | G39: 1 | H39: 8 | I39: 1 | J39: 5 | L39: 0 | N39: 0
B40: UNSORTED
C41: David Crane | D41: =+O41-MIN(F41,H41,J41,L41,N41) -> 32 | E41: 3 | F41: =IF(ISBLANK(E41),0,F$29+1-E41) -> 11 | G41: 1 | H41: =IF(ISBLANK(G41),0,H$29+1-G41) -> 10 | I41: 1 | J41: =IF(ISBLANK(I41),0,J$29+1-I41) -> 6 | L41: =IF(ISBLANK(K41),0,L$29+1-K41) -> 0 | M41: 2 | N41: =IF(ISBLANK(M41),0,N$29+1-M41) -> 5 | O41: =+F41+H41+J41+L41+N41 -> 32 | P41: =+COUNT(E41,G41,I41,K41,M41) -> 4
C42: Dan Maskell | D42: 23 | E42: 2 | F42: 12 | G42: 5 | H42: 6 | I42: 8 | J42: -1 | K42: 3 | L42: 4 | M42: 6 | N42: 1 | O42: 22 | P42: 5
C43: David Hoben | D43: 15 | F43: 0 | G43: 3 | H43: 8 | I43: 3 | J43: 4 | L43: 0 | M43: 4 | N43: 3 | O43: 15 | P43: 3
C44: Angela Martin | D44: 16 | E44: 5 | F44: 9 | H44: 0 | I44: 6 | J44: 1 | L44: 0 | M44: 1 | N44: 6 | O44: 16 | P44: 3
C45: Peter Crane | D45: 19 | E45: 4 | F45: 10 | G45: 2 | H45: 9 | I45: 7 | J45: 0 | L45: 0 | N45: 0 | O45: 19 | P45: 3
C46: Chris Flint | D46: 11 | F46: 0 | G46: 8 | H46: 3 | I46: 4 | J46: 3 | K46: 2 | L46: 5 | N46: 0 | O46: 11 | P46: 3
C47: Malcolm Martin | D47: 13 | E47: 6 | F47: 8 | H47: 0 | I47: 2 | J47: 5 | L47: 0 | M47: 7 | N47: 0 | O47: 13 | P47: 3
C48: Paul King | D48: 20 | E48: 1 | F48: 13 | G48: 4 | H48: 7 | J48: 0 | L48: 0 | N48: 0 | O48: 20 | P48: 2
C49: Shaun Lightman | D49: 6 | F49: 0 | H49: 0 | I49: 9 | J49: -2 | K49: 5 | L49: 2 | M49: 3 | N49: 4 | O49: 4 | P49: 3
C50: Peter Selby | D50: 28 | E50: =+IF(E36>0,0,"") -> 0 | F50: =+F36 -> 10 | G50: =+IF(G36>0,0,"") -> 0 | H50: =+H36 -> 8 | I50: =+IF(I36>0,0,"") -> 0 | J50: =+J36 -> 5 | K50: =+IF(K36>0,0,"") -> 0 | L50: =+L36 -> 5 | M50: =+IF(M36>0,0,"") -> 0 | N50: =+N36 -> 5 | O50: 33 | P50: 5
C51: Pam Ficken | D51: 28 | E51: =+IF(E37>0,0,"") -> 0 | F51: =+F37 -> 10 | G51: =+IF(G37>0,0,"") -> 0 | H51: =+H37 -> 8 | I51: =+IF(I37>0,0,"") -> 0 | J51: =+J37 -> 5 | K51: =+IF(K37>0,0,"") -> 0 | L51: =+L37 -> 5 | M51: =+IF(M37>0,0,"") ->  | N51: =+N37 -> 0 | O51: 28 | P51: 4
C52: Mick Harran | D52: 7 | F52: =IF(ISBLANK(E52),0,F$29+1-E52) -> 0 | G52: 6 | H52: =IF(ISBLANK(G52),0,H$29+1-G52) -> 5 | I52: 5 | J52: =IF(ISBLANK(I52),0,J$29+1-I52) -> 2 | L52: =IF(ISBLANK(K52),0,L$29+1-K52) -> 0 | N52: =IF(ISBLANK(M52),0,N$29+1-M52) -> 0 | O52: 7 | P52: 2
C53: Paul Gaston | D53: 6 | F53: =IF(ISBLANK(E53),0,F$29+1-E53) -> 0 | H53: =IF(ISBLANK(G53),0,H$29+1-G53) -> 0 | J53: =IF(ISBLANK(I53),0,J$29+1-I53) -> 0 | K53: 1 | L53: =IF(ISBLANK(K53),0,L$29+1-K53) -> 6 | N53: 0 | O53: 6 | P53: 1
C54: Sandra Campbell | D54: 7 | E54: 8 | F54: =IF(ISBLANK(E54),0,F$29+1-E54) -> 6 | H54: =IF(ISBLANK(G54),0,H$29+1-G54) -> 0 | J54: =IF(ISBLANK(I54),0,J$29+1-I54) -> 0 | K54: 6 | L54: =IF(ISBLANK(K54),0,L$29+1-K54) -> 1 | N54: 0 | O54: 7 | P54: 2
C55: Sandra Brown | D55: 3 | F55: =IF(ISBLANK(E55),0,F$29+1-E55) -> 0 | H55: =IF(ISBLANK(G55),0,H$29+1-G55) -> 0 | J55: =IF(ISBLANK(I55),0,J$29+1-I55) -> 0 | K55: 4 | L55: =IF(ISBLANK(K55),0,L$29+1-K55) -> 3 | N55: 0 | O55: 3 | P55: 1
C56: Nolan Simmons | D56: 25 | E56: =+IF(E39>0,0,"") -> 0 | F56: =+F39 -> 10 | G56: =+IF(G39>0,0,"") -> 0 | H56: =+H39 -> 8 | I56: =+IF(I39>0,0,"") -> 0 | J56: =+J39 -> 5 | K56: =+IF(K39>0,0,"") ->  | L56: =+L39 -> 0 | M56: 5 | N56: 2 | O56: 25 | P56: 4
C57: Dave Delaney | D57: 7 | E57: 7 | F57: =IF(ISBLANK(E57),0,F$29+1-E57) -> 7 | H57: =IF(ISBLANK(G57),0,H$29+1-G57) -> 0 | J57: =IF(ISBLANK(I57),0,J$29+1-I57) -> 0 | L57: =IF(ISBLANK(K57),0,L$29+1-K57) -> 0 | N57: 0 | O57: 7 | P57: 1
C58: Mark Easton | D58: 9 | E58: =+IF(E38>0,0,"") ->  | F58: =+F38 -> 0 | G58: 7 | H58: =IF(ISBLANK(G58),0,H$29+1-G58) -> 4 | I58: =+IF(I38>0,0,"") -> 0 | J58: =+J38 -> 5 | K58: =+IF(K38>0,0,"") ->  | L58: =+L38 -> 0 | M58: =+IF(M38>0,0,"") ->  | N58: =+N38 -> 0 | O58: 9 | P58: 2
C59: Trevor Sliwerski | D59: 5 | E59: 9 | F59: =IF(ISBLANK(E59),0,F$29+1-E59) -> 5 | H59: =IF(ISBLANK(G59),0,H$29+1-G59) -> 0 | J59: =IF(ISBLANK(I59),0,J$29+1-I59) -> 0 | L59: =IF(ISBLANK(K59),0,L$29+1-K59) -> 0 | N59: =IF(ISBLANK(M59),0,N$29+1-M59) -> 0 | O59: 5 | P59: 1
C60: Kathy Crilley | D60: 0 | F60: =IF(ISBLANK(E60),0,F$29+1-E60) -> 0 | H60: =IF(ISBLANK(G60),0,H$29+1-G60) -> 0 | J60: =IF(ISBLANK(I60),0,J$29+1-I60) -> 0 | L60: =IF(ISBLANK(K60),0,L$29+1-K60) -> 0 | N60: =IF(ISBLANK(M60),0,N$29+1-M60) -> 0 | O60: 0 | P60: 0
C61: Kevin Burnett | D61: 0 | F61: =IF(ISBLANK(E61),0,F$29+1-E61) -> 0 | H61: =IF(ISBLANK(G61),0,H$29+1-G61) -> 0 | J61: =IF(ISBLANK(I61),0,J$29+1-I61) -> 0 | L61: =IF(ISBLANK(K61),0,L$29+1-K61) -> 0 | N61: =IF(ISBLANK(M61),0,N$29+1-M61) -> 0 | O61: 0 | P61: 0
B62: RESORTED VERSION FOR REVIEW PURPOSES ONLY
B63: Albury Cup | C63: Event > | D63: Albury Points Best 4 from 5 | E63: Gazette Cup 4 miles | G63: Alec Potton 7 miles | I63: Christmas Cup 5 km | K63: SWC Open 10 km | M63: SWC Track 3 km | O63: Total Points | P63: Races Walked
B64: Rank | C64: Name - date> | D64: after 4 | E64: 28/09/14 | G64: 2/11/14 | I64: 20/12/14 | K64: 20/01/15 | M64: 03/06/15 | O64: 2014/15 | P64: =+O64 -> 2014/15
C65: David Crane | D65: 48 | E65: 3 | F65: 12 | G65: 1 | H65: 12 | I65: 1 | J65: 14 | L65: 0 | M65: 2 | N65: 10 | O65: 48 | P65: 4
C66: Peter Selby | D66: 40 | E66: 0 | F66: 10 | G66: 0 | H66: 10 | I66: 0 | J66: 10 | K66: 0 | L66: 10 | N66: 0 | O66: 40 | P66: 4
C67: Pam Ficken | D67: 40 | E67: 0 | F67: 10 | G67: 0 | H67: 10 | I67: 0 | J67: 10 | K67: 0 | L67: 10 | N67: 0 | O67: 40 | P67: 4
C68: Nolan Simmons | D68: 37 | E68: 0 | F68: 10 | G68: 0 | H68: 10 | I68: 0 | J68: 10 | L68: 0 | M68: 5 | N68: 7 | O68: 37 | P68: 4
C69: Dan Maskell | D69: 35 | E69: 2 | F69: 13 | G69: 5 | H69: 8 | I69: 8 | J69: 7 | K69: 3 | L69: 7 | M69: 6 | N69: 6 | O69: 41 | P69: 5
C70: David Hoben | D70: 30 | F70: 0 | G70: 3 | H70: 10 | I70: 3 | J70: 12 | L70: 0 | M70: 4 | N70: 8 | O70: 30 | P70: 3
C71: Angela Martin | D71: 30 | E71: 5 | F71: 10 | H71: 0 | I71: 6 | J71: 9 | L71: 0 | M71: 1 | N71: 11 | O71: 30 | P71: 3
C72: Peter Crane | D72: 30 | E72: 4 | F72: 11 | G72: 2 | H72: 11 | I72: 7 | J72: 8 | L72: 0 | N72: 0 | O72: 30 | P72: 3
C73: Malcolm Martin | D73: 27 | E73: 6 | F73: 9 | H73: 0 | I73: 2 | J73: 13 | L73: 0 | M73: 7 | N73: 5 | O73: 27 | P73: 3
C74: Mark Easton | D74: 26 | E74: 0 | F74: 10 | G74: 7 | H74: 6 | I74: 0 | J74: 10 | L74: 0 | N74: 0 | O74: 26 | P74: 3
C75: Chris Flint | D75: 24 | F75: 0 | G75: 8 | H75: 5 | I75: 4 | J75: 11 | K75: 2 | L75: 8 | N75: 0 | O75: 24 | P75: 3
C76: Paul King | D76: 23 | E76: 1 | F76: 14 | G76: 4 | H76: 9 | J76: 0 | L76: 0 | N76: 0 | O76: 23 | P76: 2
C77: Shaun Lightman | D77: 20 | F77: 0 | H77: 0 | I77: 9 | J77: 6 | K77: 5 | L77: 5 | M77: 3 | N77: 9 | O77: 20 | P77: 3
C78: Mick Harran | D78: 17 | F78: 0 | G78: 6 | H78: 7 | I78: 5 | J78: 10 | L78: 0 | N78: 0 | O78: 17 | P78: 2
C79: Sandra Campbell | D79: 11 | E79: 8 | F79: 7 | H79: 0 | J79: 0 | K79: 6 | L79: 4 | N79: 0 | O79: 11 | P79: 2
C80: Paul Gaston | D80: 9 | F80: 0 | H80: 0 | J80: 0 | K80: 1 | L80: 9 | N80: 0 | O80: 9 | P80: 1
C81: Dave Delaney | D81: 8 | E81: 7 | F81: 8 | H81: 0 | J81: 0 | L81: 0 | N81: 0 | O81: 8 | P81: 1
C82: Sandra Brown | D82: 6 | F82: 0 | H82: 0 | J82: 0 | K82: 4 | L82: 6 | N82: 0 | O82: 6 | P82: 1
C83: Trevor Sliwerski | D83: 6 | E83: 9 | F83: 6 | H83: 0 | J83: 0 | L83: 0 | N83: 0 | O83: 6 | P83: 1
C84: Kathy Crilley | D84: 0 | F84: 0 | H84: 0 | J84: 0 | L84: 0 | N84: 0 | O84: 0 | P84: 0
C85: Kevin Burnett | D85: 0 | F85: 0 | H85: 0 | J85: 0 | L85: 0 | N85: 0 | O85: 0 | P85: 0

Sheet AL_2017_18
C2: ALBURY CUP RESULTS 2017/8 | G2: RACE 5 VERSION | M2: As at: | N2: =NOW() -> 2018-11-13T16:48:19.780 | R2: NB Change Ranges Each Year: Table_For_History_Unsorted and Table_For_History_Sorted
F3: Race handicap position and Albury Cup points | R3: LINKED Copy of table with columns for history in correct order >>>>>>> | Z3: MANUAL Copy of table (123 copy) rows sorted into alphabetical order of names for transfer to history sheet
B4: Albury Cup | C4: Event > | D4: Albury Points Best 4 from 5 | E4: Christmas Cup 5 km | G4: Alec Potton 7 miles | I4: SWC Track 3km | K4: Gazette Cup 4 miles | M4: SWC Open 5km | O4: Total Points | P4: Races Walked | R4: ALBURY CUP 2017/18 UNSORTED by NAME | S4: Event >> | T4: =+E33 -> 1261 | U4: =+G33 -> 1266 | V4: =+I33 -> 1366 | W4: =KI33 -> 0 | X4: =+JM2 -> 0 | Z4: ALBURY CUP 2016/17 SORTED by NAME | AA4: Event >> | AB4: 878 | AC4: 917 | AD4: 1109 | AE4: 1123 | AF4: 1144
B5: Rank | C5: Name - date> | D5: after 5 | E5: 2017-11-20 | G5: 28/11/17 | I5: 2018-05-30 | K5: 2018-06-27 | M5: 2018-07-25 | O5: 2017/18 | P5: =+O5 -> 2017/18 | T5: =+E5 -> 2017-11-20 | U5: =+G5 -> 28/11/17 | V5: =+I5 -> 2018-05-30 | W5: =+K5 -> 2018-06-27 | X5: =+M5 -> 2018-07-25 | AB5: 2017-11-20 | AC5: 28/11/17 | AD5: 2018-05-30 | AE5: 2018-06-27 | AF5: 2018-07-19
B6: 1 | C6: Chris Flint | D6: =O6-MIN(F6,H6,J6,L6,N6) -> 33 | E6: 4 | F6: =IF(ISBLANK(E6),0,F$30+1-E6) -> 6 | G6: 4 | H6: =IF(ISBLANK(G6),0,H$30+1-G6) -> 7 | I6: 2 | J6: =IF(ISBLANK(I6),0,J$30+1-I6) -> 11 | K6: 2 | L6: =IF(ISBLANK(K6),0,L$30+1-K6) -> 9 | N6: =IF(ISBLANK(M6),0,N$30+1-M6) -> 0 | O6: =+F6+H6+J6+L6+N6 -> 33 | P6: =+IF(COUNT(E6,G6,I6,K6,M6)>0,COUNT(E6,G6,I6,K6,M6),"") -> 4 | R6: NAME | S6: Year Rank | T6: Pos 1 | U6: Pos 2 | V6: Pos 3 | W6: Pos 4 | X6: Pos 5 | Z6: NAME | AA6: Year Rank | AB6: Pos 1 | AC6: Pos 2 | AD6: Pos 3 | AE6: Pos 4 | AF6: Pos 5
B7: 2 | C7: Dan Maskell | D7: 28 | F7: 0 | G7: 3 | H7: 8 | I7: 4 | J7: 9 | K7: 3 | L7: 8 | M7: 1 | N7: 3 | O7: 28 | P7: 4 | R7: =RIGHT(C6,LEN(C6)-FIND(" ",C6)) & "_" & LEFT(C6,FIND(" ",C6)-1) -> Flint_Chris | S7: =IF(D6>0,+B6,0) -> 1 | T7: =+E6 -> 4 | U7: =+G6 -> 4 | V7: =+I6 -> 2 | W7: =+K6 -> 2 | X7: =+M6 -> 0 | Z7: Burnett_Kevin | AA7: 10 | AB7: 0 | AC7: 0 | AD7: 6 | AE7: 0 | AF7: 0 | AG7: 0
B8: 3 | C8: David Hoben | D8: 27 | E8: 5 | F8: 5 | G8: 2 | H8: 9 | I8: 5 | J8: 8 | K8: 6 | L8: 5 | N8: 0 | O8: 27 | P8: 4 | R8: Maskell_Dan | S8: =IF(D7>0,+B7,0) -> 2 | T8: 0 | U8: 3 | V8: 4 | W8: 3 | X8: 1 | Z8: Campbell_Sandra | AA8: 0 | AB8: 0 | AC8: 0 | AD8: 0 | AE8: 0 | AF8: 0 | AG8: 0
B9: 4 | C9: David Crane | D9: 20 | F9: 0 | G9: 1 | H9: 10 | I9: 3 | J9: 10 | L9: 0 | N9: 0 | O9: 20 | P9: 2 | R9: Hoben_David | S9: 3 | T9: 5 | U9: 2 | V9: 5 | W9: 6 | X9: 0 | Z9: Crane_David | AA9: 4 | AB9: 0 | AC9: 1 | AD9: 3 | AE9: 0 | AF9: 0 | AG9: 0
B10: 5 | C10: Malcolm Martin | D10: 14 | E10: 1 | F10: 9 | G10: 6 | H10: 5 | J10: 0 | L10: 0 | N10: 0 | O10: 14 | P10: 2 | R10: Crane_David | S10: 4 | T10: 0 | U10: 1 | V10: 3 | W10: 0 | X10: 0 | Z10: Crane_Peter | AA10: 0 | AB10: 0 | AC10: 0 | AD10: 0 | AE10: 0 | AF10: 0 | AG10: 0
B11: 6 | C11: Shaun Lightman | D11: 14 | E11: 2 | F11: 8 | G11: 5 | H11: 6 | J11: 0 | L11: 0 | N11: 0 | O11: 14 | P11: 2 | R11: Martin_Malcolm | S11: 5 | T11: 1 | U11: 6 | V11: 0 | W11: 0 | X11: 0 | Z11: Crane_Steve | AA11: 0 | AB11: 0 | AC11: 0 | AD11: 0 | AE11: 0 | AF11: 0 | AG11: 0
B12: 7 | C12: Mick Harran | D12: 12 | F12: 0 | H12: 0 | I12: 1 | J12: 12 | L12: 0 | N12: 0 | O12: 12 | P12: 1 | R12: Lightman_Shaun | S12: 6 | T12: 2 | U12: 5 | V12: 0 | W12: 0 | X12: 0 | Z12: Crilley_Kathy | AA12: 0 | AB12: 0 | AC12: 0 | AD12: 0 | AE12: 0 | AF12: 0 | AG12: 0
B13: 8 | C13: Nolan Simmons | D13: 12 | F13: 0 | H13: 0 | I13: 7 | J13: 6 | K13: 5 | L13: 6 | N13: 0 | O13: 12 | P13: 2 | R13: Harran_Mick | S13: 7 | T13: 0 | U13: 0 | V13: 1 | W13: 0 | X13: 0 | Z13: Delaney_Dave | AA13: 0 | AB13: 0 | AC13: 0 | AD13: 0 | AE13: 0 | AF13: 0 | AG13: 0
B14: 9 | C14: Chris Edwards | D14: 10 | F14: 0 | H14: 0 | J14: 0 | K14: 1 | L14: 10 | N14: 0 | O14: 10 | P14: 1 | R14: Simmons_Nolan | S14: 8 | T14: 0 | U14: 0 | V14: 7 | W14: 5 | X14: 0 | Z14: Easton_Mark | AA14: 0 | AB14: 0 | AC14: 0 | AD14: 0 | AE14: 0 | AF14: 0 | AG14: 0
B15: 10 | C15: Kevin Burnett | D15: 7 | F15: 0 | H15: 0 | I15: 6 | J15: 7 | L15: 0 | N15: 0 | O15: 7 | P15: 1 | R15: Edwards_Chris | S15: 9 | T15: 0 | U15: 0 | V15: 0 | W15: 1 | X15: 0 | Z15: Edwards_Chris | AA15: 9 | AB15: 0 | AC15: 0 | AD15: 0 | AE15: 1 | AF15: 0 | AG15: 0
B16: 11 | C16: Paul Gaston | D16: 7 | E16: 3 | F16: 7 | H16: 0 | J16: 0 | L16: 0 | N16: 0 | O16: 7 | P16: 1 | R16: Burnett_Kevin | S16: 10 | T16: 0 | U16: 0 | V16: 6 | W16: 0 | X16: 0 | Z16: Flint_Chris | AA16: 1 | AB16: 4 | AC16: 4 | AD16: 2 | AE16: 2 | AF16: 0 | AG16: 0
B17: 12 | C17: Roger Michell | D17: 7 | F17: 0 | H17: 0 | J17: 0 | K17: 4 | L17: 7 | N17: 0 | O17: 7 | P17: 1 | R17: Gaston_Paul | S17: 11 | T17: 3 | U17: 0 | V17: 0 | W17: 0 | X17: 0 | Z17: Gaston_Paul | AA17: 11 | AB17: 3 | AC17: 0 | AD17: 0 | AE17: 0 | AF17: 0 | AG17: 0
B18: 13 | C18: Angela Martin | D18: =O18-MIN(F18,H18,J18,L18,N18) -> 0 | F18: =IF(ISBLANK(E18),0,F$30+1-E18) -> 0 | H18: =IF(ISBLANK(G18),0,H$30+1-G18) -> 0 | J18: =IF(ISBLANK(I18),0,J$30+1-I18) -> 0 | L18: =IF(ISBLANK(K18),0,L$30+1-K18) -> 0 | N18: =IF(ISBLANK(M18),0,N$30+1-M18) -> 0 | O18: =+F18+H18+J18+L18+N18 -> 0 | P18: =+IF(COUNT(E18,G18,I18,K18,M18)>0,COUNT(E18,G18,I18,K18,M18),"") ->  | R18: Michell_Roger | S18: 12 | T18: 0 | U18: 0 | V18: 0 | W18: 4 | X18: 0 | Z18: Harran_Mick | AA18: 7 | AB18: 0 | AC18: 0 | AD18: 1 | AE18: 0 | AF18: 0 | AG18: 0
B19: 14 | C19: Dave Delaney | D19: 0 | F19: 0 | H19: 0 | J19: 0 | L19: 0 | N19: 0 | O19: 0 | R19: Martin_Angela | S19: 0 | T19: 0 | U19: 0 | V19: 0 | W19: 0 | X19: 0 | Z19: Hoben_David | AA19: 2 | AB19: 5 | AC19: 2 | AD19: 5 | AE19: 6 | AF19: 0 | AG19: 0
B20: 15 | C20: Kathy Crilley | D20: 0 | F20: 0 | H20: 0 | J20: 0 | L20: 0 | N20: 0 | O20: 0 | R20: Delaney_Dave | S20: 0 | T20: 0 | U20: 0 | V20: 0 | W20: 0 | X20: 0 | Z20: King_Paul | AA20: 0 | AB20: 0 | AC20: 0 | AD20: 0 | AE20: 0 | AF20: 0 | AG20: 0
B21: 16 | C21: Mark Easton | D21: 0 | F21: 0 | H21: 0 | J21: 0 | L21: 0 | N21: 0 | O21: 0 | R21: Crilley_Kathy | S21: 0 | T21: 0 | U21: 0 | V21: 0 | W21: 0 | X21: 0 | Z21: Lightman_Shaun | AA21: 6 | AB21: 2 | AC21: 5 | AD21: 0 | AE21: 0 | AF21: 0 | AG21: 0
B22: 17 | C22: Paul King | D22: 0 | F22: 0 | H22: 0 | J22: 0 | L22: 0 | N22: 0 | O22: 0 | R22: Easton_Mark | S22: 0 | T22: 0 | U22: 0 | V22: 0 | W22: 0 | X22: 0 | Z22: Martin_Angela | AA22: 0 | AB22: 0 | AC22: 0 | AD22: 0 | AE22: 0 | AF22: 0 | AG22: 0
B23: 18 | C23: Peter Crane | D23: 0 | F23: 0 | H23: 0 | J23: 0 | L23: 0 | N23: 0 | O23: 0 | R23: King_Paul | S23: =IF(D22>0,+B22,0) -> 0 | T23: =+E22 -> 0 | U23: =+G22 -> 0 | V23: =+I22 -> 0 | W23: =+K22 -> 0 | X23: =+M22 -> 0 | Z23: Martin_Malcolm | AA23: 5 | AB23: 1 | AC23: 6 | AD23: 0 | AE23: 0 | AF23: 0 | AG23: 0
B24: 19 | C24: Sandra Campbell | D24: 0 | F24: 0 | H24: 0 | J24: 0 | L24: 0 | N24: 0 | O24: 0 | R24: Crane_Peter | S24: 0 | T24: 0 | U24: 0 | V24: 0 | W24: 0 | X24: 0 | Z24: Maskell_Dan | AA24: 3 | AB24: 0 | AC24: 3 | AD24: 4 | AE24: 3 | AF24: 0 | AG24: 0
B25: 20 | C25: Steve Crane | D25: 0 | F25: 0 | H25: 0 | J25: 0 | L25: 0 | N25: 0 | O25: 0 | R25: Campbell_Sandra | S25: 0 | T25: 0 | U25: 0 | V25: 0 | W25: 0 | X25: 0 | Z25: Michell_Roger | AA25: 12 | AB25: 0 | AC25: 0 | AD25: 0 | AE25: 4 | AF25: 0 | AG25: 0
B26: 21 | C26: Trevor Sliwerski | D26: 0 | F26: 0 | H26: 0 | J26: 0 | L26: 0 | N26: 0 | O26: 0 | R26: Crane_Steve | S26: 0 | T26: 0 | U26: 0 | V26: 0 | W26: 0 | X26: 0 | Z26: Simmons_Nolan | AA26: 8 | AB26: 0 | AC26: 0 | AD26: 7 | AE26: 5 | AF26: 0 | AG26: 0
P27: At least 1 race | R27: Sliwerski_Trevor | S27: 0 | T27: 0 | U27: 0 | V27: 0 | W27: 0 | X27: 0 | Z27: Sliwerski_Trevor | AA27: 0 | AB27: 0 | AC27: 0 | AD27: 0 | AE27: 0 | AF27: 0 | AG27: 0
C28: SWC Number Out | E28: =+COUNT(E6:E26) -> 5 | G28: =+COUNT(G6:G26) -> 6 | I28: =+COUNT(I6:I26) -> 7 | K28: =+COUNT(K6:K26) -> 6 | M28: =+COUNT(M6:M26) -> 1 | P28: =+COUNT(P6:P26) -> 12
C30: Calculated Winning score | F30: =+ROUND(E28*1.5+1.1,0) -> 9 | H30: =+ROUND(G28*1.5+1.1,0) -> 10 | J30: =+ROUND(I28*1.5+1.1,0) -> 12 | L30: =+ROUND(K28*1.5+1.1,0) -> 10 | N30: =+ROUND(M28*1.5+1.1,0) -> 3
C31: Check total positions = | E31: =TEXT(SUM(E6:E26),"0") -> 15 | G31: =TEXT(SUM(G6:G26),"0") -> 21 | I31: =TEXT(SUM(I6:I26),"0") -> 28 | K31: =TEXT(SUM(K6:K26),"0") -> 21 | M31: =TEXT(SUM(M6:M26),"0") -> 1
C32: If t = walkers then t*( t+1)/2 = | E32: =+E28*(E28+1)/2 -> 15 | G32: =+G28*(G28+1)/2 -> 21 | I32: =+I28*(I28+1)/2 -> 28 | K32: =+K28*(K28+1)/2 -> 21 | M32: =+M28*(M28+1)/2 -> 1
C33: Actual Event Number | E33: 1261 | G33: 1266 | I33: 1366 | K33: 1382
C34: Average points (always t + 2) and awarded to officials | E34: =INT(SUM(F6:F26)/E28+0.5) -> 7 | G34: =INT(SUM(H6:H26)/G28+0.5) -> 8 | I34: =INT(SUM(J6:J26)/I28+0.5) -> 9 | K34: 8 | M34: 3
B36: Officials | E36: attend | F36: pts | G36: attend | H36: pts | I36: attend | J36: pts | K36: attend | L36: pts | M36: attend | N36: pts
C37: Peter Selby | E37: 1 | F37: =IF(E37>0,E$34,0) -> 7 | G37: 1 | H37: =IF(G37>0,G$34,0) -> 8 | I37: 0 | J37: =IF(I37>0,I$34,0) -> 0 | K37: 0 | L37: =IF(K37>0,K$34,0) -> 0 | M37: 0 | N37: =IF(M37>0,M$34,0) -> 0
C38: Pam Ficken | E38: 1 | F38: 7 | G38: 1 | H38: =IF(G38>0,G$34,0) -> 8 | I38: 0 | J38: 0 | K38: 0 | L38: =IF(K38>0,K$34,0) -> 0 | M38: 0 | N38: =IF(M38>0,M$34,0) -> 0
C39: Mark Easton | E39: 0 | F39: 0 | H39: 0 | I39: 0 | J39: 0 | K39: 0 | L39: 0 | M39: 0 | N39: 0
C40: Nolan Simmons | E40: 1 | F40: 7 | G40: 1 | H40: 8 | I40: 0 | J40: 0 | K40: 0 | L40: 0 | M40: 0 | N40: 0

Sheet Notes_and_History_+_Buttons
A1: Column wdths | C1: Col A | D1: 8.11 | G1: Table of Handicap loadings | J1: Base = | K1: 0.01 | L1: (3rd in last race)
C2: year rank col B | D2: 7.29 | H2: last race 1 | I2: penult r 2 | J2: PenPen r3
C3: name C | D3: 13.43 | E3: and R | G3: 1st | H3: =3*K1 -> 0.030 | I3: =2*K1 -> 0.020 | J3: =+K1 -> 0.010
C4: points D | D4: 12 | E4: and S | G4: 2nd | H4: =2*K1 -> 0.020 | I4: =+K1 -> 0.010 | J4: 0.000
C5: events E-N | D5: 4.57 | G5: 3rd | H5: =+K1 -> 0.010 | I5: 0.000 | J5: 0.000
C6: Total O | D6: 8.86
C7: normal | D7: 7.56 | G7: score = | H7: 16*pos 1+4*pos 2 + pos 3 | K7: >3 = zero
G8: eg 2nd ,7th,1st last 3 in reverse order >
H9: =32+0+1 -> 33
A10: case | B10: 1 | C10: 2 | D10: 3 | E10: 4 | F10: 5 | G10: 6 | H10: 7 | I10: 8 | J10: 9 | K10: 10 | L10: 11 | M10: 12 | N10: 13 | O10: 14 | P10: 15 | Q10: 16 | R10: 17 | S10: 18 | T10: 19 | U10: 20 | V10: 21 | W10: 22 | X10: 23 | Y10: 24 | Z10: 25 | AA10: 26 | AB10: 27 | AC10: 28 | AD10: 29 | AE10: 30 | AF10: 31 | AG10: 32 | AH10: 33 | AI10: 34 | AJ10: 35 | AK10: 36 | AL10: 37 | AM10: 38 | AN10: 39 | AO10: 40 | AP10: 41 | AQ10: 42 | AR10: 43 | AS10: 44 | AT10: 45 | AU10: 46 | AV10: 47 | AW10: 48 | AX10: 49 | AY10: 50 | AZ10: 51 | BA10: 52 | BB10: 53 | BC10: 54 | BD10: 55 | BE10: 56 | BF10: 57 | BG10: 58 | BH10: 59 | BI10: 60 | BJ10: 61 | BK10: 62 | BL10: 63 | BM10: 64
A11: last race-1- posn | B11: 0 | C11: 1 | D11: 2 | E11: 3 | F11: 0 | G11: 1 | H11: 2 | I11: 3 | J11: 0 | K11: 1 | L11: 2 | M11: 3 | N11: 0 | O11: 1 | P11: 2 | Q11: 3 | R11: 0 | S11: 1 | T11: 2 | U11: 3 | V11: 0 | W11: 1 | X11: 2 | Y11: 3 | Z11: 0 | AA11: 1 | AB11: 2 | AC11: 3 | AD11: 0 | AE11: 1 | AF11: 2 | AG11: 3 | AH11: 0 | AI11: 1 | AJ11: 2 | AK11: 3 | AL11: 0 | AM11: 1 | AN11: 2 | AO11: 3 | AP11: 0 | AQ11: 1 | AR11: 2 | AS11: 3 | AT11: 0 | AU11: 1 | AV11: 2 | AW11: 3 | AX11: 0 | AY11: 1 | AZ11: 2 | BA11: 3 | BB11: 0 | BC11: 1 | BD11: 2 | BE11: 3 | BF11: 0 | BG11: 1 | BH11: 2 | BI11: 3 | BJ11: 0 | BK11: 1 | BL11: 2 | BM11: 3
A12: penu race-2- posn | B12: 0 | C12: 0 | D12: 0 | E12: 0 | F12: 1 | G12: 1 | H12: 1 | I12: 1 | J12: 2 | K12: 2 | L12: 2 | M12: 2 | N12: 3 | O12: 3 | P12: 3 | Q12: 3 | R12: 0 | S12: 0 | T12: 0 | U12: 0 | V12: 1 | W12: 1 | X12: 1 | Y12: 1 | Z12: 2 | AA12: 2 | AB12: 2 | AC12: 2 | AD12: 3 | AE12: 3 | AF12: 3 | AG12: 3 | AH12: 0 | AI12: 0 | AJ12: 0 | AK12: 0 | AL12: 1 | AM12: 1 | AN12: 1 | AO12: 1 | AP12: 2 | AQ12: 2 | AR12: 2 | AS12: 2 | AT12: 3 | AU12: 3 | AV12: 3 | AW12: 3 | AX12: 0 | AY12: 0 | AZ12: 0 | BA12: 0 | BB12: 1 | BC12: 1 | BD12: 1 | BE12: 1 | BF12: 2 | BG12: 2 | BH12: 2 | BI12: 2 | BJ12: 3 | BK12: 3 | BL12: 3 | BM12: 3
A13: penp race-3- posn | B13: 0 | C13: 0 | D13: 0 | E13: 0 | F13: 0 | G13: 0 | H13: 0 | I13: 0 | J13: 0 | K13: 0 | L13: 0 | M13: 0 | N13: 0 | O13: 0 | P13: 0 | Q13: 0 | R13: 1 | S13: 1 | T13: 1 | U13: 1 | V13: 1 | W13: 1 | X13: 1 | Y13: 1 | Z13: 1 | AA13: 1 | AB13: 1 | AC13: 1 | AD13: 1 | AE13: 1 | AF13: 1 | AG13: 1 | AH13: 2 | AI13: 2 | AJ13: 2 | AK13: 2 | AL13: 2 | AM13: 2 | AN13: 2 | AO13: 2 | AP13: 2 | AQ13: 2 | AR13: 2 | AS13: 2 | AT13: 2 | AU13: 2 | AV13: 2 | AW13: 2 | AX13: 3 | AY13: 3 | AZ13: 3 | BA13: 3 | BB13: 3 | BC13: 3 | BD13: 3 | BE13: 3 | BF13: 3 | BG13: 3 | BH13: 3 | BI13: 3 | BJ13: 3 | BK13: 3 | BL13: 3 | BM13: 3
A14: race-1-Load | B14: 0 | C14: =+$H$3 -> 0.03 | D14: =+$H$4 -> 0.02 | E14: =+$H$5 -> 0.010 | F14: 0.000 | G14: =+$H$3 -> 0.030 | H14: =+$H$4 -> 0.020 | I14: =+$H$5 -> 0.010 | J14: 0 | K14: =+$H$3 -> 0.03 | L14: =+$H$4 -> 0.02 | M14: =+$H$5 -> 0.010 | N14: 0 | O14: =+$H$3 -> 0.03 | P14: =+$H$4 -> 0.02 | Q14: =+$H$5 -> 0.010 | R14: 0 | S14: =+$H$3 -> 0.03 | T14: =+$H$4 -> 0.02 | U14: =+$H$5 -> 0.010 | V14: 0 | W14: =+$H$3 -> 0.03 | X14: =+$H$4 -> 0.02 | Y14: =+$H$5 -> 0.010 | Z14: 0 | AA14: =+$H$3 -> 0.03 | AB14: =+$H$4 -> 0.02 | AC14: =+$H$5 -> 0.010 | AD14: 0 | AE14: =+$H$3 -> 0.03 | AF14: =+$H$4 -> 0.02 | AG14: =+$H$5 -> 0.010 | AH14: 0 | AI14: =+$H$3 -> 0.03 | AJ14: =+$H$4 -> 0.02 | AK14: =+$H$5 -> 0.010 | AL14: 0 | AM14: =+$H$3 -> 0.03 | AN14: =+$H$4 -> 0.02 | AO14: =+$H$5 -> 0.010 | AP14: 0 | AQ14: =+$H$3 -> 0.03 | AR14: =+$H$4 -> 0.02 | AS14: =+$H$5 -> 0.010 | AT14: 0 | AU14: =+$H$3 -> 0.03 | AV14: =+$H$4 -> 0.02 | AW14: =+$H$5 -> 0.010 | AX14: 0 | AY14: =+$H$3 -> 0.03 | AZ14: =+$H$4 -> 0.02 | BA14: =+$H$5 -> 0.010 | BB14: 0 | BC14: =+$H$3 -> 0.03 | BD14: =+$H$4 -> 0.02 | BE14: =+$H$5 -> 0.010 | BF14: 0 | BG14: =+$H$3 -> 0.03 | BH14: =+$H$4 -> 0.02 | BI14: =+$H$5 -> 0.010 | BJ14: 0 | BK14: =+$H$3 -> 0.03 | BL14: =+$H$4 -> 0.02 | BM14: =+$H$5 -> 0.010
A15: race-2-Load | B15: 0 | C15: 0 | D15: 0 | E15: 0 | F15: =+$I$3 -> 0.020 | G15: =+$I$3 -> 0.020 | H15: 0.020 | I15: 0.020 | J15: =+$I$4 -> 0.010 | K15: =+$I$4 -> 0.010 | L15: 0.010 | M15: 0.010 | N15: =+$I$5 -> 0.000 | O15: =+$I$5 -> 0.000 | P15: 0.000 | Q15: 0.000 | R15: 0 | S15: 0 | T15: 0 | U15: 0 | V15: =+$I$3 -> 0.020 | W15: =+$I$3 -> 0.020 | X15: 0.020 | Y15: 0.020 | Z15: =+$I$4 -> 0.010 | AA15: =+$I$4 -> 0.010 | AB15: 0.010 | AC15: 0.010 | AD15: =+$I$5 -> 0.000 | AE15: =+$I$5 -> 0.000 | AF15: 0.000 | AG15: 0.000 | AH15: 0 | AI15: 0 | AJ15: 0 | AK15: 0 | AL15: =+$I$3 -> 0.020 | AM15: =+$I$3 -> 0.020 | AN15: 0.020 | AO15: 0.020 | AP15: =+$I$4 -> 0.010 | AQ15: =+$I$4 -> 0.010 | AR15: 0.010 | AS15: 0.010 | AT15: =+$I$5 -> 0.000 | AU15: =+$I$5 -> 0.000 | AV15: 0.000 | AW15: 0.000 | AX15: 0 | AY15: 0 | AZ15: 0 | BA15: 0 | BB15: =+$I$3 -> 0.020 | BC15: =+$I$3 -> 0.020 | BD15: 0.020 | BE15: 0.020 | BF15: =+$I$4 -> 0.010 | BG15: =+$I$4 -> 0.010 | BH15: 0.010 | BI15: 0.010 | BJ15: =+$I$5 -> 0.000 | BK15: =+$I$5 -> 0.000 | BL15: 0.000 | BM15: 0.000
A16: race-3-Load | B16: =+$J$5 -> 0.000 | C16: =+$J$5 -> 0.000 | D16: 0.000 | E16: 0.000 | F16: 0.000 | G16: 0.000 | H16: 0.000 | I16: 0.000 | J16: 0.000 | K16: 0.000 | L16: 0.000 | M16: 0.000 | N16: 0.000 | O16: 0.000 | P16: 0.000 | Q16: 0.000 | R16: =+$J$3 -> 0.010 | S16: =+$J$3 -> 0.010 | T16: 0.010 | U16: 0.010 | V16: 0.010 | W16: 0.010 | X16: 0.010 | Y16: 0.010 | Z16: 0.010 | AA16: 0.010 | AB16: 0.010 | AC16: 0.010 | AD16: 0.010 | AE16: 0.010 | AF16: 0.010 | AG16: 0.010 | AH16: =+$J$5 -> 0.000 | AI16: =+$J$5 -> 0.000 | AJ16: 0.000 | AK16: 0.000 | AL16: 0.000 | AM16: 0.000 | AN16: 0.000 | AO16: 0.000 | AP16: 0.000 | AQ16: 0.000 | AR16: 0.000 | AS16: 0.000 | AT16: 0.000 | AU16: 0.000 | AV16: 0.000 | AW16: 0.000 | AX16: 0.000 | AY16: 0.000 | AZ16: 0.000 | BA16: 0.000 | BB16: 0.000 | BC16: =+$J$5 -> 0.000 | BD16: =+$J$5 -> 0.000 | BE16: 0.000 | BF16: 0.000 | BG16: 0.000 | BH16: 0.000 | BI16: 0.000 | BJ16: 0.000 | BK16: 0.000 | BL16: 0.000 | BM16: 0.000
A18: code | B18: =+B11*16+B12*4+B13 -> 0 | C18: 16 | D18: 32 | E18: 48 | F18: 4 | G18: 20 | H18: 36 | I18: 52 | J18: 8 | K18: 24 | L18: 40 | M18: 56 | N18: 12 | O18: 28 | P18: 44 | Q18: 60 | R18: 1 | S18: 17 | T18: 33 | U18: 49 | V18: 5 | W18: 21 | X18: 37 | Y18: 53 | Z18: 9 | AA18: 25 | AB18: 41 | AC18: 57 | AD18: 13 | AE18: 29 | AF18: 45 | AG18: 61 | AH18: =+AH11*16+AH12*4+AH13 -> 2 | AI18: 18 | AJ18: 34 | AK18: 50 | AL18: 6 | AM18: 22 | AN18: 38 | AO18: 54 | AP18: 10 | AQ18: 26 | AR18: 42 | AS18: 58 | AT18: 14 | AU18: 30 | AV18: 46 | AW18: 62 | AX18: 3 | AY18: 19 | AZ18: 35 | BA18: 51 | BB18: 7 | BC18: 23 | BD18: 39 | BE18: 55 | BF18: 11 | BG18: 27 | BH18: 43 | BI18: 59 | BJ18: 15 | BK18: 31 | BL18: 47 | BM18: 63
A19: Total Loading | B19: =+B14+B15+B16 -> 0.000 | C19: 0.030 | D19: 0.020 | E19: 0.010 | F19: 0.020 | G19: 0.050 | H19: 0.040 | I19: 0.030 | J19: 0.010 | K19: 0.040 | L19: 0.030 | M19: 0.020 | N19: 0.000 | O19: 0.030 | P19: 0.020 | Q19: 0.010 | R19: 0.010 | S19: 0.040 | T19: 0.030 | U19: 0.020 | V19: 0.030 | W19: 0.060 | X19: 0.050 | Y19: 0.040 | Z19: 0.020 | AA19: 0.050 | AB19: 0.040 | AC19: 0.030 | AD19: 0.010 | AE19: 0.040 | AF19: 0.030 | AG19: 0.020 | AH19: =+AH14+AH15+AH16 -> 0.000 | AI19: 0.030 | AJ19: 0.020 | AK19: 0.010 | AL19: 0.020 | AM19: 0.050 | AN19: 0.040 | AO19: 0.030 | AP19: 0.010 | AQ19: 0.040 | AR19: 0.030 | AS19: 0.020 | AT19: 0.000 | AU19: 0.030 | AV19: 0.020 | AW19: 0.010 | AX19: 0.000 | AY19: 0.030 | AZ19: 0.020 | BA19: 0.010 | BB19: 0.020 | BC19: 0.050 | BD19: 0.040 | BE19: 0.030 | BF19: 0.010 | BG19: 0.040 | BH19: 0.030 | BI19: 0.020 | BJ19: 0.000 | BK19: 0.030 | BL19: 0.020 | BM19: 0.010
C20: NB Leave Dates Blank until penalties created
A21: ALBURY CUP RESULTS | D21: Sum of factors = | E21: =SUM(B25:B135) -> 0.07 | F21: (should be 0.05)
A22: Year | B22: Special | C22: 2011/12 | D22: 2011/12 | E22: 2011/12 | F22: 2011/12 | G22: 2011/12 | H22: 2011/12 | I22: 2012/13 | J22: 2012/13 | K22: 2012/13 | L22: 2012/13 | M22: 2012/13 | N22: 2012/13 | O22: 2013/14 | P22: 2013/14 | Q22: 2013/14 | R22: 2013/14 | S22: 2013/14 | T22: 2013/14 | U22: 2014/15 | V22: 2014/15 | W22: 2014/15 | X22: 2014/15 | Y22: 2014/15 | Z22: 2014/15 | AA22: 2015/16 | AB22: 2015/16 | AC22: 2015/16 | AD22: 2015/16 | AE22: 2015/16 | AF22: 2015/16 | AG22: 2016/17 | AH22: 2016/17 | AI22: 2016/17 | AJ22: 2016/17 | AK22: 2016/17 | AL22: 2016/17 | AM22: 2017/18 | AN22: 2017/18 | AO22: 2017/18 | AP22: 2017/18 | AQ22: 2017/18 | AR22: 2017/18
A23: Event | B23: Handicap | C23: Year | D23: 101 | E23: 105 | F23: 108 | G23: 112 | H23: 141 | I23: Year | J23: 183 | K23: 189 | L23: 195 | M23: 198 | N23: 238 | O23: Year | P23: 283 | Q23: 289 | R23: 298 | S23: 322 | T23: 372 | U23: Year | V23: 420 | W23: 432 | X23: 443 | Y23: 509 | Z23: 533 | AA23: Year | AB23: 557 | AC23: 577 | AD23: 585 | AE23: 730 | AF23: 806 | AG23: Year | AH23: 878 | AI23: 917 | AJ23: 1099 | AK23: 1123 | AL23: 1144 | AM23: Year | AN23: =AL_2017_18!T4 -> 1261 | AO23: 1266 | AP23: 1366 | AQ23: 1123 | AR23: 1399
A24: Name | B24: *Percentage* | C24: Rank | D24: 15/10/11 | E24: 06/11/11 | F24: 10/12/11 | G24: No Hcp | H24: 06/06/12 | I24: Rank | J24: 20/10/12 | K24: 03/11/12 | L24: 08/12/12 | M24: 05/01/13 | N24: 12/6/13 | O24: Rank | P24: 06/10/13 | Q24: 3/11/13 | R24: 21/12/13 | S24: 29/03/14 | T24: 04/06/14 | U24: Rank | V24: 2014-09-28 | W24: 2014-11-02 | X24: 2014-12-20 | Y24: 2015-06-03 | Z24: 2015-06-03 | AA24: Rank | AB24: 2015-09-27 | AC24: 2015-11-01 | AD24: 2015-12-05 | AE24: 2016-06-01 | AF24: 2016-07-27 | AG24: Rank | AH24: 2016-11-06 | AI24: 2016-12-03 | AJ24: 2017-05-31 | AK24: 2017-06-28 | AL24: 2017-07-19 | AM24: Rank | AN24: =AL_2017_18!T5 -> 2017-11-20 | AO24: =AL_2017_18!U5 -> 28/11/17 | AP24: =AL_2017_18!V5 -> 2018-05-30 | AQ24: =AL_2017_18!W5 -> 2018-06-27 | AR24: 2018-07-25
A25: Atterbury_Lyn | B25: 0.000 | C25: 14 | D25: 0 | E25: 0 | F25: 1 | G25: 0 | H25: 0 | I25: 0 | J25: 0 | K25: 0 | L25: 0 | M25: 0 | N25: 0 | O25: 0 | P25: 0 | Q25: 0 | R25: 0 | S25: 0 | T25: 0 | U25: 0 | V25: 0 | W25: 0 | X25: 0 | Y25: 0 | Z25: 0 | AA25: 0 | AB25: 0 | AC25: 0 | AD25: 0 | AE25: 0 | AF25: 0 | AG25: 0 | AH25: 0 | AI25: 0 | AJ25: 0 | AK25: 0 | AL25: 0 | AM25: 0 | AN25: 0 | AO25: 0 | AP25: 0 | AQ25: 0 | AR25: 0 | AS25: 0 | AT25: 0 | AU25: 0 | AV25: 0 | AW25: 0 | AX25: 0 | AY25: 0 | AZ25: 0 | BA25: 0
A26: Brown_Sandra | B26: 0.000 | C26: 0 | D26: 0 | E26: 0 | F26: 0 | G26: 0 | H26: 0 | I26: 0 | J26: 0 | K26: 0 | L26: 0 | M26: 0 | N26: 0 | O26: 12 | P26: 0 | Q26: 0 | R26: 0 | S26: 4 | T26: 5 | U26: 19 | V26: 0 | W26: 0 | X26: 0 | Y26: 0 | Z26: 0 | AA26: 0 | AB26: 0 | AC26: 0 | AD26: 0 | AE26: 0 | AF26: 0 | AG26: 0 | AH26: 0 | AI26: 0 | AJ26: 0 | AK26: 0 | AL26: 0 | AM26: 0 | AN26: 0 | AO26: 0 | AP26: 0 | AQ26: 0 | AR26: 0 | AS26: 0 | AT26: 0 | AU26: 0 | AV26: 0 | AW26: 0 | AX26: 0 | AY26: 0 | AZ26: 0 | BA26: 0
A27: Burnett_Kevin | B27: 0.000 | C27: 9 | D27: 0 | E27: 0 | F27: 3 | G27: 0 | H27: 2 | I27: 0 | J27: 0 | K27: 0 | L27: 0 | M27: 0 | N27: 0 | O27: 14 | P27: 9 | Q27: 0 | R27: 0 | S27: 0 | T27: 6 | U27: 17 | V27: 0 | W27: 0 | X27: 0 | Y27: 0 | Z27: 0 | AA27: 0 | AB27: 0 | AC27: 0 | AD27: 0 | AE27: 0 | AF27: 0 | AG27: 11 | AH27: 0 | AI27: 0 | AJ27: 3 | AK27: 0 | AL27: 0 | AM27: 8 | AN27: 0 | AO27: 0 | AP27: 6 | AQ27: 0 | AR27: 0 | AS27: 0 | AT27: 0 | AU27: 0 | AV27: 0 | AW27: 0 | AX27: 0 | AY27: 0 | AZ27: 0 | BA27: 0
A28: Campbell_Sandra | B28: 0.000 | C28: 9 | D28: 0 | E28: 0 | F28: 3 | G28: 0 | H28: 2 | I28: 0 | J28: 0 | K28: 0 | L28: 0 | M28: 0 | N28: 0 | O28: 10 | P28: 0 | Q28: 0 | R28: 0 | S28: 2 | T28: 4 | U28: 13 | V28: 8 | W28: 0 | X28: 0 | Y28: 0 | Z28: 0 | AA28: 0 | AB28: 0 | AC28: 0 | AD28: 0 | AE28: 0 | AF28: 0 | AG28: 0 | AH28: 0 | AI28: 0 | AJ28: 0 | AK28: 0 | AL28: 0 | AM28: 18 | AN28: 0 | AO28: 0 | AP28: 0 | AQ28: 0 | AR28: 0 | AS28: 0 | AT28: 0 | AU28: 0 | AV28: 0 | AW28: 0 | AX28: 0 | AY28: 0 | AZ28: 0 | BA28: 0
A29: Crane_David | B29: 0.000 | C29: 11 | D29: 0 | E29: 0 | F29: 14 | G29: 0 | H29: 1 | I29: 2 | J29: 10 | K29: 5 | L29: 1 | M29: 6 | N29: 2 | O29: 8 | P29: 12 | Q29: 12 | R29: 2 | S29: 0 | T29: 0 | U29: 1 | V29: 3 | W29: 1 | X29: 1 | Y29: 2 | Z29: 2 | AA29: 1 | AB29: 3 | AC29: 1 | AD29: 1 | AE29: 0 | AF29: 2 | AG29: 4 | AH29: 5 | AI29: 1 | AJ29: 0 | AK29: 0 | AL29: 2 | AM29: 3 | AN29: 0 | AO29: 1 | AP29: 3 | AQ29: 0 | AR29: 0 | AS29: 0 | AT29: 0 | AU29: 0 | AV29: 0 | AW29: 0 | AX29: 0 | AY29: 0 | AZ29: 0 | BA29: 0
A30: Crane_Peter | B30: 0.000 | C30: 0 | D30: 5 | E30: 8 | F30: 13 | G30: 0 | H30: 0 | I30: 7 | J30: 9 | K30: 1 | L30: 8 | M30: 7 | N30: 6 | O30: 9 | P30: 0 | Q30: 0 | R30: 4 | S30: 0 | T30: 1 | U30: 5 | V30: 4 | W30: 2 | X30: 7 | Y30: 0 | Z30: 0 | AA30: 0 | AB30: 0 | AC30: 0 | AD30: 0 | AE30: 0 | AF30: 0 | AG30: 0 | AH30: 0 | AI30: 0 | AJ30: 0 | AK30: 0 | AL30: 0 | AM30: 16 | AN30: 0 | AO30: 0 | AP30: 0 | AQ30: 0 | AR30: 0 | AS30: 0 | AT30: 0 | AU30: 0 | AV30: 0 | AW30: 0 | AX30: 0 | AY30: 0 | AZ30: 0 | BA30: 0
A31: Crane_Steve | B31: 0.000 | C31: 0 | D31: 10 | E31: 0 | F31: 0 | G31: 0 | H31: 0 | I31: 0 | J31: 0 | K31: 0 | L31: 0 | M31: 0 | N31: 0 | O31: 0 | P31: 0 | Q31: 0 | R31: 0 | S31: 0 | T31: 0 | U31: 0 | V31: 0 | W31: 0 | X31: 0 | Y31: 0 | Z31: 0 | AA31: 10 | AB31: 0 | AC31: 0 | AD31: 0 | AE31: 0 | AF31: 1 | AG31: 0 | AH31: 0 | AI31: 0 | AJ31: 0 | AK31: 0 | AL31: 0 | AM31: 19 | AN31: 0 | AO31: 0 | AP31: 0 | AQ31: 0 | AR31: 0 | AS31: 0 | AT31: 0 | AU31: 0 | AV31: 0 | AW31: 0 | AX31: 0 | AY31: 0 | AZ31: 0 | BA31: 0
A32: Crilley_Kathy | B32: 0.000 | C32: 6 | D32: 9 | E32: 1 | F32: 9 | G32: 0 | H32: 0 | I32: 11 | J32: 4 | K32: 12 | L32: 0 | M32: 4 | N32: 0 | O32: 11 | P32: 5 | Q32: 3 | R32: 0 | S32: 0 | T32: 0 | U32: 16 | V32: 0 | W32: 0 | X32: 0 | Y32: 0 | Z32: 0 | AA32: 0 | AB32: 0 | AC32: 0 | AD32: 0 | AE32: 0 | AF32: 0 | AG32: 0 | AH32: 0 | AI32: 0 | AJ32: 0 | AK32: 0 | AL32: 0 | AM32: 13 | AN32: 0 | AO32: 0 | AP32: 0 | AQ32: 0 | AR32: 0 | AS32: 0 | AT32: 0 | AU32: 0 | AV32: 0 | AW32: 0 | AX32: 0 | AY32: 0 | AZ32: 0 | BA32: 0
A33: Delaney_Dave | B33: 0.000 | C33: 1 | D33: 1 | E33: 2 | F33: 11 | G33: 0 | H33: 6 | I33: 8 | J33: 7 | K33: 11 | L33: 5 | M33: 8 | N33: 0 | O33: 3 | P33: 1 | Q33: 6 | R33: 1 | S33: 0 | T33: 0 | U33: 11 | V33: 7 | W33: 0 | X33: 0 | Y33: 0 | Z33: 0 | AA33: 6 | AB33: 0 | AC33: 3 | AD33: 6 | AE33: 0 | AF33: 0 | AG33: 2 | AH33: 3 | AI33: 3 | AJ33: 0 | AK33: 1 | AL33: 0 | AM33: 12 | AN33: 0 | AO33: 0 | AP33: 0 | AQ33: 0 | AR33: 0 | AS33: 0 | AT33: 0 | AU33: 0 | AV33: 0 | AW33: 0 | AX33: 0 | AY33: 0 | AZ33: 0 | BA33: 0
A34: Easton_Mark | B34: 0.000 | C34: 3 | D34: 4 | E34: 7 | F34: 2 | G34: 0 | H34: 0 | I34: 12 | J34: 2 | K34: 6 | L34: 0 | M34: 0 | N34: 0 | O34: 15 | P34: 8 | Q34: 9 | R34: 0 | S34: 0 | T34: 0 | U34: 14 | V34: 0 | W34: 7 | X34: 0 | Y34: 0 | Z34: 0 | AA34: 8 | AB34: 2 | AC34: 7 | AD34: 0 | AE34: 0 | AF34: 0 | AG34: 0 | AH34: 0 | AI34: 0 | AJ34: 0 | AK34: 0 | AL34: 0 | AM34: 14 | AN34: 0 | AO34: 0 | AP34: 0 | AQ34: 0 | AR34: 0 | AS34: 0 | AT34: 0 | AU34: 0 | AV34: 0 | AW34: 0 | AX34: 0 | AY34: 0 | AZ34: 0 | BA34: 0
A35: Edwards_Chris | B35: 0.020 | C35: 0 | D35: 0 | E35: 0 | F35: 0 | G35: 0 | H35: 0 | I35: 0 | J35: 0 | K35: 0 | L35: 0 | M35: 0 | N35: 0 | O35: 0 | P35: 0 | Q35: 0 | R35: 0 | S35: 0 | T35: 0 | U35: 0 | V35: 0 | W35: 0 | X35: 0 | Y35: 0 | Z35: 0 | AA35: 0 | AB35: 0 | AC35: 0 | AD35: 0 | AE35: 0 | AF35: 0 | AG35: 0 | AH35: 0 | AI35: 0 | AJ35: 0 | AK35: 0 | AL35: 0 | AM35: 0 | AN35: 0 | AO35: 0 | AP35: 0 | AQ35: 1 | AR35: 0 | AS35: 0 | AT35: 0 | AU35: 0 | AV35: 0 | AW35: 0 | AX35: 0 | AY35: 0 | AZ35: 0 | BA35: 0 | BB35: 0
A36: Ficken_Pam | B36: 0.000 | C36: 15 | D36: 2 | E36: 0 | F36: 0 | G36: 0 | H36: 0 | I36: 0 | J36: 0 | K36: 0 | L36: 0 | M36: 0 | N36: 0 | O36: 0 | P36: 0 | Q36: 0 | R36: 0 | S36: 0 | T36: 0 | U36: 0 | V36: 0 | W36: 0 | X36: 0 | Y36: 0 | Z36: 0 | AA36: 0 | AB36: 0 | AC36: 0 | AD36: 0 | AE36: 0 | AF36: 0 | AG36: 0 | AH36: 0 | AI36: 0 | AJ36: 0 | AK36: 0 | AL36: 0 | AM36: 0 | AN36: 0 | AO36: 0 | AP36: 0 | AQ36: 0 | AR36: 0 | AS36: 0 | AT36: 0 | AU36: 0 | AV36: 0 | AW36: 0 | AX36: 0 | AY36: 0 | AZ36: 0 | BA36: 0
A37: Flint_Chris | B37: 0.010 | C37: 13 | D37: 7 | E37: 0 | F37: 15 | G37: 0 | H37: 0 | I37: 4 | J37: 1 | K37: 7 | L37: 9 | M37: 2 | N37: 4 | O37: 6 | P37: 0 | Q37: 11 | R37: 5 | S37: 1 | T37: 5 | U37: 9 | V37: 0 | W37: 8 | X37: 4 | Y37: 0 | Z37: 5 | AA37: 9 | AB37: 0 | AC37: 0 | AD37: 0 | AE37: 5 | AF37: 6 | AG37: 6 | AH37: 0 | AI37: 4 | AJ37: 1 | AK37: 0 | AL37: 0 | AM37: 1 | AN37: 4 | AO37: 4 | AP37: 2 | AQ37: 2 | AR37: 0 | AS37: 0 | AT37: 0 | AU37: 0 | AV37: 0 | AW37: 0 | AX37: 0 | AY37: 0 | AZ37: 0 | BA37: 0
A38: Gaston_Paul | B38: 0.000 | C38: 0 | D38: 0 | E38: 0 | F38: 0 | G38: 0 | H38: 0 | I38: 0 | J38: 0 | K38: 0 | L38: 0 | M38: 0 | N38: 0 | O38: 0 | P38: 0 | Q38: 0 | R38: 0 | S38: 0 | T38: 0 | U38: 18 | V38: 0 | W38: 0 | X38: 0 | Y38: 0 | Z38: 0 | AA38: 13 | AB38: 0 | AC38: 0 | AD38: 4 | AE38: 0 | AF38: 0 | AG38: 0 | AH38: 0 | AI38: 0 | AJ38: 0 | AK38: 0 | AL38: 0 | AM38: 9 | AN38: 3 | AO38: 0 | AP38: 0 | AQ38: 0 | AR38: 0 | AS38: 0 | AT38: 0 | AU38: 0 | AV38: 0 | AW38: 0 | AX38: 0 | AY38: 0 | AZ38: 0 | BA38: 0
A39: Hannell_Peter | B39: 0.000 | C39: 5 | D39: 8 | E39: 3 | F39: 0 | G39: 0 | H39: 5 | I39: 9 | J39: 0 | K39: 10 | L39: 2 | M39: 0 | N39: 0 | O39: 0 | P39: 0 | Q39: 0 | R39: 0 | S39: 0 | T39: 0 | U39: 0 | V39: 0 | W39: 0 | X39: 0 | Y39: 0 | Z39: 0 | AA39: 0 | AB39: 0 | AC39: 0 | AD39: 0 | AE39: 0 | AF39: 0 | AG39: 0 | AH39: 0 | AI39: 0 | AJ39: 0 | AK39: 0 | AL39: 0 | AM39: 0 | AN39: 0 | AO39: 0 | AP39: 0 | AQ39: 0 | AR39: 0 | AS39: 0 | AT39: 0 | AU39: 0 | AV39: 0 | AW39: 0 | AX39: 0 | AY39: 0 | AZ39: 0 | BA39: 0
A40: Harran_Mick | B40: 0.010 | C40: 12 | D40: 0 | E40: 9 | F40: 10 | G40: 0 | H40: 0 | I40: 10 | J40: 5 | K40: 8 | L40: 0 | M40: 3 | N40: 3 | O40: 16 | P40: 7 | Q40: 10 | R40: 0 | S40: 0 | T40: 0 | U40: 7 | V40: 0 | W40: 6 | X40: 5 | Y40: 0 | Z40: 1 | AA40: 7 | AB40: 4 | AC40: 0 | AD40: 7 | AE40: 4 | AF40: 0 | AG40: 7 | AH40: 4 | AI40: 0 | AJ40: 0 | AK40: 0 | AL40: 0 | AM40: 7 | AN40: 0 | AO40: 0 | AP40: 1 | AQ40: 0 | AR40: 0 | AS40: 0 | AT40: 0 | AU40: 0 | AV40: 0 | AW40: 0 | AX40: 0 | AY40: 0 | AZ40: 0 | BA40: 0
A41: Hoben_David | B41: 0.000 | C41: 7 | D41: 6 | E41: 0 | F41: 12 | G41: 0 | H41: 4 | I41: 3 | J41: 8 | K41: 4 | L41: 6 | M41: 5 | N41: 0 | O41: 4 | P41: 6 | Q41: 1 | R41: 3 | S41: 0 | T41: 0 | U41: 2 | V41: 0 | W41: 3 | X41: 3 | Y41: 4 | Z41: 3 | AA41: 3 | AB41: 0 | AC41: 4 | AD41: 5 | AE41: 2 | AF41: 7 | AG41: 1 | AH41: 1 | AI41: 6 | AJ41: 2 | AK41: 3 | AL41: 0 | AM41: 2 | AN41: 5 | AO41: 2 | AP41: 5 | AQ41: 6 | AR41: 0 | AS41: 0 | AT41: 0 | AU41: 0 | AV41: 0 | AW41: 0 | AX41: 0 | AY41: 0 | AZ41: 0 | BA41: 0
A42: Imber_Bernard | B42: 0.000 | C42: 17 | D42: 0 | E42: 0 | F42: 7 | G42: 0 | H42: 0 | I42: 0 | J42: 0 | K42: 0 | L42: 0 | M42: 0 | N42: 5 | O42: 0 | P42: 0 | Q42: 0 | R42: 0 | S42: 0 | T42: 0 | U42: 0 | V42: 0 | W42: 0 | X42: 0 | Y42: 0 | Z42: 0 | AA42: 0 | AB42: 0 | AC42: 0 | AD42: 0 | AE42: 0 | AF42: 0 | AG42: 0 | AH42: 0 | AI42: 0 | AJ42: 0 | AK42: 0 | AL42: 0 | AM42: 0 | AN42: 0 | AO42: 0 | AP42: 0 | AQ42: 0 | AR42: 0 | AS42: 0 | AT42: 0 | AU42: 0 | AV42: 0 | AW42: 0 | AX42: 0 | AY42: 0 | AZ42: 0 | BA42: 0
A43: King_Paul | B43: 0.000 | C43: 10 | D43: 0 | E43: 6 | F43: 8 | G43: 0 | H43: 0 | I43: 1 | J43: 3 | K43: 2 | L43: 7 | M43: 1 | N43: 1 | O43: 13 | P43: 0 | Q43: 8 | R43: 0 | S43: 3 | T43: 0 | U43: 8 | V43: 1 | W43: 4 | X43: 0 | Y43: 0 | Z43: 0 | AA43: 11 | AB43: 0 | AC43: 2 | AD43: 0 | AE43: 0 | AF43: 0 | AG43: 8 | AH43: 6 | AI43: 0 | AJ43: 0 | AK43: 0 | AL43: 0 | AM43: 15 | AN43: 0 | AO43: 0 | AP43: 0 | AQ43: 0 | AR43: 0 | AS43: 0 | AT43: 0 | AU43: 0 | AV43: 0 | AW43: 0 | AX43: 0 | AY43: 0 | AZ43: 0 | BA43: 0
A44: Lightman_Shaun | B44: 0.000 | C44: 2 | D44: 11 | E44: 4 | F44: 4 | G44: 0 | H44: 3 | I44: 6 | J44: 11 | K44: 3 | L44: 3 | M44: 0 | N44: 0 | O44: 7 | P44: 0 | Q44: 7 | R44: 8 | S44: 0 | T44: 2 | U44: 10 | V44: 0 | W44: 0 | X44: 9 | Y44: 3 | Z44: 6 | AA44: 4 | AB44: 0 | AC44: 6 | AD44: 0 | AE44: 1 | AF44: 5 | AG44: 0 | AH44: 0 | AI44: 0 | AJ44: 0 | AK44: 0 | AL44: 0 | AM44: 6 | AN44: 2 | AO44: 5 | AP44: 0 | AQ44: 0 | AR44: 0 | AS44: 0 | AT44: 0 | AU44: 0 | AV44: 0 | AW44: 0 | AX44: 0 | AY44: 0 | AZ44: 0 | BA44: 0
A45: Martin_Angela | B45: 0.000 | C45: 0 | D45: 0 | E45: 0 | F45: 0 | G45: 0 | H45: 0 | I45: 0 | J45: 0 | K45: 0 | L45: 0 | M45: 0 | N45: 0 | O45: 2 | P45: 10 | Q45: 5 | R45: 7 | S45: 5 | T45: 8 | U45: 4 | V45: 5 | W45: 0 | X45: 6 | Y45: 1 | Z45: 0 | AA45: 12 | AB45: 0 | AC45: 0 | AD45: 2 | AE45: 0 | AF45: 0 | AG45: 3 | AH45: 2 | AI45: 5 | AJ45: 0 | AK45: 0 | AL45: 1 | AM45: 11 | AN45: 0 | AO45: 6 | AP45: 0 | AQ45: 0 | AR45: 0 | AS45: 0 | AT45: 0 | AU45: 0 | AV45: 0 | AW45: 0 | AX45: 0 | AY45: 0 | AZ45: 0 | BA45: 0
A46: Martin_Malcolm | B46: 0.000 | C46: 0 | D46: 0 | E46: 0 | F46: 0 | G46: 0 | H46: 0 | I46: 0 | J46: 0 | K46: 0 | L46: 0 | M46: 0 | N46: 0 | O46: 1 | P46: 4 | Q46: 4 | R46: 6 | S46: 6 | T46: 3 | U46: 6 | V46: 6 | W46: 0 | X46: 2 | Y46: 7 | Z46: 0 | AA46: 5 | AB46: 0 | AC46: 0 | AD46: 3 | AE46: 0 | AF46: 4 | AG46: 5 | AH46: 8 | AI46: 2 | AJ46: 0 | AK46: 0 | AL46: 3 | AM46: 5 | AN46: 1 | AO46: 0 | AP46: 0 | AQ46: 0 | AR46: 0 | AS46: 0 | AT46: 0 | AU46: 0 | AV46: 0 | AW46: 0 | AX46: 0 | AY46: 0 | AZ46: 0 | BA46: 0
A47: Maskell_Dan | B47: 0.030 | C47: 0 | D47: 0 | E47: 0 | F47: 0 | G47: 0 | H47: 0 | I47: 0 | J47: 0 | K47: 0 | L47: 0 | M47: 0 | N47: 0 | O47: 5 | P47: 3 | Q47: 2 | R47: 0 | S47: 0 | T47: 7 | U47: 3 | V47: 2 | W47: 5 | X47: 8 | Y47: 6 | Z47: 4 | AA47: 2 | AB47: 1 | AC47: 5 | AD47: 0 | AE47: 3 | AF47: 3 | AG47: 9 | AH47: 7 | AI47: 0 | AJ47: 0 | AK47: 0 | AL47: 0 | AM47: 4 | AN47: 0 | AO47: 3 | AP47: 4 | AQ47: 3 | AR47: 1 | AS47: 0 | AT47: 0 | AU47: 0 | AV47: 0 | AW47: 0 | AX47: 0 | AY47: 0 | AZ47: 0 | BA47: 0
A48: Michell_Roger | B48: 0.000 | C48: 0 | D48: 0 | E48: 0 | F48: 0 | G48: 0 | H48: 0 | I48: 0 | J48: 0 | K48: 0 | L48: 0 | M48: 0 | N48: 0 | O48: 0 | P48: 0 | Q48: 0 | R48: 0 | S48: 0 | T48: 0 | U48: 0 | V48: 0 | W48: 0 | X48: 0 | Y48: 0 | Z48: 0 | AA48: 0 | AB48: 0 | AC48: 0 | AD48: 0 | AE48: 0 | AF48: 0 | AG48: 10 | AH48: 0 | AI48: 0 | AJ48: 0 | AK48: 2 | AL48: 0 | AM48: 17 | AN48: 0 | AO48: 0 | AP48: 0 | AQ48: 4 | AR48: 0 | AS48: 0 | AT48: 0 | AU48: 0 | AV48: 0 | AW48: 0 | AX48: 0 | AY48: 0 | AZ48: 0 | BA48: 0
A49: Simmons_Nolan | B49: 0.000 | C49: 0 | D49: 0 | E49: 0 | F49: 0 | G49: 0 | H49: 0 | I49: 0 | J49: 0 | K49: 0 | L49: 0 | M49: 0 | N49: 0 | O49: 18 | P49: 11 | Q49: 0 | R49: 0 | S49: 0 | T49: 0 | U49: 12 | V49: 0 | W49: 0 | X49: 0 | Y49: 5 | Z49: 0 | AA49: 0 | AB49: 0 | AC49: 0 | AD49: 0 | AE49: 0 | AF49: 0 | AG49: 0 | AH49: 0 | AI49: 0 | AJ49: 0 | AK49: 0 | AL49: 0 | AM49: 10 | AN49: 0 | AO49: 0 | AP49: 7 | AQ49: 5 | AR49: 0 | AS49: 0 | AT49: 0 | AU49: 0 | AV49: 0 | AW49: 0 | AX49: 0 | AY49: 0 | AZ49: 0 | BA49: 0
A50: Sliwerski_Trevor | B50: 0.000 | C50: 0 | D50: 0 | E50: 0 | F50: 0 | G50: 0 | H50: 0 | I50: 0 | J50: 0 | K50: 0 | L50: 0 | M50: 0 | N50: 0 | O50: 0 | P50: 0 | Q50: 0 | R50: 0 | S50: 0 | T50: 0 | U50: 15 | V50: 9 | W50: 0 | X50: 0 | Y50: 0 | Z50: 0 | AA50: 0 | AB50: 0 | AC50: 0 | AD50: 0 | AE50: 0 | AF50: 0 | AG50: 0 | AH50: 0 | AI50: 0 | AJ50: 0 | AK50: 0 | AL50: 0 | AM50: 20 | AN50: 0 | AO50: 0 | AP50: 0 | AQ50: 0 | AR50: 0 | AS50: 0 | AT50: 0 | AU50: 0 | AV50: 0 | AW50: 0 | AX50: 0 | AY50: 0 | AZ50: 0 | BA50: 0
A51: Statter_Andrew | B51: 0.000 | C51: 16 | D51: 0 | E51: 0 | F51: 6 | G51: 0 | H51: 0 | I51: 0 | J51: 0 | K51: 0 | L51: 0 | M51: 0 | N51: 0 | O51: 0 | P51: 0 | Q51: 0 | R51: 0 | S51: 0 | T51: 0 | U51: 0 | V51: 0 | W51: 0 | X51: 0 | Y51: 0 | Z51: 0 | AA51: 0 | AB51: 0 | AC51: 0 | AD51: 0 | AE51: 0 | AF51: 0 | AG51: 0 | AH51: 0 | AI51: 0 | AJ51: 0 | AK51: 0 | AL51: 0 | AM51: 0 | AN51: 0 | AO51: 0 | AP51: 0 | AQ51: 0 | AR51: 0 | AS51: 0 | AT51: 0 | AU51: 0 | AV51: 0 | AW51: 0 | AX51: 0 | AY51: 0 | AZ51: 0 | BA51: 0
A52: Statter_Ian | B52: 0.000 | C52: 4 | D52: 3 | E52: 5 | F52: 5 | G52: 0 | H52: 0 | I52: 5 | J52: 6 | K52: 9 | L52: 4 | M52: 0 | N52: 0 | O52: 17 | P52: 2 | Q52: 0 | R52: 0 | S52: 0 | T52: 0 | U52: 0 | V52: 0 | W52: 0 | X52: 0 | Y52: 0 | Z52: 0 | AA52: 0 | AB52: 0 | AC52: 0 | AD52: 0 | AE52: 0 | AF52: 0 | AG52: 0 | AH52: 0 | AI52: 0 | AJ52: 0 | AK52: 0 | AL52: 0 | AM52: 0 | AN52: 0 | AO52: 0 | AP52: 0 | AQ52: 0 | AR52: 0 | AS52: 0 | AT52: 0 | AU52: 0 | AV52: 0 | AW52: 0 | AX52: 0 | AY52: 0 | AZ52: 0 | BA52: 0
A54: Check max | C54: =+MAX(C25:C52) -> 17 | D54: =+MAX(D25:D52) -> 11 | E54: 9 | F54: 15 | G54: 0 | H54: 6 | I54: 12 | J54: 11 | K54: 12 | L54: 9 | M54: 8 | N54: 6 | O54: 18 | P54: 12 | Q54: 12 | R54: 8 | S54: 6 | T54: 8 | U54: 19 | V54: 9 | W54: 8 | X54: 9 | Y54: 7 | Z54: 6 | AA54: 13 | AB54: 4 | AC54: 7 | AD54: 7 | AE54: 5 | AF54: 7 | AG54: 11 | AH54: 8 | AI54: 6 | AJ54: 3 | AK54: 3 | AL54: 3 | AM54: 20 | AN54: 5 | AO54: 6 | AP54: 7 | AQ54: 6 | AR54: 1 | AS54: 0 | AT54: 0 | AU54: 0 | AV54: 0 | AW54: 0 | AX54: 0 | AY54: 0 | AZ54: 0 | BA54: 0 | BB54: 0
A55: Theo sum | C55: =+(C54+1)*C54/2 -> 153 | D55: =+(D54+1)*D54/2 -> 66 | E55: 45 | F55: 120 | G55: 0 | H55: 21 | I55: 78 | J55: 66 | K55: 78 | L55: 45 | M55: 36 | N55: 21 | O55: 171 | P55: 78 | Q55: 78 | R55: 36 | S55: 21 | T55: 36 | U55: 190 | V55: 45 | W55: 36 | X55: 45 | Y55: 28 | Z55: 21 | AA55: 91 | AB55: 10 | AC55: 28 | AD55: 28 | AE55: 15 | AF55: 28 | AG55: 66 | AH55: 36 | AI55: 21 | AJ55: 6 | AK55: 6 | AL55: 6 | AM55: 210 | AN55: 15 | AO55: 21 | AP55: 28 | AQ55: 21 | AR55: 1 | AS55: 0 | AT55: 0 | AU55: 0 | AV55: 0 | AW55: 0 | AX55: 0 | AY55: 0 | AZ55: 0
A56: act sum | C56: =SUM(C27:C52) -> 140 | D56: =SUM(D25:D52) -> 66 | E56: =SUM(E27:E52) -> 45 | F56: 122 | G56: 0 | H56: 23 | I56: 78 | J56: 66 | K56: 78 | L56: 45 | M56: 36 | N56: 21 | O56: 159 | P56: 78 | Q56: 78 | R56: 36 | S56: =SUM(S25:S52) -> 21 | T56: 36 | U56: 171 | V56: 45 | W56: 36 | X56: 45 | Y56: 28 | Z56: 21 | AA56: 91 | AB56: 10 | AC56: 28 | AD56: 28 | AE56: 15 | AF56: 28 | AG56: 66 | AH56: 36 | AI56: 21 | AJ56: 6 | AK56: 6 | AL56: 6 | AM56: 210 | AN56: 15 | AO56: 21 | AP56: 28 | AQ56: 21 | AR56: 1 | AS56: 0 | AT56: 0 | AU56: 0 | AV56: 0 | AW56: 0 | AX56: 0 | AY56: 0 | AZ56: 0 | BA56: 0 | BB56: 0 | BC56: 0 | BD56: 0 | BE56: 0 | BF56: 0
A57: Error | D57: =+D55-D56 -> 0 | E57: =+E55-E56 -> 0 | F57: =+F55-F56 -> -2 | G57: =+G55-G56 -> 0 | H57: =+H55-H56 -> -2 | J57: =+J55-J56 -> 0 | K57: =+K55-K56 -> 0 | L57: =+L55-L56 -> 0 | M57: =+M55-M56 -> 0 | N57: =+N55-N56 -> 0 | P57: =+P55-P56 -> 0 | Q57: =+Q55-Q56 -> 0 | R57: =+R55-R56 -> 0 | S57: =+S55-S56 -> 0 | T57: =+T55-T56 -> 0 | V57: =+V55-V56 -> 0 | W57: 0 | X57: 0 | Y57: 0 | Z57: 0 | AA57: 0 | AB57: 0 | AC57: 0 | AD57: 0 | AE57: 0 | AF57: 0 | AG57: 0 | AH57: 0 | AI57: 0 | AJ57: 0 | AK57: 0 | AL57: =+AL55-AL56 -> 0 | AM57: =+AM55-AM56 -> 0 | AN57: =+AN55-AN56 -> 0 | AO57: =+AO55-AO56 -> 0 | AP57: =+AP55-AP56 -> 0 | AQ57: =+AQ55-AQ56 -> 0 | AR57: =+AR55-AR56 -> 0 | AS57: =+AS55-AS56 -> 0 | AT57: =+AT55-AT56 -> 0 | AU57: =+AU55-AU56 -> 0 | AV57: =+AV55-AV56 -> 0 | AW57: =+AW55-AW56 -> 0 | AX57: =+AX55-AX56 -> 0 | AY57: =+AY55-AY56 -> 0 | AZ57: =+AZ55-AZ56 -> 0 | BA57: =+BA55-BA56 -> 0 | BB57: =+BB55-BB56 -> 0 | BC57: =+BC55-BC56 -> 0 | BD57: =+BD55-BD56 -> 0 | BE57: =+BE55-BE56 -> 0 | BF57: =+BF55-BF56 -> 0 | BG57: =+BG55-BG56 -> 0 | BH57: =+BH55-BH56 -> 0 | BI57: =+BI55-BI56 -> 0 | BJ57: =+BJ55-BJ56 -> 0 | BK57: =+BK55-BK56 -> 0 | BL57: =+BL55-BL56 -> 0

Sheet scratch for manipulation
C2: Brown_Sandra | D2: 13 | E2: 0 | F2: 0 | G2: 0 | H2: 4
C3: Burnett_Kevin | D3: 18 | E3: 0 | F3: 0 | G3: 0 | H3: 0
C4: Campbell_Sandra | D4: 10 | E4: 8 | F4: 0 | G4: 0 | H4: 6
C5: Crane_David | D5: 2 | E5: 3 | F5: 1 | G5: 1 | H5: 0
C6: Crane_Peter | D6: 3 | E6: 4 | F6: 2 | G6: 7 | H6: 0
C7: Crilley_Kathy | D7: 17 | E7: 0 | F7: 0 | G7: 0 | H7: 0
C8: Delaney_Dave | D8: 14 | E8: 7 | F8: 0 | G8: 0 | H8: 0
C9: Easton_Mark | D9: 15 | E9: 0 | F9: 7 | G9: 0 | H9: 0
C10: Flint_Chris | D10: 4 | E10: 0 | F10: 8 | G10: 4 | H10: 2
C11: Gaston_Paul | D11: 12 | E11: 0 | F11: 0 | G11: 0 | H11: 1
C12: Harran_Mick | D12: 9 | E12: 0 | F12: 6 | G12: 5 | H12: 0
C13: Hoben_David | D13: 6 | E13: 0 | F13: 3 | G13: 3 | H13: 0
C14: King_Paul | D14: 5 | E14: 1 | F14: 4 | G14: 0 | H14: 0
C15: Lightman_Shaun | D15: 11 | E15: 0 | F15: 0 | G15: 9 | H15: 5
C16: Martin_Angela | D16: 8 | E16: 5 | F16: 0 | G16: 6 | H16: 0
C17: Martin_Malcolm | D17: 7 | E17: 6 | F17: 0 | G17: 2 | H17: 0
C18: Maskell_Dan | D18: 1 | E18: 2 | F18: 5 | G18: 8 | H18: 3
C19: Simmons_Nolan | D19: 19 | E19: 0 | F19: 0 | G19: 0 | H19: 0
C20: Sliwerski_Trevor | D20: 16 | E20: 9 | F20: 0 | G20: 0 | H20: 0

Sheet Penalties_Given
A1: Penalties Used | C1: +ve adjustmts > penalty > reduce allowance > increase net time
A2: Date | B2: 2014-06-04 | C2: 3km N Park | G2: 2014-09-28 | H2: 4m Sandilands
A3: Event details | B3: Hcp Base | C3: Dist conv | D3: Medn Tm | G3: Hcp Base | H3: Dist conv | I3: Medn Tm
B4: 14 | C4: 0.279682 | D4: =14+22.5/60 -> 14.38 | G4: 30 | H4: 0.62144 | I4: =31+53/60 -> 31.88
A5: Colums | B5: Pcn_Man | C5: Pcn_Auto | D5: Mins dec | E5: act hcp | F5: act nt min | G5: Pcn_Man | H5: Pcn_Auto | I5: Mins dec | J5: act hcp | K5: act nt min
A6: Atterbury_Lyn | B6: 0 | C6: 0 | D6: 0.00
A7: Brown_Sandra | B7: -7 | C7: 0 | D7: -1.04 | E7: 2.50 | F7: =14+25/60 -> 14.42
A8: Burnett_Kevin | B8: 2 | C8: 0 | D8: 0.42 | E8: 8.50 | F8: =14+25/60 -> 14.42
A9: Campbell_Sandra | B9: 0 | C9: 1 | D9: 0.14 | E9: 7.00 | F9: =14+20/60 -> 14.33 | G9: 2 | H9: 0.50 | I9: -1.17 | J9: 16.17 | K9: =33+25/60 -> 33.42
A10: Crane_David | B10: 0 | C10: 0.5 | D10: -0.08 | J10: =4+5/6 -> 4.83 | K10: =31+15/60 -> 31.25
A11: Crane_Peter | B11: 0 | C11: 0 | D11: 0.00 | E11: 6.00 | F11: =13+48/60 -> 13.80 | H11: 1.50 | I11: -0.68 | J11: =14+1/6 -> 14.17 | K11: =31+26/60 -> 31.43
A12: Crane_Steve | B12: -2 | C12: 0 | D12: 0.29 | G12: -3
A13: Crilley_Kathy | B13: 0 | C13: 0 | D13: 0.00
A14: Delaney_Dave | B14: -2 | C14: 1 | D14: 0.23 | H14: 0.5 | I14: -0.27 | J14: 13.50 | K14: =32+22/60 -> 32.37
A15: Easton_Mark | B15: 0 | C15: 0 | D15: 0.00
A16: Ficken_Pam | B16: 0 | C16: 0 | D16: 0.00
A17: Flint_Chris | B17: 0 | C17: 1.5 | D17: -0.20 | G17: 2 | H17: 1 | I17: -1.18
A18: Hannell_Peter | B18: -1 | C18: 0 | D18: 0.17 | E18: 4.33 | F18: =14+22/60 -> 14.37 | I18: 0.00 | J18: =11+10/60 -> 11.17 | K18: =32+12/60 -> 32.20
A19: Harran_Mick | B19: 0 | C19: 0 | D19: 0.00
A20: Hoben_David | B20: 0 | C20: 0.5 | D20: -0.04
A21: Imber_Bernard | B21: 0 | C21: 0 | D21: 0.00
A22: King_Paul | B22: 0 | C22: 0.5 | D22: -0.03 | I22: 0.00 | J22: 11.33 | K22: =30+38/60 -> 30.63
A23: Lightman_Shaun | B23: 0 | C23: 0 | D23: 0.00 | E23: =3+10/60 -> 3.17 | F23: =13+51/60 -> 13.85 | H23: 1 | I23: -0.35 | J23: 8.50
A24: Martin_Angela | B24: 1 | C24: 1 | D24: -0.43 | E24: 4.33 | F24: =15+15/60 -> 15.25 | I24: 0.00 | J24: 13.50 | K24: =31+53/60 -> 31.88
A25: Martin_Malcolm | B25: 1 | C25: 0 | D25: 0.14 | E25: =1+50/60 -> 1.83 | F25: =14+2/60 -> 14.03 | H25: 0.5 | I25: -0.20 | J25: 3.50 | K25: =32+7/60 -> 32.12
A26: Maskell_Dan | B26: 0 | C26: 1 | D26: -0.17 | E26: 3.50 | F26: =14+53/60 -> 14.88 | G26: 2 | I26: -0.83 | J26: 9.67 | K26: =30+48/60 -> 30.80
A27: Simmons_Nolan | B27: 0 | C27: 0 | D27: 0.00
A28: Sliwerski_Trevor | B28: 0 | C28: 0 | D28: 0.00 | I28: 0.00 | J28: 14.67 | K28: =34+55/60 -> 34.92
A29: Statter_Andrew | B29: 0 | C29: 0 | D29: 0.00
A30: Statter_Ian | B30: -1 | C30: 0 | D30: 0.12
